{"text_format":"1","workbook":"xlsx","n_sheets":6,"sheets":["Cash-Flow-DATA","OTCHET-agregirani pokazateli","OTCHET F","OTCHET","INF","list"],"not_rendered":{"charts":0,"images":0,"macros":1,"external_links":1,"defined_names":17,"comments":5,"pivot_tables":0},"unopened":[],"bounds":{"document_bytes":16777216,"sheet_cells":100000,"rows_first":2000,"rows_last":500,"rows_between":2000,"halvings":0,"cell_chars":16384,"cell_head_chars":4096},"cells_cut":0,"cells_raw":0,"read":"whole","date_system":"1900"}

{"sheet":"Cash-Flow-DATA","index":0,"n_rows":141,"n_cols":20,"rows_kept":141,"cut":false,"hidden":false,"merged":[[131,18,131,20],[132,1,132,3],[133,5,133,6],[133,11,133,13],[133,15,133,16],[130,18,130,20],[113,18,113,20],[115,18,115,20],[116,18,116,20],[117,18,117,20],[119,18,119,20],[121,18,121,20],[124,18,124,20],[123,18,123,20],[125,18,125,20],[126,18,126,20],[128,18,128,20],[129,18,129,20],[112,18,112,20],[96,18,96,20],[97,18,97,20],[98,18,98,20],[100,18,100,20],[103,18,103,20],[104,18,104,20],[105,18,105,20],[107,18,107,20],[108,18,108,20],[109,18,109,20],[111,18,111,20],[94,18,94,20],[78,18,78,20],[79,18,79,20],[80,18,80,20],[81,1,81,3],[86,18,86,20],[87,18,87,20],[88,18,88,20],[90,18,90,20],[91,18,91,20],[92,18,92,20],[93,18,93,20],[76,18,76,20],[60,18,60,20],[62,18,62,20],[64,18,64,20],[65,18,65,20],[66,18,66,20],[68,18,68,20],[69,18,69,20],[70,18,70,20],[72,18,72,20],[73,18,73,20],[74,18,74,20],[59,18,59,20],[44,18,44,20],[45,18,45,20],[47,18,47,20],[50,18,50,20],[51,18,51,20],[52,18,52,20],[53,18,53,20],[54,18,54,20],[55,18,55,20],[57,18,57,20],[58,18,58,20],[43,18,43,20],[24,18,24,20],[25,18,25,20],[26,18,26,20],[27,18,27,20],[34,18,34,20],[35,18,35,20],[36,18,36,20],[37,18,37,20],[39,18,39,20],[41,18,41,20],[42,18,42,20],[22,18,22,20],[7,18,7,20],[8,18,8,20],[12,18,12,20],[13,18,13,20],[15,18,15,20],[16,18,16,20],[14,18,14,20],[17,18,17,20],[18,18,18,20],[19,18,19,20],[20,18,20,20],[21,18,21,20],[5,18,5,20],[1,1,1,3],[1,8,1,9],[1,11,1,13],[1,19,1,20],[3,18,3,20]]}
[null," (бюджетна организация, предприятие по чл. 165, ал. 1 от ЗПФ, поделение)",null,null,null,"ЕИК/БУЛСТАТ","код по ЕБК",null,"                    Web-адрес",null,null,"e-mail",null,null,null,"      финансово-правна форма"]
[null,{"$f":"+OTCHET!B9","v":"ХТМУ"},null,null,null,{"$f":"+OTCHET!H9","v":0},{"$f":"+OTCHET!F12","v":"1700"},null,{"$f":"+OTCHET!H610","v":0},null,null,{"$f":"+OTCHET!H608","v":0},null,null,null,{"$f":"+OTCHET!E15","v":96},{"$f":"+OTCHET!F15","v":"СЕС - ДЕС"},null,"                           код от регистъра на бюджетните организации в СЕБРА",{"$f":"+OTCHET!I9","v":0}]
[]
[null,"                                                               ИНФОРМАЦИЯ ЗА ИЗГОТВЯНЕ НА  ОТЧЕТ ЗА КАСОВОТО ИЗПЪЛНЕНИЕ ",null,null,null,null,null,null,null,"ГОДИНА",null,{"$f":"+Q4","v":2025},null,null,null,"ГОДИНА",{"$f":"+OTCHET!C3","v":2025},null,"ОТЧЕТ ЗА КАСОВОТО ИЗПЪЛНЕНИЕ НА БЮДЖЕТА, СМЕТКИТЕ ЗА СЕС И ЧУЖДИТЕ СРЕДСТВА"]
[]
[null,"                       НА БЮДЖЕТА, СМЕТКИТЕ ЗА СРЕДСТВАТА ОТ ЕВРОПЕЙСКИЯ СЪЮЗ И СМЕТКИТЕ ЗА ЧУЖДИ СРЕДСТВА КЪМ",null,null,null,null,null,null,null,null,null,{"$f":"OTCHET!F9","v":"2025-09-30"},null,"(В ЛЕВОВЕ)",null,{"$f":"OTCHET!F9","v":"2025-09-30"},"(В ЛЕВОВЕ)",null,{"$f":"+Q4","v":2025}]
[]
[null,null,null,null,null,"БЮДЖЕТ Годишен         уточнен план                           ","БЮДЖЕТ -ОТЧЕТ  ",null,"Сметки за сред-ства от Европей-ския съюз-инди-кативни разчети                      ","Сметки за сред-ства от Евро-пейския съюз - ОТЧЕТ",null,"Сметки за чуж-ди средства - ОТЧЕТ                ",null,"ОБЩО КАСОВ ОТЧЕТ  ",null,"таблица            'OTCHET'         Год. уточнен план                           ","таблица 'OTCHET'  ОТЧЕТ",null,"§§ от ЕБК, които се включват в съответния показател"]
[null,"                                  П О К А З А Т Е Л И",null,null,null,{"$f":"+L4","v":2025},{"$f":"+L6","v":"2025-09-30"},null,{"$f":"+L4","v":2025},{"$f":"+L6","v":"2025-09-30"},null,{"$f":"+L6","v":"2025-09-30"},null,{"$f":"+L6","v":"2025-09-30"},null,{"$f":"+L4","v":2025},{"$f":"OTCHET!F9","v":"2025-09-30"},null,"П О К А З А Т Е Л И"]
[null,"                                                                (а)",null,null,null,"(1)","(2)",null,"(3)","(4)",null,"(5)",null,"(6)=(2)+(4)+(5)",null,"(1)","(2)"]
[null," А. ПРИХОДИ, ПОМОЩИ И ДАРЕНИЯ",null,null,null,null,null,null,null,null,null,null,null,null,null,null,null,null," А. ПРИХОДИ, ПОМОЩИ И ДАРЕНИЯ"]
[null," I. Постъпления от текущи приходи",null,null,null,null,null,null,null,null,null,null,null,null,null,null,null,null," I. Постъпления от текущи приходи"]
[null," 1. Приходи от данъци и осигурителни вноски",null,null,null,{"$f":"+IF($P$2=0,$P13,0)","v":0},{"$f":"+IF($P$2=0,$Q13,0)","v":0},null,{"$f":"+IF(OR($P$2=98,$P$2=42,$P$2=96,$P$2=97),$P13,0)","v":0},{"$f":"+IF(OR($P$2=98,$P$2=42,$P$2=96,$P$2=97),$Q13,0)","v":0},null,{"$f":"+IF($P$2=33,$Q13,0)","v":0},null,{"$f":"+ROUND(+G13+J13+L13,0)","v":0},null,{"$f":"+ROUND(OTCHET!E22+OTCHET!E28+OTCHET!E33+OTCHET!E39+OTCHET!E47+OTCHET!E52+OTCHET!E58+OTCHET!E61+OTCHET!E64+OTCHET!E65+OTCHET!E72+OTCHET!E73,0)","v":0},{"$f":"+ROUND(OTCHET!F22+OTCHET!F28+OTCHET!F33+OTCHET!F39+OTCHET!F47+OTCHET!F52+OTCHET!F58+OTCHET!F61+OTCHET!F64+OTCHET!F65+OTCHET!F72+OTCHET!F73,0)","v":0},null,"приходни §§ 01-00 ÷ 20-00"]
[null," 2. Приходи от такси и вноски",null,null,null,{"$f":"+IF($P$2=0,$P14,0)","v":0},{"$f":"+IF($P$2=0,$Q14,0)","v":0},null,{"$f":"+IF(OR($P$2=98,$P$2=42,$P$2=96,$P$2=97),$P14,0)","v":0},{"$f":"+IF(OR($P$2=98,$P$2=42,$P$2=96,$P$2=97),$Q14,0)","v":0},null,{"$f":"+IF($P$2=33,$Q14,0)","v":0},null,{"$f":"+ROUND(+G14+J14+L14,0)","v":0},null,{"$f":"+ROUND(+OTCHET!E90+OTCHET!E93+OTCHET!E94+OTCHET!E113+OTCHET!E114,0)","v":0},{"$f":"+ROUND(+OTCHET!F90+OTCHET!F93+OTCHET!F94+OTCHET!F113+OTCHET!F114,0)","v":0},null,"приходни §§ 25-00, 26-00, 27-00, 36-08 и 36-10"]
[null,"     в т.ч.  приходи от вноски",null,null,null,0,0,null,0,0,null,0,null,0,null,{"$f":"+ROUND(+OTCHET!E113+OTCHET!E114,0)","v":0},{"$f":"+OTCHET!F113+OTCHET!F114","v":0},null,"приходни §§ 36-08 и 36-10"]
[null," 3. Приходи от административни глоби, санкции и наказателни лихви",null,null,null,0,0,null,0,0,null,0,null,0,null,{"$f":"+ROUND(+OTCHET!E108+OTCHET!E109,0)","v":0},{"$f":"+ROUND(+OTCHET!F108+OTCHET!F109,0)","v":0},null,"приходни §§ 28-02 и 28-09"]
[null," 4. Нетни приходи от продажби на услуги, стоки и продукция",null,null,null,0,0,null,0,0,null,0,null,0,null,{"$f":"+ROUND(OTCHET!E77,0)","v":0},{"$f":"+ROUND(OTCHET!F77,0)","v":0},null,"приходeн § 24-04"]
[null," 5. Приходи от наеми",null,null,null,0,0,null,0,0,null,0,null,0,null,{"$f":"+ROUND(OTCHET!E78+OTCHET!E79,0)","v":0},{"$f":"+ROUND(OTCHET!F78+OTCHET!F79,0)","v":0},null,"приходни §§ 24-05 и 24-06"]
[null," 6. Приходи от концесии и лицензии за ползване на публични активи",null,null,null,0,0,null,0,0,null,0,null,0,null,{"$f":"+ROUND(OTCHET!E135++OTCHET!E136,0)","v":0},{"$f":"+ROUND(OTCHET!F135++OTCHET!F136,0)","v":0},null,"приходни §§ 41-00 и 42-00"]
[null," 7. Приходи от лихви",null,null,null,0,0,null,0,0,null,0,null,0,null,{"$f":"+ROUND(+SUM(OTCHET!E81:E89),0)","v":0},{"$f":"+ROUND(+SUM(OTCHET!F81:F89),0)","v":0},null,"приходни §§ 24-08 ÷ 24-19"]
[null," 8. Приходи от дивиденти и дялово участие ",null,null,null,0,0,null,0,0,null,0,null,0,null,{"$f":"+ROUND(OTCHET!E75+OTCHET!E76+OTCHET!E80,0)","v":0},{"$f":"+ROUND(OTCHET!F75+OTCHET!F76+OTCHET!F80,0)","v":0},null,"приходни §§ 24-01, 24-03 и 24-07"]
[null," 9. Други текущи приходи и реализирани курсови разлики",null,null,null,0,0,null,0,23339,null,0,null,23339,null,{"$f":"+ROUND(OTCHET!E111+OTCHET!E112+OTCHET!E118,0)","v":0},{"$f":"+ROUND(OTCHET!F111+OTCHET!F112+OTCHET!F118,0)","v":23339},null,"приходни §§ 36-01, 36-05 и 36-19"]
[null," Общо за група І. Постъпления от текущи приходи",null,null,null,{"$f":"+ROUND(+SUM(F13,F14,F16,F17,F18,F19,F20,F21,F22),0)","v":0},{"$f":"+ROUND(+SUM(G13,G14,G16,G17,G18,G19,G20,G21,G22),0)","v":0},null,{"$f":"+ROUND(+SUM(I13,I14,I16,I17,I18,I19,I20,I21,I22),0)","v":0},{"$f":"+ROUND(+SUM(J13,J14,J16,J17,J18,J19,J20,J21,J22),0)","v":23339},null,{"$f":"+ROUND(+SUM(L13,L14,L16,L17,L18,L19,L20,L21,L22),0)","v":0},null,{"$f":"+ROUND(+SUM(N13,N14,N16,N17,N18,N19,N20,N21,N22),0)","v":23339},null,{"$f":"+ROUND(+SUM(P13,P14,P16,P17,P18,P19,P20,P21,P22),0)","v":0},{"$f":"+ROUND(+SUM(Q13,Q14,Q16,Q17,Q18,Q19,Q20,Q21,Q22),0)","v":23339},null,"сборен ред за група І. Постъпления от текущи приходи"]
[null," IІ. Реализация на нефинансови активи и конфискувани средства",null,null,null,null,null,null,null,null,null,null,null,null,null,null,null,null," IІ. Реализация на нефинансови активи и конфискувани средства"]
[null," 1. Продажба на земя",null,null,null,{"$f":"+IF($P$2=0,$P25,0)","v":0},{"$f":"+IF($P$2=0,$Q25,0)","v":0},null,{"$f":"+IF(OR($P$2=98,$P$2=42,$P$2=96,$P$2=97),$P25,0)","v":0},{"$f":"+IF(OR($P$2=98,$P$2=42,$P$2=96,$P$2=97),$Q25,0)","v":0},null,{"$f":"+IF($P$2=33,$Q25,0)","v":0},null,{"$f":"+ROUND(+G25+J25+L25,0)","v":0},null,{"$f":"+ROUND(OTCHET!E133,0)","v":0},{"$f":"+ROUND(OTCHET!F133,0)","v":0},null,"приходeн § 40-40"]
[null," 2. Продажба на други нефинансови дълготрайни активи",null,null,null,{"$f":"+IF($P$2=0,$P26,0)","v":0},{"$f":"+IF($P$2=0,$Q26,0)","v":0},null,{"$f":"+IF(OR($P$2=98,$P$2=42,$P$2=96,$P$2=97),$P26,0)","v":0},{"$f":"+IF(OR($P$2=98,$P$2=42,$P$2=96,$P$2=97),$Q26,0)","v":0},null,{"$f":"+IF($P$2=33,$Q26,0)","v":0},null,{"$f":"+ROUND(+G26+J26+L26,0)","v":0},null,{"$f":"+ROUND(+SUM(OTCHET!E124:E132)+OTCHET!E134,0)","v":0},{"$f":"+ROUND(+SUM(OTCHET!F124:F132)+OTCHET!F134,0)","v":0},null,"приходeн § 40-00 без §§ 40-40 и 40-71"]
[null," 3. Конфиск. средства и продажби на конфискувани и от залог нефин. активи ",null,null,null,{"$f":"+IF($P$2=0,$P27,0)","v":0},{"$f":"+IF($P$2=0,$Q27,0)","v":0},null,{"$f":"+IF(OR($P$2=98,$P$2=42,$P$2=96,$P$2=97),$P27,0)","v":0},{"$f":"+IF(OR($P$2=98,$P$2=42,$P$2=96,$P$2=97),$Q27,0)","v":0},null,{"$f":"+IF($P$2=33,$Q27,0)","v":0},null,{"$f":"+ROUND(+G27+J27+L27,0)","v":0},null,{"$f":"+ROUND(+OTCHET!E107,0)","v":0},{"$f":"+ROUND(+OTCHET!F107,0)","v":0},null,"приходeн § 28-01"]
[null," Общо за група ІІ. Постъпления от продажби на нефинансови активи",null,null,null,{"$f":"+ROUND(+SUM(F25:F27),0)","v":0},{"$f":"+ROUND(+SUM(G25:G27),0)","v":0},null,{"$f":"+ROUND(+SUM(I25:I27),0)","v":0},{"$f":"+ROUND(+SUM(J25:J27),0)","v":0},null,{"$f":"+ROUND(+SUM(L25:L27),0)","v":0},null,{"$f":"+ROUND(+SUM(N25:N27),0)","v":0},null,{"$f":"+ROUND(+SUM(P25:P27),0)","v":0},{"$f":"+ROUND(+SUM(Q25:Q27),0)","v":0},null,"сборен ред за група ІІ. Постъпления от продажби на нефинансови активи"]
[]
[null," IІI. Внесен ДДС, др. данъци в/у продажбите и коректив за постъпления "]
[null," 1. Внесен ДДС"]
[null," 2. Внесен данък върху приходите от стопанска дейност"]
[null," 3. Внесени други данъци върху продажбите"]
[null," 4. Коректив за касови постъпления"]
[null," ІІІ. Внесен ДДС и др. данъци в/у продажбите и коректив за постъпления",null,null,null,{"$f":"+IF($P$2=0,$P35,0)","v":0},{"$f":"+IF($P$2=0,$Q35,0)","v":0},null,{"$f":"+IF(OR($P$2=98,$P$2=42,$P$2=96,$P$2=97),$P35,0)","v":0},{"$f":"+IF(OR($P$2=98,$P$2=42,$P$2=96,$P$2=97),$Q35,0)","v":0},null,{"$f":"+IF($P$2=33,$Q35,0)","v":0},null,{"$f":"+ROUND(+G35+J35+L35,0)","v":0},null,{"$f":"+ROUND(+OTCHET!E119+OTCHET!E117,0)","v":0},{"$f":"+ROUND(+OTCHET!F119+OTCHET!F117,0)","v":0},null,"ІІІ. Внесен ДДС и др. д-ци в/у продажбите и коректив - приходни § 36-18 и 37-00"]
[null,"     в т. ч. внесен ДДС",null,null,null,{"$f":"+IF($P$2=0,$P36,0)","v":0},{"$f":"+IF($P$2=0,$Q36,0)","v":0},null,{"$f":"+IF(OR($P$2=98,$P$2=42,$P$2=96,$P$2=97),$P36,0)","v":0},{"$f":"+IF(OR($P$2=98,$P$2=42,$P$2=96,$P$2=97),$Q36,0)","v":0},null,{"$f":"+IF($P$2=33,$Q36,0)","v":0},null,0,null,{"$f":"+ROUND(OTCHET!E120,0)","v":0},{"$f":"+ROUND(OTCHET!F120,0)","v":0},null,"приходен § 37-01"]
[null,"                внесен данък в/у приходите от стопанска дейност",null,null,null,{"$f":"+IF($P$2=0,$P37,0)","v":0},{"$f":"+IF($P$2=0,$Q37,0)","v":0},null,{"$f":"+IF(OR($P$2=98,$P$2=42,$P$2=96,$P$2=97),$P37,0)","v":0},{"$f":"+IF(OR($P$2=98,$P$2=42,$P$2=96,$P$2=97),$Q37,0)","v":0},null,{"$f":"+IF($P$2=33,$Q37,0)","v":0},null,0,null,{"$f":"+ROUND(OTCHET!E121,0)","v":0},{"$f":"+ROUND(OTCHET!F121,0)","v":0},null,"приходен § 37-02"]
[null,"                внесени други данъци, такси и вноски в/у продажбите",null,null,null,{"$f":"+IF($P$2=0,$P38,0)","v":0},{"$f":"+IF($P$2=0,$Q38,0)","v":0},null,{"$f":"+IF(OR($P$2=98,$P$2=42,$P$2=96,$P$2=97),$P38,0)","v":0},{"$f":"+IF(OR($P$2=98,$P$2=42,$P$2=96,$P$2=97),$Q38,0)","v":0},null,{"$f":"+IF($P$2=33,$Q38,0)","v":0},null,0,null,{"$f":"+ROUND(OTCHET!E122,0)","v":0},{"$f":"+ROUND(OTCHET!F122,0)","v":0},null,"приходен § 37-09"]
[]
[null," IV. Постъпления от застрахователни обезщетения",null,null,null,{"$f":"+IF($P$2=0,$P40,0)","v":0},{"$f":"+IF($P$2=0,$Q40,0)","v":0},null,{"$f":"+IF(OR($P$2=98,$P$2=42,$P$2=96,$P$2=97),$P40,0)","v":0},{"$f":"+IF(OR($P$2=98,$P$2=42,$P$2=96,$P$2=97),$Q40,0)","v":0},null,{"$f":"+IF($P$2=33,$Q40,0)","v":0},null,0,null,{"$f":"+ROUND(OTCHET!E115+OTCHET!E116,0)","v":0},{"$f":"+ROUND(OTCHET!F115+OTCHET!F116,0)","v":0},null,"IV. Постъпления от застрахователни обезщетения - приходни § 36-11 и 36-12"]
[null," V. Приходи от помощи и дарения",null,null,null,null,null,null,null,null,null,null,null,null,null,null,null,null," V. Приходи от помощи и дарения"]
[null," 1. Помощи и дарения от Европейския съюз",null,null,null,{"$f":"+IF($P$2=0,$P42,0)","v":0},{"$f":"+IF($P$2=0,$Q42,0)","v":0},null,{"$f":"+IF(OR($P$2=98,$P$2=42,$P$2=96,$P$2=97),$P42,0)","v":0},{"$f":"+IF(OR($P$2=98,$P$2=42,$P$2=96,$P$2=97),$Q42,0)","v":0},null,{"$f":"+IF($P$2=33,$Q42,0)","v":0},null,{"$f":"+ROUND(+G42+J42+L42,0)","v":0},null,{"$f":"+ROUND(OTCHET!E141+OTCHET!E142+OTCHET!E159+OTCHET!E160,0)","v":0},{"$f":"+ROUND(OTCHET!F141+OTCHET!F142+OTCHET!F159+OTCHET!F160,0)","v":0},null,"приходни §§ 46-10, 46-20, 48-10 и 48-20"]
[null," 2. Други помощи и дарения от чужбина",null,null,null,{"$f":"+IF($P$2=0,$P43,0)","v":0},{"$f":"+IF($P$2=0,$Q43,0)","v":0},null,{"$f":"+IF(OR($P$2=98,$P$2=42,$P$2=96,$P$2=97),$P43,0)","v":0},{"$f":"+IF(OR($P$2=98,$P$2=42,$P$2=96,$P$2=97),$Q43,0)","v":0},null,{"$f":"+IF($P$2=33,$Q43,0)","v":0},null,{"$f":"+ROUND(+G43+J43+L43,0)","v":0},null,{"$f":"+ROUND(+SUM(OTCHET!E143:E148)+SUM(OTCHET!E161:E166),0)","v":0},{"$f":"+ROUND(+SUM(OTCHET!F143:F148)+SUM(OTCHET!F161:F166),0)","v":0},null,"приходни §§ 46-30 ÷ 46-80 и §§ 48-30 ÷ 48-80"]
[null," 3. Други безвъзмездно получени средства по международни и други програми",null,null,null,{"$f":"+IF($P$2=0,$P44,0)","v":0},{"$f":"+IF($P$2=0,$Q44,0)","v":0},null,{"$f":"+IF(OR($P$2=98,$P$2=42,$P$2=96,$P$2=97),$P44,0)","v":0},{"$f":"+IF(OR($P$2=98,$P$2=42,$P$2=96,$P$2=97),$Q44,0)","v":0},null,{"$f":"+IF($P$2=33,$Q44,0)","v":0},null,{"$f":"+ROUND(+G44+J44+L44,0)","v":0},null,{"$f":"+ROUND(OTCHET!E149,0)","v":0},{"$f":"+ROUND(OTCHET!F149,0)","v":0},null,"приходeн § 47-00"]
[null," 4. Помощи и дарения от страната",null,null,null,{"$f":"+IF($P$2=0,$P45,0)","v":0},{"$f":"+IF($P$2=0,$Q45,0)","v":0},null,{"$f":"+IF(OR($P$2=98,$P$2=42,$P$2=96,$P$2=97),$P45,0)","v":0},{"$f":"+IF(OR($P$2=98,$P$2=42,$P$2=96,$P$2=97),$Q45,0)","v":0},null,{"$f":"+IF($P$2=33,$Q45,0)","v":0},null,{"$f":"+ROUND(+G45+J45+L45,0)","v":0},null,{"$f":"+ROUND(OTCHET!E137,0)","v":0},{"$f":"+ROUND(OTCHET!F137,0)","v":0},null,"приходeн § 45-00"]
[null," Общо за група V. Приходи от помощи и дарения",null,null,null,{"$f":"+ROUND(+SUM(F42:F45),0)","v":0},{"$f":"+ROUND(+SUM(G42:G45),0)","v":0},null,{"$f":"+ROUND(+SUM(I42:I45),0)","v":0},{"$f":"+ROUND(+SUM(J42:J45),0)","v":0},null,{"$f":"+ROUND(+SUM(L42:L45),0)","v":0},null,{"$f":"+ROUND(+SUM(N42:N45),0)","v":0},null,{"$f":"+ROUND(+SUM(P42:P45),0)","v":0},{"$f":"+ROUND(+SUM(Q42:Q45),0)","v":0},null,"сборен ред за група V. Приходи от помощи и дарения"]
[]
[null," А. ОБЩО ПРИХОДИ, ПОМОЩИ И ДАРЕНИЯ",null,null,null,{"$f":"+ROUND(F23+F28+F35+F40+F46,0)","v":0},{"$f":"+ROUND(G23+G28+G35+G40+G46,0)","v":0},null,{"$f":"+ROUND(I23+I28+I35+I40+I46,0)","v":0},{"$f":"+ROUND(J23+J28+J35+J40+J46,0)","v":23339},null,{"$f":"+ROUND(L23+L28+L35+L40+L46,0)","v":0},null,{"$f":"+ROUND(N23+N28+N35+N40+N46,0)","v":23339},null,{"$f":"+ROUND(P23+P28+P35+P40+P46,0)","v":0},{"$f":"+ROUND(Q23+Q28+Q35+Q40+Q46,0)","v":23339},null," сборен ред за А. ОБЩО ПРИХОДИ, ПОМОЩИ И ДАРЕНИЯ"]
[null," Б. РАЗХОДИ И ПРИДОБИВАНЕ НА НЕФИНАНСОВИ АКТИВИ",null,null,null,null,null,null,null,null,null,null,null,null,null,null,null,null," Б. РАЗХОДИ И ПРИДОБИВАНЕ НА НЕФИНАНСОВИ АКТИВИ"]
[null," I. Плащания за текущи нелихвени разходи",null,null,null,null,null,null,null,null,null,null,null,null,null,null,null,null," I. Плащания за текущи нелихвени разходи"]
[null," 1. Разходи за издръжка - нефинансови позиции",null,null,null,{"$f":"+IF($P$2=0,$P51,0)","v":0},{"$f":"+IF($P$2=0,$Q51,0)","v":0},null,{"$f":"+IF(OR($P$2=98,$P$2=42,$P$2=96,$P$2=97),$P51,0)","v":0},{"$f":"+IF(OR($P$2=98,$P$2=42,$P$2=96,$P$2=97),$Q51,0)","v":96909},null,{"$f":"+IF($P$2=33,$Q51,0)","v":0},null,{"$f":"+ROUND(+G51+J51+L51,0)","v":96909},null,{"$f":"+ROUND(OTCHET!E205-SUM(OTCHET!E217:E219)+OTCHET!E274+IF(+OR(OTCHET!$F$12=\"5500\",OTCHET!$F$12=\"5600\"),0,+OTCHET!E300),0)","v":0},{"$f":"+ROUND(OTCHET!F205-SUM(OTCHET!F217:F219)+OTCHET!F274+IF(+OR(OTCHET!$F$12=\"5500\",OTCHET!$F$12=\"5600\"),0,+OTCHET!F300),0)","v":96909},null,"разходни §§ 10-00 (без §§ 10-62, 10-63 и 10-69), 46-00 и § 00-98 (без НОИ и НЗОК)"]
[null," 2. Разходи за застраховане и други финансови услуги",null,null,null,{"$f":"+IF($P$2=0,$P52,0)","v":0},{"$f":"+IF($P$2=0,$Q52,0)","v":0},null,{"$f":"+IF(OR($P$2=98,$P$2=42,$P$2=96,$P$2=97),$P52,0)","v":0},{"$f":"+IF(OR($P$2=98,$P$2=42,$P$2=96,$P$2=97),$Q52,0)","v":59},null,{"$f":"+IF($P$2=33,$Q52,0)","v":0},null,{"$f":"+ROUND(+G52+J52+L52,0)","v":59},null,{"$f":"+ROUND(+SUM(OTCHET!E217:E219),0)","v":0},{"$f":"+ROUND(+SUM(OTCHET!F217:F219),0)","v":59},null,"разходни §§ 10-62, 10-63 и 10-69"]
[null," 3. Платени данъци, такси и административни санкции",null,null,null,{"$f":"+IF($P$2=0,$P53,0)","v":0},{"$f":"+IF($P$2=0,$Q53,0)","v":0},null,{"$f":"+IF(OR($P$2=98,$P$2=42,$P$2=96,$P$2=97),$P53,0)","v":0},{"$f":"+IF(OR($P$2=98,$P$2=42,$P$2=96,$P$2=97),$Q53,0)","v":0},null,{"$f":"+IF($P$2=33,$Q53,0)","v":0},null,{"$f":"+ROUND(+G53+J53+L53,0)","v":0},null,{"$f":"+ROUND(OTCHET!E223,0)","v":0},{"$f":"+ROUND(OTCHET!F223,0)","v":0},null,"разходен § 19-00"]
[null," 4. Разходи за възнаграждения на персонал",null,null,null,{"$f":"+IF($P$2=0,$P54,0)","v":0},{"$f":"+IF($P$2=0,$Q54,0)","v":0},null,{"$f":"+IF(OR($P$2=98,$P$2=42,$P$2=96,$P$2=97),$P54,0)","v":0},{"$f":"+IF(OR($P$2=98,$P$2=42,$P$2=96,$P$2=97),$Q54,0)","v":75853},null,{"$f":"+IF($P$2=33,$Q54,0)","v":0},null,{"$f":"+ROUND(+G54+J54+L54,0)","v":75853},null,{"$f":"+ROUND(OTCHET!E187+OTCHET!E190,0)","v":0},{"$f":"+ROUND(OTCHET!F187+OTCHET!F190,0)","v":75853},null,"разходни §§ 01-00 и 02-00"]
[null," 5. Разходи за осигурителни вноски",null,null,null,{"$f":"+IF($P$2=0,$P55,0)","v":0},{"$f":"+IF($P$2=0,$Q55,0)","v":0},null,{"$f":"+IF(OR($P$2=98,$P$2=42,$P$2=96,$P$2=97),$P55,0)","v":0},{"$f":"+IF(OR($P$2=98,$P$2=42,$P$2=96,$P$2=97),$Q55,0)","v":986},null,{"$f":"+IF($P$2=33,$Q55,0)","v":0},null,{"$f":"+ROUND(+G55+J55+L55,0)","v":986},null,{"$f":"+ROUND(OTCHET!E196+OTCHET!E204,0)","v":0},{"$f":"+ROUND(OTCHET!F196+OTCHET!F204,0)","v":986},null,"разходни §§ 05-00 и 08-00"]
[null," Общо за група І. Плащания за текущи нелихвени разходи",null,null,null,{"$f":"+ROUND(+SUM(F51:F55),0)","v":0},{"$f":"+ROUND(+SUM(G51:G55),0)","v":0},null,{"$f":"+ROUND(+SUM(I51:I55),0)","v":0},{"$f":"+ROUND(+SUM(J51:J55),0)","v":173807},null,{"$f":"+ROUND(+SUM(L51:L55),0)","v":0},null,{"$f":"+ROUND(+SUM(N51:N55),0)","v":173807},null,{"$f":"+ROUND(+SUM(P51:P55),0)","v":0},{"$f":"+ROUND(+SUM(Q51:Q55),0)","v":173807},null,"сборен ред за група І. Плащания за текущи нелихвени разходи"]
[null," IІ. Плащания за придобиване на нефинансови дълготрайни активи",null,null,null,null,null,null,null,null,null,null,null,null,null,null,null,null," IІ. Плащания за придобиване на нефинансови дълготрайни активи"]
[null," 1. Придобиване на земя",null,null,null,{"$f":"+IF($P$2=0,$P58,0)","v":0},{"$f":"+IF($P$2=0,$Q58,0)","v":0},null,{"$f":"+IF(OR($P$2=98,$P$2=42,$P$2=96,$P$2=97),$P58,0)","v":0},{"$f":"+IF(OR($P$2=98,$P$2=42,$P$2=96,$P$2=97),$Q58,0)","v":0},null,{"$f":"+IF($P$2=33,$Q58,0)","v":0},null,{"$f":"+ROUND(+G58+J58+L58,0)","v":0},null,{"$f":"+ROUND(OTCHET!E290,0)","v":0},{"$f":"+ROUND(OTCHET!F290,0)","v":0},null,"разходен § 54-00"]
[null," 2. Придобиване на други дълготрайни материални активи",null,null,null,{"$f":"+IF($P$2=0,$P59,0)","v":0},{"$f":"+IF($P$2=0,$Q59,0)","v":0},null,{"$f":"+IF(OR($P$2=98,$P$2=42,$P$2=96,$P$2=97),$P59,0)","v":0},{"$f":"+IF(OR($P$2=98,$P$2=42,$P$2=96,$P$2=97),$Q59,0)","v":0},null,{"$f":"+IF($P$2=33,$Q59,0)","v":0},null,{"$f":"+ROUND(+G59+J59+L59,0)","v":0},null,{"$f":"+ROUND(+OTCHET!E278+OTCHET!E279,0)","v":0},{"$f":"+ROUND(+OTCHET!F278+OTCHET!F279,0)","v":0},null,"разходни §§ 51-00 и 52-00"]
[null," 3. Придобиване на нематериални дълготрайни активи",null,null,null,{"$f":"+IF($P$2=0,$P60,0)","v":0},{"$f":"+IF($P$2=0,$Q60,0)","v":0},null,{"$f":"+IF(OR($P$2=98,$P$2=42,$P$2=96,$P$2=97),$P60,0)","v":0},{"$f":"+IF(OR($P$2=98,$P$2=42,$P$2=96,$P$2=97),$Q60,0)","v":286},null,{"$f":"+IF($P$2=33,$Q60,0)","v":0},null,{"$f":"+ROUND(+G60+J60+L60,0)","v":286},null,{"$f":"+ROUND(OTCHET!E287,0)","v":0},{"$f":"+ROUND(OTCHET!F287,0)","v":286},null,"разходен § 53-00"]
[null," 4. Нето-прираст на държавния резерв и изкупуване на земеделска продукция ",null,null,null,{"$f":"+IF($P$2=0,$P61,0)","v":0},{"$f":"+IF($P$2=0,$Q61,0)","v":0},null,{"$f":"+IF(OR($P$2=98,$P$2=42,$P$2=96,$P$2=97),$P61,0)","v":0},{"$f":"+IF(OR($P$2=98,$P$2=42,$P$2=96,$P$2=97),$Q61,0)","v":0},null,{"$f":"+IF($P$2=33,$Q61,0)","v":0},null,{"$f":"+ROUND(+G61+J61+L61,0)","v":0},null,{"$f":"+ROUND(OTCHET!E296,0)","v":0},{"$f":"+ROUND(OTCHET!F296,0)","v":0},null,"разходен § 57-00 и приходeн § 40-71 (-)"]
[null,"     в т. ч. постъпления от реализация на държавния резерв (-)",null,null,null,{"$f":"+IF($P$2=0,$P62,0)","v":0},{"$f":"+IF($P$2=0,$Q62,0)","v":0},null,{"$f":"+IF(OR($P$2=98,$P$2=42,$P$2=96,$P$2=97),$P62,0)","v":0},{"$f":"+IF(OR($P$2=98,$P$2=42,$P$2=96,$P$2=97),$Q62,0)","v":0},null,{"$f":"+IF($P$2=33,$Q62,0)","v":0},null,{"$f":"+ROUND(+G62+J62+L62,0)","v":0},null,{"$f":"+ROUND(OTCHET!E299,0)","v":0},{"$f":"+ROUND(OTCHET!F299,0)","v":0},null,"приходeн § 40-71 (-)"]
[null," Общо за група ІІ. Плащания за на нефинансови дълготрайни активи",null,null,null,{"$f":"+ROUND(+SUM(F58:F61),0)","v":0},{"$f":"+ROUND(+SUM(G58:G61),0)","v":0},null,{"$f":"+ROUND(+SUM(I58:I61),0)","v":0},{"$f":"+ROUND(+SUM(J58:J61),0)","v":286},null,{"$f":"+ROUND(+SUM(L58:L61),0)","v":0},null,{"$f":"+ROUND(+SUM(N58:N61),0)","v":286},null,{"$f":"+ROUND(+SUM(P58:P61),0)","v":0},{"$f":"+ROUND(+SUM(Q58:Q61),0)","v":286},null,"сборен ред за група ІІ. Плащания за на нефинансови дълготрайни активи"]
[null," III. Плащания за разходи за лихви",null,null,null,null,null,null,null,null,null,null,null,null,null,null,null,null," III. Плащания за разходи за лихви"]
[null," 1. Разходи за лихви по банкови заеми и държавни (общински) ценни книжа",null,null,null,{"$f":"+IF($P$2=0,$P65,0)","v":0},{"$f":"+IF($P$2=0,$Q65,0)","v":0},null,{"$f":"+IF(OR($P$2=98,$P$2=42,$P$2=96,$P$2=97),$P65,0)","v":0},{"$f":"+IF(OR($P$2=98,$P$2=42,$P$2=96,$P$2=97),$Q65,0)","v":0},null,{"$f":"+IF($P$2=33,$Q65,0)","v":0},null,{"$f":"+ROUND(+G65+J65+L65,0)","v":0},null,{"$f":"+ROUND(OTCHET!E227+OTCHET!E233+SUM(OTCHET!E236:E239),0)","v":0},{"$f":"+ROUND(OTCHET!F227+OTCHET!F233+SUM(OTCHET!F236:F239),0)","v":0},null,"разходни §§ 21-00 ÷ 28-00"]
[null," 2. Разходи за лихви по други заеми и дългове",null,null,null,{"$f":"+IF($P$2=0,$P66,0)","v":0},{"$f":"+IF($P$2=0,$Q66,0)","v":0},null,{"$f":"+IF(OR($P$2=98,$P$2=42,$P$2=96,$P$2=97),$P66,0)","v":0},{"$f":"+IF(OR($P$2=98,$P$2=42,$P$2=96,$P$2=97),$Q66,0)","v":0},null,{"$f":"+IF($P$2=33,$Q66,0)","v":0},null,{"$f":"+ROUND(+G66+J66+L66,0)","v":0},null,{"$f":"+ROUND(OTCHET!E243,0)","v":0},{"$f":"+ROUND(OTCHET!F243,0)","v":0},null,"разходен § 29-00"]
[null," Общо за група ІІІ. Плащания за разходи за лихви",null,null,null,{"$f":"+ROUND(+SUM(F65:F66),0)","v":0},{"$f":"+ROUND(+SUM(G65:G66),0)","v":0},null,{"$f":"+ROUND(+SUM(I65:I66),0)","v":0},{"$f":"+ROUND(+SUM(J65:J66),0)","v":0},null,{"$f":"+ROUND(+SUM(L65:L66),0)","v":0},null,{"$f":"+ROUND(+SUM(N65:N66),0)","v":0},null,{"$f":"+ROUND(+SUM(P65:P66),0)","v":0},{"$f":"+ROUND(+SUM(Q65:Q66),0)","v":0},null,"сборен ред за група ІІІ. Плащания за разходи за лихви"]
[null," IV. Трансфери към домакинства",null,null,null,null,null,null,null,null,null,null,null,null,null,null,null,null," IV. Трансфери към домакинства"]
[null," 1. Осигурителни плащания и други текущи трансфери",null,null,null,{"$f":"+IF($P$2=0,$P69,0)","v":0},{"$f":"+IF($P$2=0,$Q69,0)","v":0},null,{"$f":"+IF(OR($P$2=98,$P$2=42,$P$2=96,$P$2=97),$P69,0)","v":0},{"$f":"+IF(OR($P$2=98,$P$2=42,$P$2=96,$P$2=97),$Q69,0)","v":102442},null,{"$f":"+IF($P$2=33,$Q69,0)","v":0},null,{"$f":"+ROUND(+G69+J69+L69,0)","v":102442},null,{"$f":"+ROUND(+SUM(OTCHET!E258:E261)+IF(+OR(OTCHET!$F$12=\"5500\",OTCHET!$F$12=\"5600\"),+OTCHET!E300,0),0)","v":0},{"$f":"+ROUND(+SUM(OTCHET!F258:F261)+IF(+OR(OTCHET!$F$12=\"5500\",OTCHET!$F$12=\"5600\"),+OTCHET!F300,0),0)","v":102442},null,"разходни §§ 39-00 ÷ 42-00 (за НОИ и НЗОК - и разходен § 00-98) "]
[null," 2. Капиталови трансфери към домакинства",null,null,null,{"$f":"+IF($P$2=0,$P70,0)","v":0},{"$f":"+IF($P$2=0,$Q70,0)","v":0},null,{"$f":"+IF(OR($P$2=98,$P$2=42,$P$2=96,$P$2=97),$P70,0)","v":0},{"$f":"+IF(OR($P$2=98,$P$2=42,$P$2=96,$P$2=97),$Q70,0)","v":0},null,{"$f":"+IF($P$2=33,$Q70,0)","v":0},null,{"$f":"+ROUND(+G70+J70+L70,0)","v":0},null,{"$f":"+ROUND(+OTCHET!E295,0)","v":0},{"$f":"+ROUND(+OTCHET!F295,0)","v":0},null,"разходен § 55-04"]
[null," Общо за група ІV. Трансфери към домакинства",null,null,null,{"$f":"+ROUND(+SUM(F69:F70),0)","v":0},{"$f":"+ROUND(+SUM(G69:G70),0)","v":0},null,{"$f":"+ROUND(+SUM(I69:I70),0)","v":0},{"$f":"+ROUND(+SUM(J69:J70),0)","v":102442},null,{"$f":"+ROUND(+SUM(L69:L70),0)","v":0},null,{"$f":"+ROUND(+SUM(N69:N70),0)","v":102442},null,{"$f":"+ROUND(+SUM(P69:P70),0)","v":0},{"$f":"+ROUND(+SUM(Q69:Q70),0)","v":102442},null,"сборен ред за група ІV. Трансфери към домакинства"]
[null," V. Субсидии и капиталови трансфери",null,null,null,null,null,null,null,null,null,null,null,null,null,null,null,null," V. Субсидии и капиталови трансфери"]
[null," 1. Текущи субсидии и трансфери към други лица",null,null,null,{"$f":"+IF($P$2=0,$P73,0)","v":0},{"$f":"+IF($P$2=0,$Q73,0)","v":0},null,{"$f":"+IF(OR($P$2=98,$P$2=42,$P$2=96,$P$2=97),$P73,0)","v":0},{"$f":"+IF(OR($P$2=98,$P$2=42,$P$2=96,$P$2=97),$Q73,0)","v":241244},null,{"$f":"+IF($P$2=33,$Q73,0)","v":0},null,{"$f":"+ROUND(+G73+J73+L73,0)","v":241244},null,{"$f":"+ROUND(+OTCHET!E252+OTCHET!E268+OTCHET!E272+OTCHET!E273+OTCHET!E276,0)","v":0},{"$f":"+ROUND(+OTCHET!F252+OTCHET!F268+OTCHET!F272+OTCHET!F273+OTCHET!F276,0)","v":241244},null,"разходни §§ 33-00, 43-00, 44-00, 45-00 и 49-01"]
[null," 2. Капиталови трансфери към други лица",null,null,null,{"$f":"+IF($P$2=0,$P74,0)","v":0},{"$f":"+IF($P$2=0,$Q74,0)","v":0},null,{"$f":"+IF(OR($P$2=98,$P$2=42,$P$2=96,$P$2=97),$P74,0)","v":0},{"$f":"+IF(OR($P$2=98,$P$2=42,$P$2=96,$P$2=97),$Q74,0)","v":0},null,{"$f":"+IF($P$2=33,$Q74,0)","v":0},null,{"$f":"+ROUND(+G74+J74+L74,0)","v":0},null,{"$f":"+ROUND(OTCHET!E277+OTCHET!E291-OTCHET!E295,0)","v":0},{"$f":"+ROUND(OTCHET!F277+OTCHET!F291-OTCHET!F295,0)","v":0},null,"разходни §§ 49-02 и 55-00 (без § 55-04)"]
[null," Общо за група V. Субсидии и капиталови трансфери",null,null,null,{"$f":"+ROUND(+SUM(F73:F74),0)","v":0},{"$f":"+ROUND(+SUM(G73:G74),0)","v":0},null,{"$f":"+ROUND(+SUM(I73:I74),0)","v":0},{"$f":"+ROUND(+SUM(J73:J74),0)","v":241244},null,{"$f":"+ROUND(+SUM(L73:L74),0)","v":0},null,{"$f":"+ROUND(+SUM(N73:N74),0)","v":241244},null,{"$f":"+ROUND(+SUM(P73:P74),0)","v":0},{"$f":"+ROUND(+SUM(Q73:Q74),0)","v":241244},null,"сборен ред за група V. Субсидии и капиталови трансфери"]
[]
[null," Б. ОБЩО РАЗХОДИ И ПРИДОБИВАНЕ НА НЕФИНАНСОВИ АКТИВИ",null,null,null,{"$f":"+ROUND(F56+F63+F67+F71+F75,0)","v":0},{"$f":"+ROUND(G56+G63+G67+G71+G75,0)","v":0},null,{"$f":"+ROUND(I56+I63+I67+I71+I75,0)","v":0},{"$f":"+ROUND(J56+J63+J67+J71+J75,0)","v":517779},null,{"$f":"+ROUND(L56+L63+L67+L71+L75,0)","v":0},null,{"$f":"+ROUND(N56+N63+N67+N71+N75,0)","v":517779},null,{"$f":"+ROUND(P56+P63+P67+P71+P75,0)","v":0},{"$f":"+ROUND(Q56+Q63+Q67+Q71+Q75,0)","v":517779},null," сборен за ред Б. ОБЩО РАЗХОДИ И ПРИДОБИВАНЕ НА НЕФИН. АКТИВИ"]
[null," В. ТРАНСФЕРИ И БЕЗЛИХВЕНИ ЗАЕМИ М/У БЮДЖ. ОРГАНИЗАЦИИ",null,null,null,null,null,null,null,null,null,null,null,null,null,null,null,null," В. ТРАНСФЕРИ И БЕЗЛИХВЕНИ ЗАЕМИ М/У БЮДЖ. ОРГАНИЗАЦИИ"]
[null," 1. Трансфери между бюджетни организации (нето)",null,null,null,{"$f":"+IF($P$2=0,$P79,0)","v":0},{"$f":"+IF($P$2=0,$Q79,0)","v":0},null,{"$f":"+IF(OR($P$2=98,$P$2=42,$P$2=96,$P$2=97),$P79,0)","v":0},{"$f":"+IF(OR($P$2=98,$P$2=42,$P$2=96,$P$2=97),$Q79,0)","v":509753},null,{"$f":"+IF($P$2=33,$Q79,0)","v":0},null,{"$f":"+ROUND(+G79+J79+L79,0)","v":509753},null,{"$f":"+ROUND(OTCHET!E422,0)","v":0},{"$f":"+ROUND(OTCHET!F422,0)","v":509753},null,"трансферни параграфи §§ 30-00 ÷ 32-00 и 60-00 ÷ 69-00"]
[null," 2. Временни безлихвени заеми между бюджетни организации (нето)",null,null,null,{"$f":"+IF($P$2=0,$P80,0)","v":0},{"$f":"+IF($P$2=0,$Q80,0)","v":0},null,{"$f":"+IF(OR($P$2=98,$P$2=42,$P$2=96,$P$2=97),$P80,0)","v":0},{"$f":"+IF(OR($P$2=98,$P$2=42,$P$2=96,$P$2=97),$Q80,0)","v":0},null,{"$f":"+IF($P$2=33,$Q80,0)","v":0},null,{"$f":"+ROUND(+G80+J80+L80,0)","v":0},null,{"$f":"+ROUND(OTCHET!E432,0)","v":0},{"$f":"+ROUND(OTCHET!F432,0)","v":0},null,"трансферни параграфи §§ 74-00 ÷ 78-00"]
[null," В. ОБЩО ТРАНСФЕРИ И  ЗАЕМИ М/У БЮДЖЕТНИ ОРГАНИЗАЦИИ",null,null,null,{"$f":"+ROUND(F79+F80,0)","v":0},{"$f":"+ROUND(G79+G80,0)","v":0},null,{"$f":"+ROUND(I79+I80,0)","v":0},{"$f":"+ROUND(J79+J80,0)","v":509753},null,{"$f":"+ROUND(L79+L80,0)","v":0},null,{"$f":"+ROUND(N79+N80,0)","v":509753},null,{"$f":"+ROUND(P79+P80,0)","v":0},{"$f":"+ROUND(Q79+Q80,0)","v":509753},null," сборен ред за  В. ОБЩО ТРАНСФЕРИ И  ЗАЕМИ М/У БЮДЖ. ОРГАНИЗАЦИИ"]
[null,{"$f":"+IF(+SUM(F82:N82)=0,0,\"Контрола: дефицит/излишък = финансиране с обратен знак (Г. + Д. = 0)\")","v":0},null,null,null,{"$f":"+ROUND(F83,0)+ROUND(F84,0)","v":0},{"$f":"+ROUND(G83,0)+ROUND(G84,0)","v":0},null,{"$f":"+ROUND(I83,0)+ROUND(I84,0)","v":0},{"$f":"+ROUND(J83,0)+ROUND(J84,0)","v":0},null,{"$f":"+ROUND(L83,0)+ROUND(L84,0)","v":0},null,{"$f":"+ROUND(N83,0)+ROUND(N84,0)","v":0},null,{"$f":"+ROUND(P83,0)+ROUND(P84,0)","v":0},{"$f":"+ROUND(Q83,0)+ROUND(Q84,0)","v":0}]
[null,"Г. Бюджетно салдо: Дефицит (-) / излишък (+) = (А. - Б. + В. )",null,null,null,{"$f":"+ROUND(F48,0)-ROUND(F77,0)+ROUND(F81,0)","v":0},{"$f":"+ROUND(G48,0)-ROUND(G77,0)+ROUND(G81,0)","v":0},null,{"$f":"+ROUND(I48,0)-ROUND(I77,0)+ROUND(I81,0)","v":0},{"$f":"+ROUND(J48,0)-ROUND(J77,0)+ROUND(J81,0)","v":15313},null,{"$f":"+ROUND(L48,0)-ROUND(L77,0)+ROUND(L81,0)","v":0},null,{"$f":"+ROUND(N48,0)-ROUND(N77,0)+ROUND(N81,0)","v":15313},null,{"$f":"+ROUND(P48,0)-ROUND(P77,0)+ROUND(P81,0)","v":0},{"$f":"+ROUND(Q48,0)-ROUND(Q77,0)+ROUND(Q81,0)","v":15313},null,"Г. Бюджетно салдо: Дефицит (-) / излишък (+) = (А. - Б. + В. )"]
[null,"Д. Финансиране на бюджетното салдо (Е. + Ж. + З. - И.)",null,null,null,{"$f":"+ROUND(F101,0)+ROUND(F120,0)+ROUND(F127,0)-ROUND(F132,0)","v":0},{"$f":"+ROUND(G101,0)+ROUND(G120,0)+ROUND(G127,0)-ROUND(G132,0)","v":0},null,{"$f":"+ROUND(I101,0)+ROUND(I120,0)+ROUND(I127,0)-ROUND(I132,0)","v":0},{"$f":"+ROUND(J101,0)+ROUND(J120,0)+ROUND(J127,0)-ROUND(J132,0)","v":-15313},null,{"$f":"+ROUND(L101,0)+ROUND(L120,0)+ROUND(L127,0)-ROUND(L132,0)","v":0},null,{"$f":"+ROUND(N101,0)+ROUND(N120,0)+ROUND(N127,0)-ROUND(N132,0)","v":-15313},null,{"$f":"+ROUND(P101,0)+ROUND(P120,0)+ROUND(P127,0)-ROUND(P132,0)","v":0},{"$f":"+ROUND(Q101,0)+ROUND(Q120,0)+ROUND(Q127,0)-ROUND(Q132,0)","v":-15313},null,"Д. Финансиране на бюджетното салдо (Е. + Ж. + З. - И.)"]
[null," Е. ОПЕРАЦИИ С ФИНАНСОВИ АКТИВИ",null,null,null,null,null,null,null,null,null,null,null,null,null,null,null,null," Е. ОПЕРАЦИИ С ФИНАНСОВИ АКТИВИ"]
[null," I. Придобиване и реализиране на дялове, акции и участия",null,null,null,null,null,null,null,null,null,null,null,null,null,null,null,null," I. Придобиване и реализиране на дялове, акции и участия"]
[null," 1. Придобиване на дялове, акции и участия в предприятия (-)",null,null,null,{"$f":"+IF($P$2=0,$P87,0)","v":0},{"$f":"+IF($P$2=0,$Q87,0)","v":0},null,{"$f":"+IF(OR($P$2=98,$P$2=42,$P$2=96,$P$2=97),$P87,0)","v":0},{"$f":"+IF(OR($P$2=98,$P$2=42,$P$2=96,$P$2=97),$Q87,0)","v":0},null,{"$f":"+IF($P$2=33,$Q87,0)","v":0},null,{"$f":"+ROUND(+G87+J87+L87,0)","v":0},null,{"$f":"+ROUND(+OTCHET!E465+OTCHET!E466,0)","v":0},{"$f":"+ROUND(+OTCHET!F465+OTCHET!F466,0)","v":0},null,"финансиращи §§ 70-01 и 70-03"]
[null," 2. Постъпления от реализация и приватизация на дялове, акциии и участия",null,null,null,{"$f":"+IF($P$2=0,$P88,0)","v":0},{"$f":"+IF($P$2=0,$Q88,0)","v":0},null,{"$f":"+IF(OR($P$2=98,$P$2=42,$P$2=96,$P$2=97),$P88,0)","v":0},{"$f":"+IF(OR($P$2=98,$P$2=42,$P$2=96,$P$2=97),$Q88,0)","v":0},null,{"$f":"+IF($P$2=33,$Q88,0)","v":0},null,{"$f":"+ROUND(+G88+J88+L88,0)","v":0},null,{"$f":"+ROUND(OTCHET!E467+OTCHET!E538,0)","v":0},{"$f":"+ROUND(OTCHET!F467+OTCHET!F538,0)","v":0},null,"финансиращи §§ 70-10 и 90-00"]
[null," Общо за група І. Придобиване и реализиране на дялове, акции и участия",null,null,null,{"$f":"+ROUND(+SUM(F87:F88),0)","v":0},{"$f":"+ROUND(+SUM(G87:G88),0)","v":0},null,{"$f":"+ROUND(+SUM(I87:I88),0)","v":0},{"$f":"+ROUND(+SUM(J87:J88),0)","v":0},null,{"$f":"+ROUND(+SUM(L87:L88),0)","v":0},null,{"$f":"+ROUND(+SUM(N87:N88),0)","v":0},null,{"$f":"+ROUND(+SUM(P87:P88),0)","v":0},{"$f":"+ROUND(+SUM(Q87:Q88),0)","v":0},null," Сборен ред за група І. Придобиване и реализиране на дялове, акции и участия"]
[null," IІ. Предоставени заеми, възмездна фин. помощ и активирани гаранции",null,null,null,null,null,null,null,null,null,null,null,null,null,null,null,null," IІ. Предоставени заеми, възмездна фин. помощ и активирани гаранции"]
[null," 1. Предоставени заеми и възмездна финансова помощ (-)",null,null,null,{"$f":"+IF($P$2=0,$P91,0)","v":0},{"$f":"+IF($P$2=0,$Q91,0)","v":0},null,{"$f":"+IF(OR($P$2=98,$P$2=42,$P$2=96,$P$2=97),$P91,0)","v":0},{"$f":"+IF(OR($P$2=98,$P$2=42,$P$2=96,$P$2=97),$Q91,0)","v":0},null,{"$f":"+IF($P$2=33,$Q91,0)","v":0},null,{"$f":"+ROUND(+G91+J91+L91,0)","v":0},null,{"$f":"+ROUND(OTCHET!E469+OTCHET!E472+OTCHET!E482,0)","v":0},{"$f":"+ROUND(OTCHET!F469+OTCHET!F472+OTCHET!F482,0)","v":0},null,"финансиращи §§ 71-01, 72-01 и 79-01"]
[null," 2. Получени погашения по предоставени заеми и възмездна фин. помощ (+)",null,null,null,{"$f":"+IF($P$2=0,$P92,0)","v":0},{"$f":"+IF($P$2=0,$Q92,0)","v":0},null,{"$f":"+IF(OR($P$2=98,$P$2=42,$P$2=96,$P$2=97),$P92,0)","v":0},{"$f":"+IF(OR($P$2=98,$P$2=42,$P$2=96,$P$2=97),$Q92,0)","v":0},null,{"$f":"+IF($P$2=33,$Q92,0)","v":0},null,{"$f":"+ROUND(+G92+J92+L92,0)","v":0},null,{"$f":"+ROUND(OTCHET!E470+OTCHET!E473+OTCHET!E483+OTCHET!E505+IF(+OTCHET!E497>0,+OTCHET!E497,0),0)","v":0},{"$f":"+ROUND(OTCHET!F470+OTCHET!F473+OTCHET!F483+OTCHET!F505+IF(+OTCHET!F497>0,+OTCHET!F497,0),0)","v":0},null,"финансиращи §§ 71-02, 72-02, 79-02 и 82-00 и § 80-80 (ако е \"плюс\")"]
[null," 3. Плащания по активирани гаранции  - главници по гарантирани заеми",null,null,null,{"$f":"+IF($P$2=0,$P93,0)","v":0},{"$f":"+IF($P$2=0,$Q93,0)","v":0},null,{"$f":"+IF(OR($P$2=98,$P$2=42,$P$2=96,$P$2=97),$P93,0)","v":0},{"$f":"+IF(OR($P$2=98,$P$2=42,$P$2=96,$P$2=97),$Q93,0)","v":0},null,{"$f":"+IF($P$2=33,$Q93,0)","v":0},null,{"$f":"+ROUND(+G93+J93+L93,0)","v":0},null,{"$f":"+ROUND(+SUM(OTCHET!E475:E477),0)","v":0},{"$f":"+ROUND(+SUM(OTCHET!F475:F477),0)","v":0},null,"финансиращи §§ 73-20, 73-69 и 73-70"]
[null," 4. Възстановени суми по активирани гаранции - главници",null,null,null,{"$f":"+IF($P$2=0,$P94,0)","v":0},{"$f":"+IF($P$2=0,$Q94,0)","v":0},null,{"$f":"+IF(OR($P$2=98,$P$2=42,$P$2=96,$P$2=97),$P94,0)","v":0},{"$f":"+IF(OR($P$2=98,$P$2=42,$P$2=96,$P$2=97),$Q94,0)","v":0},null,{"$f":"+IF($P$2=33,$Q94,0)","v":0},null,{"$f":"+ROUND(+G94+J94+L94,0)","v":0},null,{"$f":"+ROUND(+SUM(OTCHET!E478:E479),0)","v":0},{"$f":"+ROUND(+SUM(OTCHET!F478:F479),0)","v":0},null,"финансиращи §§ 73-91 и 73-92"]
[null," Общо за група ІІ. Предоставени заеми, възмездна фин. помощ и гаранции",null,null,null,{"$f":"+ROUND(+SUM(F91:F94),0)","v":0},{"$f":"+ROUND(+SUM(G91:G94),0)","v":0},null,{"$f":"+ROUND(+SUM(I91:I94),0)","v":0},{"$f":"+ROUND(+SUM(J91:J94),0)","v":0},null,{"$f":"+ROUND(+SUM(L91:L94),0)","v":0},null,{"$f":"+ROUND(+SUM(N91:N94),0)","v":0},null,{"$f":"+ROUND(+SUM(P91:P94),0)","v":0},{"$f":"+ROUND(+SUM(Q91:Q94),0)","v":0},null," Сборен ред за група ІІ. Предоставени заеми, възмездна фин. помощ и гаранции"]
[null," IІI. Други операции с финансови активи",null,null,null,null,null,null,null,null,null,null,null,null,null,null,null,null," IІI. Други операции с финансови активи"]
[null," 1. Нето-операции с други ценни книжа  и фин. активи (кеш-мениджмънт)",null,null,null,{"$f":"+IF($P$2=0,$P97,0)","v":0},{"$f":"+IF($P$2=0,$Q97,0)","v":0},null,{"$f":"+IF(OR($P$2=98,$P$2=42,$P$2=96,$P$2=97),$P97,0)","v":0},{"$f":"+IF(OR($P$2=98,$P$2=42,$P$2=96,$P$2=97),$Q97,0)","v":0},null,{"$f":"+IF($P$2=33,$Q97,0)","v":0},null,{"$f":"+ROUND(+G97+J97+L97,0)","v":0},null,{"$f":"+ROUND(OTCHET!E539+OTCHET!E544,0)","v":0},{"$f":"+ROUND(OTCHET!F539+OTCHET!F544,0)","v":0},null,"финансиращи §§ 91-01 и 92-00"]
[null," 2. Други операции с финансови активи (нето)",null,null,null,{"$f":"+IF($P$2=0,$P98,0)","v":0},{"$f":"+IF($P$2=0,$Q98,0)","v":0},null,{"$f":"+IF(OR($P$2=98,$P$2=42,$P$2=96,$P$2=97),$P98,0)","v":0},{"$f":"+IF(OR($P$2=98,$P$2=42,$P$2=96,$P$2=97),$Q98,0)","v":0},null,{"$f":"+IF($P$2=33,$Q98,0)","v":0},null,{"$f":"+ROUND(+G98+J98+L98,0)","v":0},null,{"$f":"+ROUND(+OTCHET!E480+OTCHET!E561+OTCHET!E563,0)","v":0},{"$f":"+ROUND(+OTCHET!F480+OTCHET!F561+OTCHET!F563,0)","v":0},null,"финансиращи §§ 73-93, 93-36, 93-38"]
[null," Общо за група ІІІ. Други операции с финансови активи",null,null,null,{"$f":"+ROUND(+SUM(F97:F98),0)","v":0},{"$f":"+ROUND(+SUM(G97:G98),0)","v":0},null,{"$f":"+ROUND(+SUM(I97:I98),0)","v":0},{"$f":"+ROUND(+SUM(J97:J98),0)","v":0},null,{"$f":"+ROUND(+SUM(L97:L98),0)","v":0},null,{"$f":"+ROUND(+SUM(N97:N98),0)","v":0},null,{"$f":"+ROUND(+SUM(P97:P98),0)","v":0},{"$f":"+ROUND(+SUM(Q97:Q98),0)","v":0},null,"  Сборен ред за група ІІІ. Други операции с финансови активи"]
[]
[null," Е. ОБЩО ОПЕРАЦИИ С ФИНАНСОВИ АКТИВИ",null,null,null,{"$f":"+ROUND(F89+F95+F99,0)","v":0},{"$f":"+ROUND(G89+G95+G99,0)","v":0},null,{"$f":"+ROUND(I89+I95+I99,0)","v":0},{"$f":"+ROUND(J89+J95+J99,0)","v":0},null,{"$f":"+ROUND(L89+L95+L99,0)","v":0},null,{"$f":"+ROUND(N89+N95+N99,0)","v":0},null,{"$f":"+ROUND(P89+P95+P99,0)","v":0},{"$f":"+ROUND(Q89+Q95+Q99,0)","v":0},null," Сборен ред за Е. ОБЩО ОПЕРАЦИИ С ФИНАНСОВИ АКТИВИ"]
[null," Ж. ОПЕРАЦИИ С ФИНАНСОВИ ПАСИВИ",null,null,null,null,null,null,null,null,null,null,null,null,null,null,null,null," Ж. ОПЕРАЦИИ С ФИНАНСОВИ ПАСИВИ"]
[null," I. Емитирани държавни (общински) ценни книжа",null,null,null,null,null,null,null,null,null,null,null,null,null,null,null,null," I. Емитирани държавни (общински) ценни книжа"]
[null," 1. Постъпления от емисии на държавни (общински) ценни книжа (+)",null,null,null,{"$f":"+IF($P$2=0,$P104,0)","v":0},{"$f":"+IF($P$2=0,$Q104,0)","v":0},null,{"$f":"+IF(OR($P$2=98,$P$2=42,$P$2=96,$P$2=97),$P104,0)","v":0},{"$f":"+IF(OR($P$2=98,$P$2=42,$P$2=96,$P$2=97),$Q104,0)","v":0},null,{"$f":"+IF($P$2=33,$Q104,0)","v":0},null,{"$f":"+ROUND(+G104+J104+L104,0)","v":0},null,{"$f":"+ROUND(OTCHET!E501+OTCHET!E502+OTCHET!E515,0)","v":0},{"$f":"+ROUND(OTCHET!F501+OTCHET!F502+OTCHET!F515,0)","v":0},null,"финансиращи §§ 81-11, 81-12 и 85-00"]
[null," 2. Погашения по емисии на държавни (общински) ценни книжа) (-)",null,null,null,{"$f":"+IF($P$2=0,$P105,0)","v":0},{"$f":"+IF($P$2=0,$Q105,0)","v":0},null,{"$f":"+IF(OR($P$2=98,$P$2=42,$P$2=96,$P$2=97),$P105,0)","v":0},{"$f":"+IF(OR($P$2=98,$P$2=42,$P$2=96,$P$2=97),$Q105,0)","v":0},null,{"$f":"+IF($P$2=33,$Q105,0)","v":0},null,{"$f":"+ROUND(+G105+J105+L105,0)","v":0},null,{"$f":"+ROUND(OTCHET!E503+OTCHET!E504+OTCHET!E519,0)","v":0},{"$f":"+ROUND(OTCHET!F503+OTCHET!F504+OTCHET!F519,0)","v":0},null,"финансиращи §§ 81-21, 81-22 и 86-00"]
[null," Общо за група І. Емитирани държавни (общински) ценни книжа",null,null,null,{"$f":"+ROUND(+SUM(F104:F105),0)","v":0},{"$f":"+ROUND(+SUM(G104:G105),0)","v":0},null,{"$f":"+ROUND(+SUM(I104:I105),0)","v":0},{"$f":"+ROUND(+SUM(J104:J105),0)","v":0},null,{"$f":"+ROUND(+SUM(L104:L105),0)","v":0},null,{"$f":"+ROUND(+SUM(N104:N105),0)","v":0},null,{"$f":"+ROUND(+SUM(P104:P105),0)","v":0},{"$f":"+ROUND(+SUM(Q104:Q105),0)","v":0},null," Сборен ред за група І. Емитирани държавни (общински) ценни книжа"]
[null," IІ. Заеми от банки и други лица",null,null,null,null,null,null,null,null,null,null,null,null,null,null,null,null," IІ. Заеми от банки и други лица"]
[null," 1. Получени банкови и други заеми (+)",null,null,null,{"$f":"+IF($P$2=0,$P108,0)","v":0},{"$f":"+IF($P$2=0,$Q108,0)","v":0},null,{"$f":"+IF(OR($P$2=98,$P$2=42,$P$2=96,$P$2=97),$P108,0)","v":0},{"$f":"+IF(OR($P$2=98,$P$2=42,$P$2=96,$P$2=97),$Q108,0)","v":0},null,{"$f":"+IF($P$2=33,$Q108,0)","v":0},null,{"$f":"+ROUND(+G108+J108+L108,0)","v":0},null,{"$f":"+ROUND(OTCHET!E485+OTCHET!E486+OTCHET!E489+OTCHET!E490+OTCHET!E493+OTCHET!E494+OTCHET!E498+OTCHET!E507+OTCHET!E508+OTCHET!E511+OTCHET!E512,0)","v":0},{"$f":"+ROUND(OTCHET!F485+OTCHET!F486+OTCHET!F489+OTCHET!F490+OTCHET!F493+OTCHET!F494+OTCHET!F498+OTCHET!F507+OTCHET!F508+OTCHET!F511+OTCHET!F512,0)","v":0},null,"финансиращи §§ 80-11, 80-12, 80-31, 80-32, 80-51, 80-52, 80-97, 83-11, 83-12, 83-71, 83-72 "]
[null," 2. Погашения по получени банкови и други заеми (-)",null,null,null,{"$f":"+IF($P$2=0,$P109,0)","v":0},{"$f":"+IF($P$2=0,$Q109,0)","v":0},null,{"$f":"+IF(OR($P$2=98,$P$2=42,$P$2=96,$P$2=97),$P109,0)","v":0},{"$f":"+IF(OR($P$2=98,$P$2=42,$P$2=96,$P$2=97),$Q109,0)","v":0},null,{"$f":"+IF($P$2=33,$Q109,0)","v":0},null,{"$f":"+ROUND(+G109+J109+L109,0)","v":0},null,{"$f":"+ROUND(OTCHET!E487+OTCHET!E488+OTCHET!E491+OTCHET!E492+OTCHET!E495+OTCHET!E496+OTCHET!E499+OTCHET!E509+OTCHET!E510+OTCHET!E513+OTCHET!E514+IF(+OTCHET!E497<0,+OTCHET!E497,0),0)","v":0},{"$f":"+ROUND(OTCHET!F487+OTCHET!F488+OTCHET!F491+OTCHET!F492+OTCHET!F495+OTCHET!F496+OTCHET!F499+OTCHET!F509+OTCHET!F510+OTCHET!F513+OTCHET!F514+IF(+OTCHET!F497<0,+OTCHET!F497,0),0)","v":0},null,"§§ 80-17, 80-18, 80-37, 80-38, 80-57, 80-58, 80-98, 83-21, 83-22, 83-81, 83-82 и § 80-80 (ако е \"минус\")"]
[null," Общо за група ІІ. Заеми от банки и други лица",null,null,null,{"$f":"+ROUND(+SUM(F108:F109),0)","v":0},{"$f":"+ROUND(+SUM(G108:G109),0)","v":0},null,{"$f":"+ROUND(+SUM(I108:I109),0)","v":0},{"$f":"+ROUND(+SUM(J108:J109),0)","v":0},null,{"$f":"+ROUND(+SUM(L108:L109),0)","v":0},null,{"$f":"+ROUND(+SUM(N108:N109),0)","v":0},null,{"$f":"+ROUND(+SUM(P108:P109),0)","v":0},{"$f":"+ROUND(+SUM(Q108:Q109),0)","v":0},null,"Сборен ред за група ІІ. Заеми от банки и други лица"]
[null," IІI. Финансиране чрез финансов лизинг и търговски кредит",null,null,null,null,null,null,null,null,null,null,null,null,null,null,null,null," IІI. Финансиране чрез финансов лизинг и търговски кредит"]
[null," 1. Получено финансиране по финансов лизинг и търговски кредит (+)",null,null,null,{"$f":"+IF($P$2=0,$P112,0)","v":0},{"$f":"+IF($P$2=0,$Q112,0)","v":0},null,{"$f":"+IF(OR($P$2=98,$P$2=42,$P$2=96,$P$2=97),$P112,0)","v":0},{"$f":"+IF(OR($P$2=98,$P$2=42,$P$2=96,$P$2=97),$Q112,0)","v":0},null,{"$f":"+IF($P$2=33,$Q112,0)","v":0},null,{"$f":"+ROUND(+G112+J112+L112,0)","v":0},null,{"$f":"+ROUND(OTCHET!E550,0)","v":0},{"$f":"+ROUND(OTCHET!F550,0)","v":0},null,"финансиращ § 93-17"]
[null," 2. Погашения по финансов лизинг и търговски кредит (-)",null,null,null,{"$f":"+IF($P$2=0,$P113,0)","v":0},{"$f":"+IF($P$2=0,$Q113,0)","v":0},null,{"$f":"+IF(OR($P$2=98,$P$2=42,$P$2=96,$P$2=97),$P113,0)","v":0},{"$f":"+IF(OR($P$2=98,$P$2=42,$P$2=96,$P$2=97),$Q113,0)","v":0},null,{"$f":"+IF($P$2=33,$Q113,0)","v":0},null,{"$f":"+ROUND(+G113+J113+L113,0)","v":0},null,{"$f":"+ROUND(OTCHET!E551,0)","v":0},{"$f":"+ROUND(OTCHET!F551,0)","v":0},null,"финансиращ § 93-18"]
[null," Общо за група ІІІ. Финансиране чрез фин. лизинг и търговски кредит",null,null,null,{"$f":"+ROUND(+SUM(F112:F113),0)","v":0},{"$f":"+ROUND(+SUM(G112:G113),0)","v":0},null,{"$f":"+ROUND(+SUM(I112:I113),0)","v":0},{"$f":"+ROUND(+SUM(J112:J113),0)","v":0},null,{"$f":"+ROUND(+SUM(L112:L113),0)","v":0},null,{"$f":"+ROUND(+SUM(N112:N113),0)","v":0},null,{"$f":"+ROUND(+SUM(P112:P113),0)","v":0},{"$f":"+ROUND(+SUM(Q112:Q113),0)","v":0},null,"Сборен ред за група ІІІ. Финансиране чрез фин. лизинг и търговски кредит"]
[null,"ІV. Други операции с финансови пасиви",null,null,null,null,null,null,null,null,null,null,null,null,null,null,null,null,"ІV. Други операции с финансови пасиви"]
[null," 1. Операции с чужди средства (нето)",null,null,null,{"$f":"+IF($P$2=0,$P116,0)","v":0},{"$f":"+IF($P$2=0,$Q116,0)","v":0},null,{"$f":"+IF(OR($P$2=98,$P$2=42,$P$2=96,$P$2=97),$P116,0)","v":0},{"$f":"+IF(OR($P$2=98,$P$2=42,$P$2=96,$P$2=97),$Q116,0)","v":0},null,{"$f":"+IF($P$2=33,$Q116,0)","v":0},null,{"$f":"+ROUND(+G116+J116+L116,0)","v":0},null,{"$f":"+ROUND(OTCHET!E548+OTCHET!E549+OTCHET!E565+OTCHET!E566,0)","v":0},{"$f":"+ROUND(OTCHET!F548+OTCHET!F549+OTCHET!F565+OTCHET!F566,0)","v":0},null,"финансиращи §§ 93-01, 93-10, 93-55 и 93-56"]
[null," 2. Друго финансиране - операции с пасиви (нето)",null,null,null,{"$f":"+IF($P$2=0,$P117,0)","v":0},{"$f":"+IF($P$2=0,$Q117,0)","v":0},null,{"$f":"+IF(OR($P$2=98,$P$2=42,$P$2=96,$P$2=97),$P117,0)","v":0},{"$f":"+IF(OR($P$2=98,$P$2=42,$P$2=96,$P$2=97),$Q117,0)","v":0},null,{"$f":"+IF($P$2=33,$Q117,0)","v":0},null,{"$f":"+ROUND(+G117+J117+L117,0)","v":0},null,{"$f":"+ROUND(OTCHET!E562+OTCHET!E564,0)","v":0},{"$f":"+ROUND(OTCHET!F562+OTCHET!F564,0)","v":0},null,"финансиращи §§ 93-37 и 93-39"]
[null," Общо за група ІV. Други операции с финансови пасиви",null,null,null,{"$f":"+ROUND(+SUM(F116:F117),0)","v":0},{"$f":"+ROUND(+SUM(G116:G117),0)","v":0},null,{"$f":"+ROUND(+SUM(I116:I117),0)","v":0},{"$f":"+ROUND(+SUM(J116:J117),0)","v":0},null,{"$f":"+ROUND(+SUM(L116:L117),0)","v":0},null,{"$f":"+ROUND(+SUM(N116:N117),0)","v":0},null,{"$f":"+ROUND(+SUM(P116:P117),0)","v":0},{"$f":"+ROUND(+SUM(Q116:Q117),0)","v":0},null,"Сборен ред за група ІV. Други операции с финансови пасиви"]
[]
[null," Ж. ОБЩО ОПЕРАЦИИ С ФИНАНСОВИ ПАСИВИ",null,null,null,{"$f":"+ROUND(F106+F110+F114+F118,0)","v":0},{"$f":"+ROUND(G106+G110+G114+G118,0)","v":0},null,{"$f":"+ROUND(I106+I110+I114+I118,0)","v":0},{"$f":"+ROUND(J106+J110+J114+J118,0)","v":0},null,{"$f":"+ROUND(L106+L110+L114+L118,0)","v":0},null,{"$f":"+ROUND(N106+N110+N114+N118,0)","v":0},null,{"$f":"+ROUND(P106+P110+P114+P118,0)","v":0},{"$f":"+ROUND(Q106+Q110+Q114+Q118,0)","v":0},null," Сборен ред за Ж. ОБЩО ОПЕРАЦИИ С ФИНАНСОВИ ПАСИВИ"]
[null," З. НЕТО-РАЗЧЕТИ И ОПЕРАЦИИ",null,null,null,null,null,null,null,null,null,null,null,null,null,null,null,null," З. НЕТО-РАЗЧЕТИ И ОПЕРАЦИИ"]
[null," 1. Нето-операции за сметка на средства от Европейския съюз",null,null,null,{"$f":"+IF($P$2=0,$P122,0)","v":0},{"$f":"+IF($P$2=0,$Q122,0)","v":0},null,{"$f":"+IF(OR($P$2=98,$P$2=42,$P$2=96,$P$2=97),$P122,0)","v":0},{"$f":"+IF(OR($P$2=98,$P$2=42,$P$2=96,$P$2=97),$Q122,0)","v":0},null,{"$f":"+IF($P$2=33,$Q122,0)","v":0},null,{"$f":"+ROUND(+G122+J122+L122,0)","v":0},null,{"$f":"+ROUND(+SUM(OTCHET!E552:E559),0)","v":0},{"$f":"+ROUND(+SUM(OTCHET!F552:F559),0)","v":0},null,"финансиращи §§ 93-21 ÷ 93-28"]
[null," 2. Операции за сметка на други бюджети, сметки и фондове",null,null,null,{"$f":"+IF($P$2=0,$P123,0)","v":0},{"$f":"+IF($P$2=0,$Q123,0)","v":0},null,{"$f":"+IF(OR($P$2=98,$P$2=42,$P$2=96,$P$2=97),$P123,0)","v":0},{"$f":"+IF(OR($P$2=98,$P$2=42,$P$2=96,$P$2=97),$Q123,0)","v":-22660},null,{"$f":"+IF($P$2=33,$Q123,0)","v":0},null,{"$f":"+ROUND(+G123+J123+L123,0)","v":-22660},null,{"$f":"+ROUND(OTCHET!E527,0)","v":0},{"$f":"+ROUND(OTCHET!F527,0)","v":-22660},null,"финансиращ § 88-00"]
[null," 3. Други нето-разчети и операции на бюджетни организации",null,null,null,{"$f":"+IF($P$2=0,$P124,0)","v":0},{"$f":"+IF($P$2=0,$Q124,0)","v":0},null,{"$f":"+IF(OR($P$2=98,$P$2=42,$P$2=96,$P$2=97),$P124,0)","v":0},{"$f":"+IF(OR($P$2=98,$P$2=42,$P$2=96,$P$2=97),$Q124,0)","v":7347},null,{"$f":"+IF($P$2=33,$Q124,0)","v":0},null,{"$f":"+ROUND(+G124+J124+L124,0)","v":7347},null,{"$f":"+ROUND(+OTCHET!E524+OTCHET!E534+OTCHET!E560+OTCHET!E567+OTCHET!E568+OTCHET!E582+OTCHET!E594+IF(AND(OTCHET!$F$12=\"9900\",+OTCHET!$E$15=0),+OTCHET!E589,0),0)","v":0},{"$f":"+ROUND(+OTCHET!F524+OTCHET!F534+OTCHET!F560+OTCHET!F567+OTCHET!F568+OTCHET!F582+OTCHET!F594+IF(AND(OTCHET!$F$12=\"9900\",+OTCHET!$E$15=0,+(OTCHET!F592+OTCHET!F593)>=0,+(OTCHET!F590+OTCHET!F591)<=0),+OTCHET!F589,0),0)","v":7347},null,"финансиращи §§ 87-00, 89-00, 93-30, 93-95, 93-96, 95-13 и 98-00 (за ЦБ - и § 96-01 и 96-02)"]
[null,"     в т.ч. изменение на средства по сметки, включени в единната сметка",null,null,null,{"$f":"+IF($P$2=0,$P125,0)","v":0},{"$f":"+IF($P$2=0,$Q125,0)","v":0},null,null,null,null,null,null,{"$f":"+ROUND(+G125+J125+L125,0)","v":0},null,{"$f":"+ROUND(+IF(AND(OTCHET!$F$12=\"9900\",+OTCHET!$E$15=0,+(OTCHET!E592+OTCHET!E593)>0,+(OTCHET!E590+OTCHET!E591)<0),+OTCHET!E589,0),0)","v":0},{"$f":"+ROUND(+IF(AND(OTCHET!$F$12=\"9900\",+OTCHET!$E$15=0,+(OTCHET!F592+OTCHET!F593)>=0,+(OTCHET!F590+OTCHET!F591)<=0),+OTCHET!F589,0),0)","v":0},null,"финансиращ § 96-00"]
[null," 4. Разлики от закръгления в хил. лв. (+/-)",null,null,null,null,null,null,null,null,null,null,null,{"$f":"+ROUND(+G126+J126+L126,0)","v":0},null,null,null,null,"прилага се само за отчета в хил. лв."]
[null," З. ОБЩО НЕТО-РАЗЧЕТИ И ДРУГИ ОПЕРАЦИИ",null,null,null,{"$f":"+ROUND(+F122+F123+F124+F126,0)","v":0},{"$f":"+ROUND(+G122+G123+G124+G126,0)","v":0},null,{"$f":"+ROUND(+I122+I123+I124+I126,0)","v":0},{"$f":"+ROUND(+J122+J123+J124+J126,0)","v":-15313},null,{"$f":"+ROUND(+L122+L123+L124+L126,0)","v":0},null,{"$f":"+ROUND(+N122+N123+N124+N126,0)","v":-15313},null,{"$f":"+ROUND(+P122+P123+P124+P126,0)","v":0},{"$f":"+ROUND(+Q122+Q123+Q124+Q126,0)","v":-15313},null," Сборен ред за З. ОБЩО НЕТО-РАЗЧЕТИ И ДРУГИ НЕТНИ ПОЗИЦИИ"]
[null," И. ИЗМЕНЕНИЕ НА ПАРИЧНИТЕ СРЕДСТВА",null,null,null,null,null,null,null,null,null,null,null,null,null,null,null,null," И. ИЗМЕНЕНИЕ НА ПАРИЧНИТЕ СРЕДСТВА"]
[null," 1. Наличности на парични средства в началото на отчетния период",null,null,null,{"$f":"+IF($P$2=0,$P129,0)","v":0},{"$f":"+IF($P$2=0,$Q129,0)","v":0},null,{"$f":"+IF(OR($P$2=98,$P$2=42,$P$2=96,$P$2=97),$P129,0)","v":0},{"$f":"+IF(OR($P$2=98,$P$2=42,$P$2=96,$P$2=97),$Q129,0)","v":0},null,{"$f":"+IF($P$2=33,$Q129,0)","v":0},null,{"$f":"+ROUND(+G129+J129+L129,0)","v":0},null,{"$f":"+ROUND(+SUM(OTCHET!E570:E575)+SUM(OTCHET!E584:E585)+IF(AND(OTCHET!$F$12=\"9900\",+OTCHET!$E$15=0),0,SUM(OTCHET!E590:E591)),0)","v":0},{"$f":"+ROUND(+SUM(OTCHET!F570:F575)+SUM(OTCHET!F584:F585)+IF(AND(OTCHET!$F$12=\"9900\",+OTCHET!$E$15=0),0,SUM(OTCHET!F590:F591)),0)","v":0},null,"финансиращи §§ 95-01 ÷ 95-06, 95-21, 95-22, 96-01 и 96-03 (за ЦБ -  без § 96-01 и 96-03)"]
[null," 2. Преоценка на наличности в чудестранна валута в края на отчетния период",null,null,null,{"$f":"+IF($P$2=0,$P130,0)","v":0},{"$f":"+IF($P$2=0,$Q130,0)","v":0},null,{"$f":"+IF(OR($P$2=98,$P$2=42,$P$2=96,$P$2=97),$P130,0)","v":0},{"$f":"+IF(OR($P$2=98,$P$2=42,$P$2=96,$P$2=97),$Q130,0)","v":0},null,{"$f":"+IF($P$2=33,$Q130,0)","v":0},null,{"$f":"+ROUND(+G130+J130+L130,0)","v":0},null,{"$f":"+ROUND(OTCHET!E583+OTCHET!E588,0)","v":0},{"$f":"+ROUND(OTCHET!F583+OTCHET!F588,0)","v":0},null,"финансиращи §§ 95-14 и 95-49"]
[null," 3. Наличности на парични средства в края на отчетния период",null,null,null,{"$f":"+IF($P$2=0,$P131,0)","v":0},{"$f":"+IF($P$2=0,$Q131,0)","v":0},null,{"$f":"+IF(OR($P$2=98,$P$2=42,$P$2=96,$P$2=97),$P131,0)","v":0},{"$f":"+IF(OR($P$2=98,$P$2=42,$P$2=96,$P$2=97),$Q131,0)","v":0},null,{"$f":"+IF($P$2=33,$Q131,0)","v":0},null,{"$f":"+ROUND(+G131+J131+L131,0)","v":0},null,{"$f":"+ROUND(-SUM(OTCHET!E576:E581)-SUM(OTCHET!E586:E587)-IF(AND(OTCHET!$F$12=\"9900\",+OTCHET!$E$15=0),0,SUM(OTCHET!E592:E593)),0)","v":0},{"$f":"+ROUND(-SUM(OTCHET!F576:F581)-SUM(OTCHET!F586:F587)-IF(AND(OTCHET!$F$12=\"9900\",+OTCHET!$E$15=0),0,SUM(OTCHET!F592:F593)),0)","v":0},null,"(-) §§ 95-07 ÷ 95-12, 95-28, 95-29, 96-07 и 96-09 (за ЦБ - § без 96-07 и 96-09)"]
[null," И. ИЗМЕНЕНИЕ НА ПАРИЧНИТЕ СРЕДСТВА (3. - 1. - 2.)",null,null,null,{"$f":"+ROUND(+F131-F129-F130,0)","v":0},{"$f":"+ROUND(+G131-G129-G130,0)","v":0},null,{"$f":"+ROUND(+I131-I129-I130,0)","v":0},{"$f":"+ROUND(+J131-J129-J130,0)","v":0},null,{"$f":"+ROUND(+L131-L129-L130,0)","v":0},null,{"$f":"+ROUND(+N131-N129-N130,0)","v":0},null,{"$f":"+ROUND(+P131-P129-P130,0)","v":0},{"$f":"+ROUND(+Q131-Q129-Q130,0)","v":0},null," Сборен ред за И. ИЗМЕНЕНИЕ НА ПАРИЧНИТЕ СРЕДСТВА (3. - 1. - 2.)"]
[null,{"$f":"+IF(+SUM(F133:N133)=0,0,\"Контрола: дефицит/излишък = финансиране с обратен знак (Г. + Д. = 0)\")","v":0},null,null,null,{"$f":"+ROUND(F83,0)+ROUND(F84,0)","v":0},{"$f":"+ROUND(G83,0)+ROUND(G84,0)","v":0},null,{"$f":"+ROUND(I83,0)+ROUND(I84,0)","v":0},{"$f":"+ROUND(J83,0)+ROUND(J84,0)","v":0},null,{"$f":"+ROUND(L83,0)+ROUND(L84,0)","v":0},null,{"$f":"+ROUND(N83,0)+ROUND(N84,0)","v":0},null,{"$f":"+ROUND(P83,0)+ROUND(P84,0)","v":0},{"$f":"+ROUND(Q83,0)+ROUND(Q84,0)","v":0}]
[null,"                                                              Дата:",{"$f":"+OTCHET!B608","v":0},"              ГЛ. СЧЕТОВОДИТЕЛ:",null,null,null,null,"                          РЪКОВОДИТЕЛ:"]
[]
[]
[null,"КОНТРОЛА - РАВНЕНИЕ МЕЖДУ БЮДЖЕТНО САЛДО И ФИНАНСИРАНЕ",null,null,null,{"$f":"+IF(+ROUND(F140,2)=0,\"O K\",\"НЕРАВНЕНИЕ!\")","v":"O K"},{"$f":"+IF(+ROUND(G140,2)=0,\"O K\",\"НЕРАВНЕНИЕ!\")","v":"O K"},null,{"$f":"+IF(+ROUND(I140,2)=0,\"O K\",\"НЕРАВНЕНИЕ!\")","v":"O K"},{"$f":"+IF(+ROUND(J140,2)=0,\"O K\",\"НЕРАВНЕНИЕ!\")","v":"O K"},null,{"$f":"+IF(+ROUND(L140,2)=0,\"O K\",\"НЕРАВНЕНИЕ!\")","v":"O K"},null,{"$f":"+IF(+ROUND(N140,2)=0,\"O K\",\"НЕРАВНЕНИЕ!\")","v":"O K"},null,{"$f":"+IF(+ROUND(P140,2)=0,\"O K\",\"НЕРАВНЕНИЕ!\")","v":"O K"},{"$f":"+IF(+ROUND(Q140,2)=0,\"O K\",\"НЕРАВНЕНИЕ!\")","v":"O K"}]
[null,"КОНТРОЛА - РАВНЕНИЕ НА КАСОВИ ПОТОЦИ С НАЛИЧНОСТ",null,null,null,{"$f":"+IF(+ROUND(F141,0)=0,\"O K\",\"НЕРАВНЕНИЕ!\")","v":"O K"},{"$f":"+IF(+ROUND(G141,0)=0,\"O K\",\"НЕРАВНЕНИЕ!\")","v":"O K"},null,{"$f":"+IF(+ROUND(I141,0)=0,\"O K\",\"НЕРАВНЕНИЕ!\")","v":"O K"},{"$f":"+IF(+ROUND(J141,0)=0,\"O K\",\"НЕРАВНЕНИЕ!\")","v":"O K"},null,{"$f":"+IF(+ROUND(L141,0)=0,\"O K\",\"НЕРАВНЕНИЕ!\")","v":"O K"},null,{"$f":"+IF(+ROUND(N141,0)=0,\"O K\",\"НЕРАВНЕНИЕ!\")","v":"O K"},null,{"$f":"+IF(+ROUND(P141,0)=0,\"O K\",\"НЕРАВНЕНИЕ!\")","v":"O K"},{"$f":"+IF(+ROUND(Q141,0)=0,\"O K\",\"НЕРАВНЕНИЕ!\")","v":"O K"}]
[]
[null,"КОНТРОЛА - РАВНЕНИЕ НА БЮДЖ. САЛДО И ФИНАНСИРАНЕ - неравнение в левове",null,null,null,{"$f":"+ROUND(F83,0)+ROUND(F84,0)","v":0},{"$f":"+ROUND(G83,0)+ROUND(G84,0)","v":0},null,{"$f":"+ROUND(I83,0)+ROUND(I84,0)","v":0},{"$f":"+ROUND(J83,0)+ROUND(J84,0)","v":0},null,{"$f":"+ROUND(L83,0)+ROUND(L84,0)","v":0},null,{"$f":"+ROUND(N83,0)+ROUND(N84,0)","v":0},null,{"$f":"+ROUND(P83,0)+ROUND(P84,0)","v":0},{"$f":"+ROUND(Q83,0)+ROUND(Q84,0)","v":0}]
[null,"КОНТРОЛА - РАВНЕНИЕ НА КАСОВИ ПОТОЦИ С НАЛИЧНОСТ - неравнение в левове",null,null,null,{"$f":"SUM(+ROUND(F83,0)+ROUND(F101,0)+ROUND(F120,0)+ROUND(F127,0)+ROUND(F129,0)+ROUND(F130,0))-ROUND(F131,0)","v":0},{"$f":"SUM(+ROUND(G83,0)+ROUND(G101,0)+ROUND(G120,0)+ROUND(G127,0)+ROUND(G129,0)+ROUND(G130,0))-ROUND(G131,0)","v":0},null,{"$f":"SUM(+ROUND(I83,0)+ROUND(I101,0)+ROUND(I120,0)+ROUND(I127,0)+ROUND(I129,0)+ROUND(I130,0))-ROUND(I131,0)","v":0},{"$f":"SUM(+ROUND(J83,0)+ROUND(J101,0)+ROUND(J120,0)+ROUND(J127,0)+ROUND(J129,0)+ROUND(J130,0))-ROUND(J131,0)","v":0},null,{"$f":"SUM(+ROUND(L83,0)+ROUND(L101,0)+ROUND(L120,0)+ROUND(L127,0)+ROUND(L129,0)+ROUND(L130,0))-ROUND(L131,0)","v":0},null,{"$f":"SUM(+ROUND(N83,0)+ROUND(N101,0)+ROUND(N120,0)+ROUND(N127,0)+ROUND(N129,0)+ROUND(N130,0))-ROUND(N131,0)","v":0},null,{"$f":"SUM(+ROUND(P83,0)+ROUND(P101,0)+ROUND(P120,0)+ROUND(P127,0)+ROUND(P129,0)+ROUND(P130,0))-ROUND(P131,0)","v":0},{"$f":"SUM(+ROUND(Q83,0)+ROUND(Q101,0)+ROUND(Q120,0)+ROUND(Q127,0)+ROUND(Q129,0)+ROUND(Q130,0))-ROUND(Q131,0)","v":0}]

{"sheet":"OTCHET-agregirani pokazateli","index":1,"n_rows":114,"n_cols":15,"rows_kept":114,"cut":false,"hidden":false,"merged":[[10,8,10,9],[11,8,13,9],[113,8,113,9],[113,4,113,5],[107,6,107,7],[109,4,109,5],[16,4,17,4],[16,5,17,5]]}
[]
[]
[]
[]
[]
[]
[]
[null,{"$f":"VLOOKUP(E15,SMETKA,3,FALSE)","v":"ОТЧЕТ ЗА КАСОВОТО ИЗПЪЛНЕНИЕ НА СМЕТКИТЕ ЗА СРЕДСТВАТА ОТ ЕВРОПЕЙСКИЯ СЪЮЗ - ДЕС"}]
[]
[]
[null,{"$f":"+OTCHET!B9","v":"ХТМУ"},null,null,"към",{"$f":"OTCHET!F9","v":"2025-09-30"},"ЕИК/БУЛСТАТ",{"$f":"+OTCHET!H9","v":0},{"$f":"+OTCHET!I9","v":0}]
[null,"                                  (наименование на разпоредителя с бюджет)",null,null,null,null,null,null,"код от регистъра на бюджетните организации в СЕБРА"]
[null,{"$f":"+OTCHET!B12","v":"Министерство на образованието и науката "},null,null,{"$f":"+OTCHET!E12","v":"код по ЕБК:"},{"$f":"+OTCHET!F12","v":"1700"}]
[null,"               (наименование на първостепенния разпоредител с бюджет)"]
[null,"финансово-правна форма",null,null,{"$f":"+OTCHET!E15","v":96},{"$f":"OTCHET!F15","v":"СЕС - ДЕС"}]
[null,null,null,null,null,null,null,null,null,"(в левове)"]
[null,null,"§§",null,"Годишен\nуточнен план\n2025 г.","ОТЧЕТ\n2025 г.","                                      ОТЧЕТНИ ДАННИ ЗА:",null,null,null,null,null,null,null,"§§ от ЕБК, които се включват в съответния показател"]
[null,"П О К А З А Т Е Л И",null,null,null,null,"левови\n сметки и СЕБРА ","валутни \nсметки ","операции в брой (в левове и валута)","операции приравнени на касов поток","ОТЧЕТ","ОТЧЕТ"]
[]
[null,"(а)",null,null,"(1)","(2)","(3)","(4)","(5)","(6)","(код 4)","(код 5)","(код 5)"]
[]
[10,"I. ПРИХОДИ, ПОМОЩИ И ДАРЕНИЯ","§§ 01 - 48",null,{"$f":"+E23+E25+E36+E37","v":0},23339,0,23339,0,0,{"$f":"+K23+K25+K35+K36+K37","v":0},{"$f":"+L23+L25+L35+L36+L37","v":0},{"$f":"+M23+M25+M35+M36","v":0},null,"§§ 01 - 48"]
[15,"1. Данъчни приходи","§§ 01 - 20  ",null,{"$f":"OTCHET!E22+OTCHET!E28+OTCHET!E33+OTCHET!E39+OTCHET!E47+OTCHET!E52+OTCHET!E58+OTCHET!E61+OTCHET!E64+OTCHET!E65+OTCHET!E72+OTCHET!E73","v":0},{"$f":"+G23+H23+I23+J23","v":0},{"$f":"OTCHET!G22+OTCHET!G28+OTCHET!G33+OTCHET!G39+OTCHET!G47+OTCHET!G52+OTCHET!G58+OTCHET!G61+OTCHET!G64+OTCHET!G65+OTCHET!G72+OTCHET!G73","v":0},{"$f":"OTCHET!H22+OTCHET!H28+OTCHET!H33+OTCHET!H39+OTCHET!H47+OTCHET!H52+OTCHET!H58+OTCHET!H61+OTCHET!H64+OTCHET!H65+OTCHET!H72+OTCHET!H73","v":0},{"$f":"OTCHET!I22+OTCHET!I28+OTCHET!I33+OTCHET!I39+OTCHET!I47+OTCHET!I52+OTCHET!I58+OTCHET!I61+OTCHET!I64+OTCHET!I65+OTCHET!I72+OTCHET!I73","v":0},{"$f":"OTCHET!J22+OTCHET!J28+OTCHET!J33+OTCHET!J39+OTCHET!J47+OTCHET!J52+OTCHET!J58+OTCHET!J61+OTCHET!J64+OTCHET!J65+OTCHET!J72+OTCHET!J73","v":0},null,null,null,null,"§§ 01 - 20  "]
[null,"в т. ч. трансфери за отчислени приходи","§ 65",null,null,0,null,null,null,null,null,null,null,null,"§ 65"]
[20,"2. Други приходи","§§ 24 - 42",null,{"$f":"+E26+E30+E31+E32+E33","v":0},{"$f":"+F26+F30+F31+F32+F33","v":23339},{"$f":"+G26+G30+G31+G32+G33","v":0},{"$f":"+H26+H30+H31+H32+H33","v":23339},{"$f":"+I26+I30+I31+I32+I33","v":0},{"$f":"+J26+J30+J31+J32+J33","v":0},0,0,0,null,"§§ 24 - 42"]
[25,"2.1 Приходи и доходи от собственост ","§24",null,{"$f":"OTCHET!E74","v":0},0,{"$f":"OTCHET!G74","v":0},{"$f":"OTCHET!H74","v":0},{"$f":"OTCHET!I74","v":0},{"$f":"OTCHET!J74","v":0},null,null,null,null,"§24"]
[26,"в т. ч.   вноски от приходи на държавни и общински предприятия и институции","под.§ 24-01",null,{"$f":"OTCHET!E75","v":0},0,{"$f":"OTCHET!G75","v":0},{"$f":"OTCHET!H75","v":0},{"$f":"OTCHET!I75","v":0},{"$f":"OTCHET!J75","v":0},null,null,null,null,"под.§ 24-01"]
[30,"             нетни приходи от продажба на услуги, стоки и продукция","под.§ 24-04",null,{"$f":"OTCHET!E77","v":0},0,{"$f":"OTCHET!G77","v":0},{"$f":"OTCHET!H77","v":0},{"$f":"OTCHET!I77","v":0},{"$f":"OTCHET!J77","v":0},null,null,null,null,"под.§ 24-04"]
[35,"             приходи от наеми на имущество и земя ","под.§§ 24-05 и 24-06",null,{"$f":"+OTCHET!E78+OTCHET!E79","v":0},0,{"$f":"+OTCHET!G78+OTCHET!G79","v":0},{"$f":"+OTCHET!H78+OTCHET!H79","v":0},{"$f":"+OTCHET!I78+OTCHET!I79","v":0},{"$f":"+OTCHET!J78+OTCHET!J79","v":0},null,null,null,null,"под.§§ 24-05 и 24-06"]
[40,"2.2 Приходи от такси","§§ 25 - 27",null,{"$f":"OTCHET!E90+OTCHET!E93+OTCHET!E94","v":0},0,{"$f":"OTCHET!G90+OTCHET!G93+OTCHET!G94","v":0},{"$f":"OTCHET!H90+OTCHET!H93+OTCHET!H94","v":0},{"$f":"OTCHET!I90+OTCHET!I93+OTCHET!I94","v":0},{"$f":"OTCHET!J90+OTCHET!J93+OTCHET!J94","v":0},null,null,null,null,"§§ 25 - 27"]
[45,"2.3 Глоби, санкции и наказателни лихви ","§28",null,{"$f":"OTCHET!E106","v":0},0,{"$f":"OTCHET!G106","v":0},{"$f":"OTCHET!H106","v":0},{"$f":"OTCHET!I106","v":0},{"$f":"OTCHET!J106","v":0},null,null,null,null,"§28"]
[50,"2.4  Други неданъчни приходи ","§§ 36 - 37 и §§ 41 - 42",null,{"$f":"OTCHET!E110+OTCHET!E119+OTCHET!E135+OTCHET!E136","v":0},23339,{"$f":"OTCHET!G110+OTCHET!G119+OTCHET!G135+OTCHET!G136","v":0},{"$f":"OTCHET!H110+OTCHET!H119+OTCHET!H135+OTCHET!H136","v":23339},{"$f":"OTCHET!I110+OTCHET!I119+OTCHET!I135+OTCHET!I136","v":0},{"$f":"OTCHET!J110+OTCHET!J119+OTCHET!J135+OTCHET!J136","v":0},null,null,null,null,"§§ 36 - 37 и §§ 41 - 42"]
[51,"2.5  Постъпления от продажба на нефинансови активи","§ 40 с изключение на под.§ 40-71",null,{"$f":"OTCHET!E123","v":0},0,{"$f":"OTCHET!G123","v":0},{"$f":"OTCHET!H123","v":0},{"$f":"OTCHET!I123","v":0},{"$f":"OTCHET!J123","v":0},null,null,null,null,"§ 40 с изключение на под.§ 40-71"]
[52,null,null,null,null,0]
[null,null,null,null,null,0]
[60,"3. Помощи и  дарения от страната","§ 45 ",null,{"$f":"+OTCHET!E137","v":0},0,{"$f":"+OTCHET!G137","v":0},{"$f":"+OTCHET!H137","v":0},{"$f":"+OTCHET!I137","v":0},{"$f":"+OTCHET!J137","v":0},null,null,null,null,"§ 45 "]
[65,"4. Помощи и дарения от чужбина","§§ 46 - 48  ",null,{"$f":"OTCHET!E140+OTCHET!E149+OTCHET!E158","v":0},0,{"$f":"OTCHET!G140+OTCHET!G149+OTCHET!G158","v":0},{"$f":"OTCHET!H140+OTCHET!H149+OTCHET!H158","v":0},{"$f":"OTCHET!I140+OTCHET!I149+OTCHET!I158","v":0},{"$f":"OTCHET!J140+OTCHET!J149+OTCHET!J158","v":0},null,null,null,null,"§§ 46 - 48  "]
[70,"II. РАЗХОДИ ","§§ 01 - 57",null,{"$f":"E39+E43+E44+E46+SUM(E48:E52)+E55","v":0},517779,5424,505008,0,7347,{"$f":"SUM(K40:K54)-K45-K47-K53","v":0},{"$f":"SUM(L40:L54)-L45-L47-L53","v":0},{"$f":"SUM(M40:M53)-M45-M52","v":0},null,"§§ 01 - 57"]
[75,"1. Персонал","§ 01",null,{"$f":"SUM(E40:E42)","v":0},76839,0,69492,0,7347,null,null,null,null,"§§ 1 - 8"]
[75,"1.1. Заплати и възнаграждения за персонала, нает по трудови и служебни прав. ","§ 01",null,{"$f":"OTCHET!E187","v":0},0,{"$f":"OTCHET!G187","v":0},{"$f":"OTCHET!H187","v":0},{"$f":"OTCHET!I187","v":0},{"$f":"OTCHET!J187","v":0},null,null,null,null,"§ 01"]
[80,"1.2. Други възнаграждения и плащания за персонала ","§ 02",null,{"$f":"OTCHET!E190","v":0},75853,{"$f":"OTCHET!G190","v":0},{"$f":"OTCHET!H190","v":69492},{"$f":"OTCHET!I190","v":0},{"$f":"OTCHET!J190","v":6361},null,null,null,null,"§ 02"]
[85,"1.3. Осигурителни вноски","§§ 05 и 08",null,{"$f":"+OTCHET!E196+OTCHET!E204","v":0},986,{"$f":"+OTCHET!G196+OTCHET!G204","v":0},{"$f":"+OTCHET!H196+OTCHET!H204","v":0},{"$f":"+OTCHET!I196+OTCHET!I204","v":0},{"$f":"+OTCHET!J196+OTCHET!J204","v":986},null,null,null,null,"§§ 05 и 08"]
[90,"2. Издръжка ","§§ 10; 19; 46",null,{"$f":"+OTCHET!E205+OTCHET!E223+OTCHET!E274","v":0},96968,{"$f":"+OTCHET!G205+OTCHET!G223+OTCHET!G274","v":5424},{"$f":"+OTCHET!H205+OTCHET!H223+OTCHET!H274","v":91544},{"$f":"+OTCHET!I205+OTCHET!I223+OTCHET!I274","v":0},{"$f":"+OTCHET!J205+OTCHET!J223+OTCHET!J274","v":0},null,null,null,null,"§§ 10; 19; 46"]
[95,"3. Лихви ","§§ 21 - 29",null,{"$f":"+OTCHET!E227+OTCHET!E233+OTCHET!E236+OTCHET!E237+OTCHET!E238+OTCHET!E239+OTCHET!E243","v":0},0,{"$f":"+OTCHET!G227+OTCHET!G233+OTCHET!G236+OTCHET!G237+OTCHET!G238+OTCHET!G239+OTCHET!G243","v":0},{"$f":"+OTCHET!H227+OTCHET!H233+OTCHET!H236+OTCHET!H237+OTCHET!H238+OTCHET!H239+OTCHET!H243","v":0},{"$f":"+OTCHET!I227+OTCHET!I233+OTCHET!I236+OTCHET!I237+OTCHET!I238+OTCHET!I239+OTCHET!I243","v":0},{"$f":"+OTCHET!J227+OTCHET!J233+OTCHET!J236+OTCHET!J237+OTCHET!J238+OTCHET!J239+OTCHET!J243","v":0},null,null,null,null,"§§ 21 - 29"]
[100,"в т. ч. външни ","§§ 25 - 28; 29-69/29-70 и 29-92 ",null,{"$f":"+OTCHET!E236+OTCHET!E237+OTCHET!E238+OTCHET!E239+OTCHET!E246+OTCHET!E247+OTCHET!E251","v":0},0,{"$f":"+OTCHET!G236+OTCHET!G237+OTCHET!G238+OTCHET!G239+OTCHET!G246+OTCHET!G247+OTCHET!G251","v":0},{"$f":"+OTCHET!H236+OTCHET!H237+OTCHET!H238+OTCHET!H239+OTCHET!H246+OTCHET!H247+OTCHET!H251","v":0},{"$f":"+OTCHET!I236+OTCHET!I237+OTCHET!I238+OTCHET!I239+OTCHET!I246+OTCHET!I247+OTCHET!I251","v":0},{"$f":"+OTCHET!J236+OTCHET!J237+OTCHET!J238+OTCHET!J239+OTCHET!J246+OTCHET!J247+OTCHET!J251","v":0},null,null,null,null,"§§ 25 - 28; 29-69/29-70 и 29-92 "]
[105,"4. Социални разходи, стипендии","§§ 39 - 42",null,{"$f":"+OTCHET!E258+OTCHET!E259+OTCHET!E260+OTCHET!E261","v":0},102442,{"$f":"+OTCHET!G258+OTCHET!G259+OTCHET!G260+OTCHET!G261","v":0},{"$f":"+OTCHET!H258+OTCHET!H259+OTCHET!H260+OTCHET!H261","v":102442},{"$f":"+OTCHET!I258+OTCHET!I259+OTCHET!I260+OTCHET!I261","v":0},{"$f":"+OTCHET!J258+OTCHET!J259+OTCHET!J260+OTCHET!J261","v":0},null,null,null,null,"§§ 39 - 42"]
[106,"в т. ч. стипендии","§ 40",null,{"$f":"+OTCHET!E259","v":0},0,{"$f":"+OTCHET!G259","v":0},{"$f":"+OTCHET!H259","v":0},{"$f":"+OTCHET!I259","v":0},{"$f":"+OTCHET!J259","v":0},null,null,null,null,"§ 40"]
[107,"5.Субсидии ","§§ 43 - 45; 49",null,{"$f":"+OTCHET!E268+OTCHET!E272+OTCHET!E273","v":0},0,{"$f":"+OTCHET!G268+OTCHET!G272+OTCHET!G273","v":0},{"$f":"+OTCHET!H268+OTCHET!H272+OTCHET!H273","v":0},{"$f":"+OTCHET!I268+OTCHET!I272+OTCHET!I273","v":0},{"$f":"+OTCHET!J268+OTCHET!J272+OTCHET!J273","v":0},null,null,null,null,"§§ 43 - 45"]
[108,"6. Придобиване на нeфинансови актииви","§§ 51 - 54",null,{"$f":"OTCHET!E278+OTCHET!E279+OTCHET!E287+OTCHET!E290","v":0},286,{"$f":"OTCHET!G278+OTCHET!G279+OTCHET!G287+OTCHET!G290","v":0},{"$f":"OTCHET!H278+OTCHET!H279+OTCHET!H287+OTCHET!H290","v":286},{"$f":"OTCHET!I278+OTCHET!I279+OTCHET!I287+OTCHET!I290","v":0},{"$f":"OTCHET!J278+OTCHET!J279+OTCHET!J287+OTCHET!J290","v":0},null,null,null,null,"§§ 51 - 54"]
[110,"7. Капиталови трансфери","§ 55",null,{"$f":"+OTCHET!E291","v":0},0,{"$f":"+OTCHET!G291","v":0},{"$f":"+OTCHET!H291","v":0},{"$f":"+OTCHET!I291","v":0},{"$f":"+OTCHET!J291","v":0},null,null,null,null,"§ 55"]
[115,"8. Предоставени текущи и капиталови трансфери за чужбина","(+ § 57 - под.§ 40-71)",null,{"$f":"+OTCHET!E275","v":0},{"$f":"+G51+H51+I51+J51","v":241244},{"$f":"+OTCHET!G275","v":0},{"$f":"+OTCHET!H275","v":241244},{"$f":"+OTCHET!I275","v":0},{"$f":"+OTCHET!J275","v":0},null,null,null,null,"§ 49"]
[115,"9. Прираст на държавния резерв и изкупуване на земеделска продукция ","(+ § 57 - под.§ 40-71)",null,{"$f":"+OTCHET!E296","v":0},0,{"$f":"+OTCHET!G296","v":0},{"$f":"+OTCHET!H296","v":0},{"$f":"+OTCHET!I296","v":0},{"$f":"+OTCHET!J296","v":0},null,null,null,null,"(+ § 57 - под.§ 40-71)"]
[120,"в т. ч. плащания за попълване на държавния резерв","под.§;57-01",null,{"$f":"OTCHET!E297","v":0},0,{"$f":"OTCHET!G297","v":0},{"$f":"OTCHET!H297","v":0},{"$f":"OTCHET!I297","v":0},{"$f":"OTCHET!J297","v":0},null,null,null,null,"под.§;57-01"]
[125,"          постъпления от продажби на държавния резерв (-)","(-)под.§ 40-71",null,{"$f":"OTCHET!E299","v":0},0,{"$f":"OTCHET!G299","v":0},{"$f":"OTCHET!H299","v":0},{"$f":"OTCHET!I299","v":0},{"$f":"OTCHET!J299","v":0},null,null,null,null,"(-)под.§ 40-71"]
[127,"10. Резерв за непредвидини и неотложни разходи","§;00-98",null,{"$f":"+OTCHET!E300","v":0},0,{"$f":"+OTCHET!G300","v":0},{"$f":"+OTCHET!H300","v":0},{"$f":"+OTCHET!I300","v":0},{"$f":"+OTCHET!J300","v":0},null,null,null,null,"§;00-98"]
[130,"III. Трансфери","§§ 30 - 31; 32; 60 - 67; 69; 74 - 78 ",null,{"$f":"+E57+E58+E62","v":0},509753,0,509753,0,0,{"$f":"+K57+K58+K61","v":0},{"$f":"+L57+L58+L61","v":0},{"$f":"+M57+M58+M61","v":0},null,"§§ 30 - 31; 32; 60 - 67; 69; 74 - 78 "]
[135,"1. Трансфери от/за ЦБ за/от други бюджети ","§§ 30 - 31; 60",null,{"$f":"+OTCHET!E364+OTCHET!E378+OTCHET!E391","v":0},0,{"$f":"+OTCHET!G364+OTCHET!G378+OTCHET!G391","v":0},{"$f":"+OTCHET!H364+OTCHET!H378+OTCHET!H391","v":0},{"$f":"+OTCHET!I364+OTCHET!I378+OTCHET!I391","v":0},{"$f":"+OTCHET!J364+OTCHET!J378+OTCHET!J391","v":0},null,null,null,null,"§§ 30 - 31; 60"]
[140,"2. Други трансфери ","§§ 32; 61- 67;  74 - 78",null,{"$f":"+OTCHET!E386+OTCHET!E394+OTCHET!E399+OTCHET!E402+OTCHET!E405+OTCHET!E408+OTCHET!E409+OTCHET!E412+OTCHET!E425+OTCHET!E426+OTCHET!E427+OTCHET!E428+OTCHET!E429","v":0},509753,{"$f":"+OTCHET!G386+OTCHET!G394+OTCHET!G399+OTCHET!G402+OTCHET!G405+OTCHET!G408+OTCHET!G409+OTCHET!G412+OTCHET!G425+OTCHET!G426+OTCHET!G427+OTCHET!G428+OTCHET!G429","v":0},{"$f":"+OTCHET!H386+OTCHET!H394+OTCHET!H399+OTCHET!H402+OTCHET!H405+OTCHET!H408+OTCHET!H409+OTCHET!H412+OTCHET!H425+OTCHET!H426+OTCHET!H427+OTCHET!H428+OTCHET!H429","v":509753},{"$f":"+OTCHET!I386+OTCHET!I394+OTCHET!I399+OTCHET!I402+OTCHET!I405+OTCHET!I408+OTCHET!I409+OTCHET!I412+OTCHET!I425+OTCHET!I426+OTCHET!I427+OTCHET!I428+OTCHET!I429","v":0},{"$f":"+OTCHET!J386+OTCHET!J394+OTCHET!J399+OTCHET!J402+OTCHET!J405+OTCHET!J408+OTCHET!J409+OTCHET!J412+OTCHET!J425+OTCHET!J426+OTCHET!J427+OTCHET!J428+OTCHET!J429","v":0},null,null,null,null,"§§ 32; 61- 67;  74 - 78"]
[145,"в т. ч. временни безлихвени заеми","§§ 74 - 78",null,{"$f":"+OTCHET!E425+OTCHET!E426+OTCHET!E427+OTCHET!E428+OTCHET!E429","v":0},0,{"$f":"+OTCHET!G425+OTCHET!G426+OTCHET!G427+OTCHET!G428+OTCHET!G429","v":0},{"$f":"+OTCHET!H425+OTCHET!H426+OTCHET!H427+OTCHET!H428+OTCHET!H429","v":0},{"$f":"+OTCHET!I425+OTCHET!I426+OTCHET!I427+OTCHET!I428+OTCHET!I429","v":0},{"$f":"+OTCHET!J425+OTCHET!J426+OTCHET!J427+OTCHET!J428+OTCHET!J429","v":0},null,null,null,null,"§§ 74 - 78"]
[150,"         трансфери за отчислени постъпления","§ 65",null,{"$f":"OTCHET!E408","v":0},0,{"$f":"OTCHET!G408","v":0},{"$f":"OTCHET!H408","v":0},{"$f":"OTCHET!I408","v":0},{"$f":"OTCHET!J408","v":0},null,null,null,null,"§ 65"]
[160,null,null,null,null,0]
[162,"3. Трансфери за поети осигурителни вноски и данъци","§ 69",null,{"$f":"OTCHET!E415","v":0},0,{"$f":"OTCHET!G415","v":0},{"$f":"OTCHET!H415","v":0},{"$f":"OTCHET!I415","v":0},{"$f":"OTCHET!J415","v":0},null,null,null,null,"§ 69"]
[165,"IV. Вноска в общия бюджет на ЕС","§ 33",null,{"$f":"+OTCHET!E252","v":0},0,{"$f":"+OTCHET!G252","v":0},{"$f":"+OTCHET!H252","v":0},{"$f":"+OTCHET!I252","v":0},{"$f":"+OTCHET!J252","v":0},null,null,null,null,"§ 33"]
[175,"V. Дефицит / излишък = I - II +III - IV ",null,null,{"$f":"+E22-E38+E56-E63","v":0},15313,-5424,28084,0,-7347,{"$f":"+K22-K38+K56","v":0},{"$f":"+L22-L38+L56","v":0},{"$f":"+M22-M38+M56","v":0}]
[180,{"$f":"+IF(+SUM(E$65:J$65)=0,0,\"Контрола: дефицит/излишък = финансиране с обратен знак (V. + VІ. = 0)\")","v":0},null,null,{"$f":"+E$64+E$66","v":0},0,0,0,0,0,{"$f":"+K64+K66","v":{"$error":"#REF!"}},{"$f":"+L64+L66","v":{"$error":"#REF!"}},{"$f":"+M64+M66","v":{"$error":"#REF!"}}]
[185,"VI. Финансиране ","§§ 70 - 98",null,{"$f":"SUM(+E68+E76+E77+E84+E85+E86+E89+E90+E91+E92+E93+E94+E95)","v":0},{"$f":"SUM(+F68+F76+F77+F84+F85+F86+F89+F90+F91+F92+F93+F94+F95)","v":-15313},{"$f":"SUM(+G68+G76+G77+G84+G85+G86+G89+G90+G91+G92+G93+G94+G95)","v":5424},{"$f":"SUM(+H68+H76+H77+H84+H85+H86+H89+H90+H91+H92+H93+H94+H95)","v":-28084},{"$f":"SUM(+I68+I76+I77+I84+I85+I86+I89+I90+I91+I92+I93+I94+I95)","v":0},{"$f":"SUM(+J68+J76+J77+J84+J85+J86+J89+J90+J91+J92+J93+J94+J95)","v":7347},{"$error":"#REF!"},{"$error":"#REF!"},{"$f":"SUM(+M68+M76+M77+M84+M85+M86+M89+M90+M91+M92+M93+M95+M96)","v":{"$error":"#REF!"}},null,"§§ 70 - 98"]
[190,null,null,null,null,0]
[195,"1. Външно финансиране","§§ 80 - 82; 92-01; 95-21/95-22; 95-28/95-29 и 95-49",null,{"$f":"SUM(E69:E75)","v":0},{"$f":"SUM(F69:F75)","v":0},{"$f":"SUM(G69:G75)","v":0},{"$f":"SUM(H69:H75)","v":0},{"$f":"SUM(I69:I75)","v":0},{"$f":"SUM(J69:J75)","v":0},{"$error":"#REF!"},{"$error":"#REF!"},{"$error":"#REF!"},null,"§§ 80 - 82; 92-01; 95-21/95-22; 95-28/95-29 и 95-49"]
[200,"            получени външни заеми ","под.§§ 80-11/80-12; 80-31/80-32; 80-51/80-52 и 80-97",null,{"$f":"+OTCHET!E485+OTCHET!E486+OTCHET!E489+OTCHET!E490+OTCHET!E493+OTCHET!E494+OTCHET!E498","v":0},0,{"$f":"+OTCHET!G485+OTCHET!G486+OTCHET!G489+OTCHET!G490+OTCHET!G493+OTCHET!G494+OTCHET!G498","v":0},{"$f":"+OTCHET!H485+OTCHET!H486+OTCHET!H489+OTCHET!H490+OTCHET!H493+OTCHET!H494+OTCHET!H498","v":0},{"$f":"+OTCHET!I485+OTCHET!I486+OTCHET!I489+OTCHET!I490+OTCHET!I493+OTCHET!I494+OTCHET!I498","v":0},{"$f":"+OTCHET!J485+OTCHET!J486+OTCHET!J489+OTCHET!J490+OTCHET!J493+OTCHET!J494+OTCHET!J498","v":0},{"$f":"+#REF!+#REF!+#REF!+#REF!+#REF!+#REF!+#REF!","v":{"$error":"#REF!"}},{"$f":"+#REF!+#REF!+#REF!+#REF!+#REF!+#REF!+#REF!","v":{"$error":"#REF!"}},{"$f":"+#REF!+#REF!+#REF!+#REF!+#REF!+#REF!+#REF!","v":{"$error":"#REF!"}},null,"под.§§ 80-11/80-12; 80-31/80-32; 80-51/80-52 и 80-97"]
[205,"            погашения по външни заеми ","под.§§ 80-17/80-18; 80-37/80-38; 80-57/80-58; 80-80 и 80-98;",null,{"$f":"+OTCHET!E487+OTCHET!E488+OTCHET!E491+OTCHET!E492+OTCHET!E495+OTCHET!E496+OTCHET!E497+OTCHET!E499","v":0},0,{"$f":"+OTCHET!G487+OTCHET!G488+OTCHET!G491+OTCHET!G492+OTCHET!G495+OTCHET!G496+OTCHET!G497+OTCHET!G499","v":0},{"$f":"+OTCHET!H487+OTCHET!H488+OTCHET!H491+OTCHET!H492+OTCHET!H495+OTCHET!H496+OTCHET!H497+OTCHET!H499","v":0},{"$f":"+OTCHET!I487+OTCHET!I488+OTCHET!I491+OTCHET!I492+OTCHET!I495+OTCHET!I496+OTCHET!I497+OTCHET!I499","v":0},{"$f":"+OTCHET!J487+OTCHET!J488+OTCHET!J491+OTCHET!J492+OTCHET!J495+OTCHET!J496+OTCHET!J497+OTCHET!J499","v":0},{"$f":"+#REF!+#REF!+#REF!+#REF!+#REF!+#REF!+#REF!+#REF!","v":{"$error":"#REF!"}},{"$f":"+#REF!+#REF!+#REF!+#REF!+#REF!+#REF!+#REF!+#REF!","v":{"$error":"#REF!"}},{"$f":"+#REF!+#REF!+#REF!+#REF!+#REF!+#REF!+#REF!+#REF!","v":{"$error":"#REF!"}},null,"под.§§ 80-17/80-18; 80-37/80-38; 80-57/80-58; 80-80 и 80-98;"]
[210,"            държавни /общински/ ЦК емитирани на м/нар. капиталови пазари ","§ 81",null,{"$f":"+OTCHET!E500","v":0},0,{"$f":"+OTCHET!G500","v":0},{"$f":"+OTCHET!H500","v":0},{"$f":"+OTCHET!I500","v":0},{"$f":"+OTCHET!J500","v":0},{"$f":"+#REF!","v":{"$error":"#REF!"}},{"$f":"+#REF!","v":{"$error":"#REF!"}},{"$f":"+#REF!","v":{"$error":"#REF!"}},null,"§ 81"]
[215,"            получени погашения по предоставени кредити от други държави ","§ 82",null,{"$f":"+OTCHET!E505","v":0},0,{"$f":"+OTCHET!G505","v":0},{"$f":"+OTCHET!H505","v":0},{"$f":"+OTCHET!I505","v":0},{"$f":"+OTCHET!J505","v":0},{"$f":"+#REF!","v":{"$error":"#REF!"}},{"$f":"+#REF!","v":{"$error":"#REF!"}},{"$f":"+#REF!","v":{"$error":"#REF!"}},null,"§ 82"]
[220,"            операции с др. ЦК и финансови активи ","под. § 92-01",null,{"$f":"+OTCHET!E545","v":0},0,{"$f":"+OTCHET!G545","v":0},{"$f":"+OTCHET!H545","v":0},{"$f":"+OTCHET!I545","v":0},{"$f":"+OTCHET!J545","v":0},{"$f":"+#REF!","v":{"$error":"#REF!"}},{"$f":"+#REF!","v":{"$error":"#REF!"}},{"$f":"+#REF!","v":{"$error":"#REF!"}},null,"под. § 92-01"]
[230,"            остатък в лв.равн. по валутни сметки и каса в чужбина от предх. период ","под. §§ 95-21и 95-22",null,{"$f":"+OTCHET!E584+OTCHET!E585","v":0},0,{"$f":"+OTCHET!G584+OTCHET!G585","v":0},{"$f":"+OTCHET!H584+OTCHET!H585","v":0},{"$f":"+OTCHET!I584+OTCHET!I585","v":0},{"$f":"+OTCHET!J584+OTCHET!J585","v":0},{"$f":"+#REF!+#REF!","v":{"$error":"#REF!"}},{"$f":"+#REF!+#REF!","v":{"$error":"#REF!"}},{"$f":"+#REF!+#REF!","v":{"$error":"#REF!"}},null,"под. §§ 95-21и 95-22"]
[235,"            наличности  в лв. равн.по валутни сметки и каса в чужб. в кр.на периода ","под. §§ 95-28/95-29 и 95-49",null,{"$f":"+OTCHET!E586+OTCHET!E587+OTCHET!E588","v":0},0,{"$f":"+OTCHET!G586+OTCHET!G587+OTCHET!G588","v":0},{"$f":"+OTCHET!H586+OTCHET!H587+OTCHET!H588","v":0},{"$f":"+OTCHET!I586+OTCHET!I587+OTCHET!I588","v":0},{"$f":"+OTCHET!J586+OTCHET!J587+OTCHET!J588","v":0},{"$f":"+#REF!+#REF!+#REF!","v":{"$error":"#REF!"}},{"$f":"+#REF!+#REF!+#REF!","v":{"$error":"#REF!"}},{"$f":"+#REF!+#REF!+#REF!","v":{"$error":"#REF!"}},null,"под. §§ 95-28/95-29 и 95-49"]
[240,"2. Придобиване на дялове, акции, съучастия и др, финансови активи ","§ 70",null,{"$f":"OTCHET!E464","v":0},0,{"$f":"OTCHET!G464","v":0},{"$f":"OTCHET!H464","v":0},{"$f":"OTCHET!I464","v":0},{"$f":"OTCHET!J464","v":0},{"$f":"#REF!","v":{"$error":"#REF!"}},{"$f":"#REF!","v":{"$error":"#REF!"}},{"$f":"#REF!","v":{"$error":"#REF!"}},null,"§ 70"]
[245,"3. Възмездни средства","§§ 71 - 73 и 79",null,{"$f":"SUM(E78:E83)","v":0},{"$f":"SUM(F78:F83)","v":0},{"$f":"SUM(G78:G83)","v":0},{"$f":"SUM(H78:H83)","v":0},{"$f":"SUM(I78:I83)","v":0},{"$f":"SUM(J78:J83)","v":0},0,0,0,null,"§§ 71 - 73 и 79"]
[250,"            предоставени ","под. § 71-01 и § 72-01",null,{"$f":"+OTCHET!E469+OTCHET!E472","v":0},0,{"$f":"+OTCHET!G469+OTCHET!G472","v":0},{"$f":"+OTCHET!H469+OTCHET!H472","v":0},{"$f":"+OTCHET!I469+OTCHET!I472","v":0},{"$f":"+OTCHET!J469+OTCHET!J472","v":0},null,null,null,null,"под. § 71-01 и § 72-01"]
[260,"            възстановени","под. § 71-02 и § 72-02 ",null,{"$f":"+OTCHET!E470+OTCHET!E473","v":0},0,{"$f":"+OTCHET!G470+OTCHET!G473","v":0},{"$f":"+OTCHET!H470+OTCHET!H473","v":0},{"$f":"+OTCHET!I470+OTCHET!I473","v":0},{"$f":"+OTCHET!J470+OTCHET!J473","v":0},null,null,null,null,"под. § 71-02 и § 72-02 "]
[265,"            нето плащания по активирани гаранции, поръчителства и преоформен дълг "," § 73",null,{"$f":"OTCHET!E474","v":0},0,{"$f":"OTCHET!G474","v":0},{"$f":"OTCHET!H474","v":0},{"$f":"OTCHET!I474","v":0},{"$f":"OTCHET!J474","v":0},null,null,null,null," § 73"]
[null,null,null,null,null,0]
[270,"            предоставени заеми към крайни бенифициенти","под. § 79-01",null,{"$f":"+OTCHET!E482","v":0},0,{"$f":"+OTCHET!G482","v":0},{"$f":"+OTCHET!H482","v":0},{"$f":"+OTCHET!I482","v":0},{"$f":"+OTCHET!J482","v":0},null,null,null,null,"под. § 79-01"]
[275,"            възстановени суми по заеми от крайни бенифициенти","под. § 79-02",null,{"$f":"+OTCHET!E483","v":0},0,{"$f":"+OTCHET!G483","v":0},{"$f":"+OTCHET!H483","v":0},{"$f":"+OTCHET!I483","v":0},{"$f":"+OTCHET!J483","v":0},null,null,null,null,"под. § 79-02"]
[280,"4. Приватизация на дялове, акции и участия","§ 90",null,{"$f":"OTCHET!E538","v":0},0,{"$f":"OTCHET!G538","v":0},{"$f":"OTCHET!H538","v":0},{"$f":"OTCHET!I538","v":0},{"$f":"OTCHET!J538","v":0},null,null,null,null,"§ 90"]
[285,"5. Покупко-продажба на държавни/общински/ ценни книжа от бюдж. предприятия ","§ 91",null,{"$f":"OTCHET!E539","v":0},0,{"$f":"OTCHET!G539","v":0},{"$f":"OTCHET!H539","v":0},{"$f":"OTCHET!I539","v":0},{"$f":"OTCHET!J539","v":0},null,null,null,null,"§ 91"]
[290,"6. Друго вътрешно финансиране ","§§ 83; 85 - 88; 92-02; 93",null,{"$f":"+E87+E88","v":0},{"$f":"+F87+F88","v":-22660},{"$f":"+G87+G88","v":5424},{"$f":"+H87+H88","v":-28084},{"$f":"+I87+I88","v":0},{"$f":"+J87+J88","v":0},0,0,0,null,"§§ 83; 85 - 88; 92-02; 93"]
[295,"            операции по вътрешен дълг и финан. активи- нето ","§§ 83; 85 - 86 и 92-02",null,{"$f":"+OTCHET!E506+OTCHET!E515+OTCHET!E519+OTCHET!E546","v":0},0,{"$f":"+OTCHET!G506+OTCHET!G515+OTCHET!G519+OTCHET!G546","v":0},{"$f":"+OTCHET!H506+OTCHET!H515+OTCHET!H519+OTCHET!H546","v":0},{"$f":"+OTCHET!I506+OTCHET!I515+OTCHET!I519+OTCHET!I546","v":0},{"$f":"+OTCHET!J506+OTCHET!J515+OTCHET!J519+OTCHET!J546","v":0},null,null,null,null,"§§ 83; 85 - 86 и 92-02"]
[300,"            друго финансиране ","§§ 87; 88 и 93",null,{"$f":"+OTCHET!E524+OTCHET!E527+OTCHET!E547","v":0},-22660,{"$f":"+OTCHET!G524+OTCHET!G527+OTCHET!G547","v":5424},{"$f":"+OTCHET!H524+OTCHET!H527+OTCHET!H547","v":-28084},{"$f":"+OTCHET!I524+OTCHET!I527+OTCHET!I547","v":0},{"$f":"+OTCHET!J524+OTCHET!J527+OTCHET!J547","v":0},null,null,null,null,"§§ 87; 88 и 93"]
[310,"7.Суми по разчети за поети осигур, вноски и данъци","§89",null,{"$f":"OTCHET!E534","v":0},{"$f":"+G89+H89+I89+J89","v":7347},{"$f":"OTCHET!G534","v":0},{"$f":"OTCHET!H534","v":0},{"$f":"OTCHET!I534","v":0},{"$f":"OTCHET!J534","v":7347},null,null,null,null,"§89"]
[320,"8. Наличности в началото на периода ","под. §§ 95-01 до 95-06",null,{"$f":"+OTCHET!E570+OTCHET!E571+OTCHET!E572+OTCHET!E573+OTCHET!E574+OTCHET!E575","v":0},0,{"$f":"+OTCHET!G570+OTCHET!G571+OTCHET!G572+OTCHET!G573+OTCHET!G574+OTCHET!G575","v":0},{"$f":"+OTCHET!H570+OTCHET!H571+OTCHET!H572+OTCHET!H573+OTCHET!H574+OTCHET!H575","v":0},{"$f":"+OTCHET!I570+OTCHET!I571+OTCHET!I572+OTCHET!I573+OTCHET!I574+OTCHET!I575","v":0},{"$f":"+OTCHET!J570+OTCHET!J571+OTCHET!J572+OTCHET!J573+OTCHET!J574+OTCHET!J575","v":0},null,null,null,null,"под. §§ 95-01 до 95-06"]
[330,"9 Наличности в края на периода ","под. §§ 95-07 до 95-13",null,{"$f":"+OTCHET!E576+OTCHET!E577+OTCHET!E578+OTCHET!E579+OTCHET!E580+OTCHET!E581+OTCHET!E582","v":0},0,{"$f":"+OTCHET!G576+OTCHET!G577+OTCHET!G578+OTCHET!G579+OTCHET!G580+OTCHET!G581+OTCHET!G582","v":0},{"$f":"+OTCHET!H576+OTCHET!H577+OTCHET!H578+OTCHET!H579+OTCHET!H580+OTCHET!H581+OTCHET!H582","v":0},{"$f":"+OTCHET!I576+OTCHET!I577+OTCHET!I578+OTCHET!I579+OTCHET!I580+OTCHET!I581+OTCHET!I582","v":0},{"$f":"+OTCHET!J576+OTCHET!J577+OTCHET!J578+OTCHET!J579+OTCHET!J580+OTCHET!J581+OTCHET!J582","v":0},null,null,null,null,"под. §§ 95-07 до 95-13"]
[335,"10. Преоценка на валутни наличности ","под. § 95-14",null,{"$f":"+OTCHET!E583","v":0},0,{"$f":"+OTCHET!G583","v":0},{"$f":"+OTCHET!H583","v":0},{"$f":"+OTCHET!I583","v":0},{"$f":"+OTCHET!J583","v":0},null,null,null,null,"под. § 95-14"]
[340,"11. Депозити и сметки консолидирани в \"Единната сметка\" от предх. период ","под. §§ 96-01 до 96-03",null,{"$f":"+OTCHET!E590+OTCHET!E591","v":0},0,{"$f":"+OTCHET!G590+OTCHET!G591","v":0},{"$f":"+OTCHET!H590+OTCHET!H591","v":0},{"$f":"+OTCHET!I590+OTCHET!I591","v":0},{"$f":"+OTCHET!J590+OTCHET!J591","v":0},null,null,null,null,"под. §§ 96-01 до 96-03"]
[345,"12. Депозити и сметки консолидирани в \"Единната сметка\" в края на периода","под. §§ 96-07 до 96-09",null,{"$f":"+OTCHET!E592+OTCHET!E593","v":0},0,{"$f":"+OTCHET!G592+OTCHET!G593","v":0},{"$f":"+OTCHET!H592+OTCHET!H593","v":0},{"$f":"+OTCHET!I592+OTCHET!I593","v":0},{"$f":"+OTCHET!J592+OTCHET!J593","v":0},null,null,null,null,"под. §§ 96-07 до 96-09"]
[350,"13. Касови операции, депозити, покупко-продажба на валута и сетълмент ","§ 98",null,{"$f":"OTCHET!E594","v":0},0,{"$f":"OTCHET!G594","v":0},{"$f":"OTCHET!H594","v":0},{"$f":"OTCHET!I594","v":0},{"$f":"OTCHET!J594","v":0},null,null,null,null,"§ 98"]
[355,"            в т. ч. покупко-продажба на валута (+/-) ","под. § 98-30",null,{"$f":"+OTCHET!E597","v":0},0,{"$f":"+OTCHET!G597","v":0},{"$f":"+OTCHET!H597","v":0},{"$f":"+OTCHET!I597","v":0},{"$f":"+OTCHET!J597","v":0},null,null,null,null,"под. § 98-30"]
[null,"ЧИСЛЕНОСТ НА ПЕРСОНАЛА"]
[null,"Щатни бройки "]
[null,"по трудови правоотношения"]
[null,"по служебни правоотношения"]
[]
[null,"Средногодишни щатни бройки "]
[null,"по трудови правоотношения"]
[null,"по служебни правоотношения"]
[null,{"$f":"+IF(+SUM(E$65:J$65)=0,0,\"Контрола: дефицит/излишък = финансиране с обратен знак (V. + VІ. = 0)\")","v":0},null,null,{"$f":"+E$64+E$66","v":0},0,0,0,0,0]
[]
[null,{"$f":"+OTCHET!H608","v":0},null,null,null,null,{"$f":"+OTCHET!E608","v":0},{"$f":"+OTCHET!F608","v":0},null,{"$f":"+OTCHET!B608","v":"00:00:00"}]
[null,"(e-mail)",null,null,null,null,"(служебни телефони) ",null,null,"(дата)"]
[null,"ИЗГОТВИЛ:"]
[null,null,null,null,{"$f":"+OTCHET!D606","v":0}]
[]
[]
[null,"ГЛ. СЧЕТОВОДИТЕЛ:",null,null,null,null,null,"РЪКОВОДИТЕЛ:"]
[null,null,null,null,{"$f":"+OTCHET!G603","v":0},null,null,null,{"$f":"+OTCHET!G606","v":0}]

{"sheet":"OTCHET F","index":2,"n_rows":734,"n_cols":15,"rows_kept":734,"cut":false,"hidden":true,"merged":[[38,2,38,3],[39,2,39,3],[24,2,24,3],[25,2,25,3],[6,1,6,3],[8,1,8,3],[11,1,11,3],[21,2,21,3],[22,2,22,3],[23,2,23,3],[18,2,18,3],[19,2,19,3],[20,2,20,3],[26,2,26,3],[27,2,27,3],[28,2,28,3],[29,2,29,3],[55,1,55,3],[58,1,58,3],[62,11,64,11],[62,12,64,12],[43,2,43,3],[44,2,44,3],[47,2,47,3],[53,1,53,3],[46,2,46,3],[45,2,45,3],[40,2,40,3],[42,2,42,3],[30,2,30,3],[31,2,31,3],[32,2,32,3],[33,2,33,3],[34,2,34,3],[35,2,35,3],[36,2,36,3],[37,2,37,3],[62,14,64,14],[63,2,63,3],[64,2,64,3],[62,2,62,3],[70,2,70,3],[77,2,77,3],[65,2,65,3],[66,2,66,3],[67,2,67,3],[68,2,68,3],[69,2,69,3],[71,2,71,3],[72,2,72,3],[73,2,73,3],[74,2,74,3],[79,2,79,3],[80,2,80,3],[81,2,81,3],[82,2,82,3],[83,2,83,3],[84,2,84,3],[85,2,85,3],[86,2,86,3],[62,13,64,13],[76,2,76,3],[75,2,75,3],[111,2,111,3],[112,2,112,3],[87,2,87,3],[88,2,88,3],[91,2,91,3],[92,2,92,3],[93,2,93,3],[94,2,94,3],[95,2,95,3],[98,1,98,3],[100,1,100,3],[103,1,103,3],[107,2,107,3],[108,2,108,3],[109,2,109,3],[110,2,110,3],[89,2,89,3],[90,2,90,3],[113,2,113,3],[129,2,129,3],[130,2,130,3],[118,2,118,3],[120,2,120,3],[121,2,121,3],[122,2,122,3],[114,2,114,3],[164,2,164,3],[115,2,115,3],[116,2,116,3],[117,2,117,3],[125,2,125,3],[126,2,126,3],[123,2,123,3],[124,2,124,3],[127,2,127,3],[128,2,128,3],[166,2,166,3],[167,2,167,3],[131,2,131,3],[135,1,135,3],[137,1,137,3],[140,1,140,3],[151,1,151,3],[153,1,153,3],[156,1,156,3],[163,2,163,3],[160,2,160,3],[161,2,161,3],[162,2,162,3],[165,2,165,3],[168,2,168,3],[169,2,169,3],[170,2,170,3],[171,2,171,3],[172,2,172,3],[205,2,205,3],[202,2,202,3],[203,2,203,3],[199,2,199,3],[173,2,173,3],[175,2,175,3],[176,2,176,3],[177,2,177,3],[180,2,180,3],[181,2,181,3],[208,2,208,3],[197,2,197,3],[198,2,198,3],[184,2,184,3],[174,2,174,3],[206,2,206,3],[207,2,207,3],[200,2,200,3],[201,2,201,3],[204,2,204,3],[188,1,188,3],[193,1,193,3],[182,2,182,3],[183,2,183,3],[190,1,190,3],[178,2,178,3],[179,2,179,3]]}
["a","b","c","d","e","f","g","h","h","h","pub"]
[null,null,null,null,null,null,null,null,null,null,1]
[null,null,null,null,null,null,null,null,null,null,1]
[null,null,null,null,null,null,null,null,null,null,1]
[null,null,null,null," "," ",null,null,null,null,1]
[null,null,null,null,null," ",null,null,null,null,1]
[null,{"$f":"OTCHET!B7","v":"ОТЧЕТНИ ДАННИ ПО ЕБК ЗА СМЕТКИТЕ ЗА СРЕДСТВАТА ОТ ЕВРОПЕЙСКИЯ СЪЮЗ - ДЕС"},null,null,null,null,null,null,null,null,1]
[null,null,null,null,"за периода от ","до",null,null,null,null,1]
[null,{"$f":"OTCHET!B9","v":"ХТМУ"},null,null,{"$f":"OTCHET!$E9","v":"2025-01-01"},{"$f":"OTCHET!$F9","v":"2025-09-30"},null,null,null,null,1]
[null,{"$f":"OTCHET!B10","v":"                                                            (наименование на разпоредителя с бюджет)"},null,null,null,{"$f":"OTCHET!$F10","v":0},null,null,null,null,1]
[null,null,null,null,null,null,null,null,null,null,1]
[null,{"$f":"OTCHET!B12","v":"Министерство на образованието и науката "},null,null,"код :",{"$f":"OTCHET!$F12","v":"1700"},null,null,null,null,1]
[null,{"$f":"OTCHET!B13","v":"                                             (наименование на първостепенния разпоредител с бюджет)"},null,null,"(по ЕБК)"," ",null,null,null,null,1]
[null,null,null,null,null,null,null,null,null,null,1]
[null,null,null,null,null,null,null,null,null,null,1]
[null,null,null,null,null,null,null,null,null,null,1]
[null,null,null,null,null,null,null,null,null,null,1]
[null,null,null,null,null,null,null,null,null,"(в лева)",1]
[null,null,"I. ПРИХОДИ",null,"Уточнен план","Отчет",null,null,null,null,1]
[null,"§§","(параграфи от ЕБК)",null,2017,"Общо","левови\nсметки ","валутни\nсметки ","Касови операции в лева и валута","Приравнени некасови операции",1]
[null,null," 0 1 ¦",null,"(1)","(2)","(3)","(4)","(5)","(6)",1]
[5,100,"Данък върху доходите на физически лица:",null,{"$f":"OTCHET!$E22","v":0},{"$f":"OTCHET!$F22","v":0},{"$f":"OTCHET!$G22","v":0},{"$f":"OTCHET!$H22","v":0},{"$f":"OTCHET!$I22","v":0},{"$f":"OTCHET!$J22","v":0},{"$f":"(IF(E22<>0,$K$2,IF(F22<>0,$K$2,\"\")))","v":""}]
[25,200,"Корпоративен данък:",null,{"$f":"OTCHET!$E28","v":0},{"$f":"OTCHET!$F28","v":0},{"$f":"OTCHET!$G28","v":0},{"$f":"OTCHET!$H28","v":0},{"$f":"OTCHET!$I28","v":0},{"$f":"OTCHET!$J28","v":0},""]
[50,400,"Данъци върху дивидентите, ликвидационните дялове и доходите на местни и чуждестранни лица:",null,{"$f":"OTCHET!$E33","v":0},{"$f":"OTCHET!$F33","v":0},{"$f":"OTCHET!$G33","v":0},{"$f":"OTCHET!$H33","v":0},{"$f":"OTCHET!$I33","v":0},{"$f":"OTCHET!$J33","v":0},""]
[65,800,"Осигурителни вноски",null,{"$f":"OTCHET!$E39","v":0},{"$f":"OTCHET!$F39","v":0},{"$f":"OTCHET!$G39","v":0},{"$f":"OTCHET!$H39","v":0},{"$f":"OTCHET!$I39","v":0},{"$f":"OTCHET!$J39","v":0},""]
[95,1000,"Здравно-осигурителни вноски",null,{"$f":"OTCHET!$E47","v":0},{"$f":"OTCHET!$F47","v":0},{"$f":"OTCHET!$G47","v":0},{"$f":"OTCHET!$H47","v":0},{"$f":"OTCHET!$I47","v":0},{"$f":"OTCHET!$J47","v":0},""]
[130,1300,"Имуществени данъци :",null,{"$f":"OTCHET!$E52","v":0},{"$f":"OTCHET!$F52","v":0},{"$f":"OTCHET!$G52","v":0},{"$f":"OTCHET!$H52","v":0},{"$f":"OTCHET!$I52","v":0},{"$f":"OTCHET!$J52","v":0},""]
[160,1400,"Данък върху добавената стойност",null,{"$f":"OTCHET!$E58","v":0},{"$f":"OTCHET!$F58","v":0},{"$f":"OTCHET!$G58","v":0},{"$f":"OTCHET!$H58","v":0},{"$f":"OTCHET!$I58","v":0},{"$f":"OTCHET!$J58","v":0},""]
[175,1500,"Акцизи ",null,{"$f":"OTCHET!$E61","v":0},{"$f":"OTCHET!$F61","v":0},{"$f":"OTCHET!$G61","v":0},{"$f":"OTCHET!$H61","v":0},{"$f":"OTCHET!$I61","v":0},{"$f":"OTCHET!$J61","v":0},""]
[null,1600,"Данък върху застрахователните премии",null,{"$f":"OTCHET!$E64","v":0},{"$f":"OTCHET!$F64","v":0},{"$f":"OTCHET!$G64","v":0},{"$f":"OTCHET!$H64","v":0},{"$f":"OTCHET!$I64","v":0},{"$f":"OTCHET!$J64","v":0},""]
[200,1700,"Други данъци по Закона за корпоративното подоходно облагане:",null,{"$f":"OTCHET!$E65","v":0},{"$f":"OTCHET!$F65","v":0},{"$f":"OTCHET!$G65","v":0},{"$f":"OTCHET!$H65","v":0},{"$f":"OTCHET!$I65","v":0},{"$f":"OTCHET!$J65","v":0},""]
[231,1800,"Такси върху производството на захар и изоглюкоза",null,{"$f":"OTCHET!#REF!","v":{"$error":"#REF!"}},{"$f":"OTCHET!#REF!","v":{"$error":"#REF!"}},{"$f":"OTCHET!#REF!","v":{"$error":"#REF!"}},{"$f":"OTCHET!#REF!","v":{"$error":"#REF!"}},{"$f":"OTCHET!#REF!","v":{"$error":"#REF!"}},{"$f":"OTCHET!#REF!","v":{"$error":"#REF!"}},{"$error":"#REF!"}]
[235,1900,"Мита и митнически такси:",null,{"$f":"OTCHET!$E72","v":0},{"$f":"OTCHET!$F72","v":0},{"$f":"OTCHET!$G72","v":0},{"$f":"OTCHET!$H72","v":0},{"$f":"OTCHET!$I72","v":0},{"$f":"OTCHET!$J72","v":0},""]
[255,2000,"Други данъци",null,{"$f":"OTCHET!$E73","v":0},{"$f":"OTCHET!$F73","v":0},{"$f":"OTCHET!$G73","v":0},{"$f":"OTCHET!$H73","v":0},{"$f":"OTCHET!$I73","v":0},{"$f":"OTCHET!$J73","v":0},""]
[265,2400,"Приходи и доходи от собственост",null,{"$f":"OTCHET!$E74","v":0},{"$f":"OTCHET!$F74","v":0},{"$f":"OTCHET!$G74","v":0},{"$f":"OTCHET!$H74","v":0},{"$f":"OTCHET!$I74","v":0},{"$f":"OTCHET!$J74","v":0},""]
[350,2500,"Държавни такси",null,{"$f":"OTCHET!$E90","v":0},{"$f":"OTCHET!$F90","v":0},{"$f":"OTCHET!$G90","v":0},{"$f":"OTCHET!$H90","v":0},{"$f":"OTCHET!$I90","v":0},{"$f":"OTCHET!$J90","v":0},""]
[360,2600,"Съдебни такси",null,{"$f":"OTCHET!$E93","v":0},{"$f":"OTCHET!$F93","v":0},{"$f":"OTCHET!$G93","v":0},{"$f":"OTCHET!$H93","v":0},{"$f":"OTCHET!$I93","v":0},{"$f":"OTCHET!$J93","v":0},""]
[370,2700,"Общински такси",null,{"$f":"OTCHET!$E94","v":0},{"$f":"OTCHET!$F94","v":0},{"$f":"OTCHET!$G94","v":0},{"$f":"OTCHET!$H94","v":0},{"$f":"OTCHET!$I94","v":0},{"$f":"OTCHET!$J94","v":0},""]
[445,2800,"Глоби, санкции и наказателни лихви",null,{"$f":"OTCHET!$E106","v":0},{"$f":"OTCHET!$F106","v":0},{"$f":"OTCHET!$G106","v":0},{"$f":"OTCHET!$H106","v":0},{"$f":"OTCHET!$I106","v":0},{"$f":"OTCHET!$J106","v":0},""]
[470,3600,"Други неданъчни приходи",null,{"$f":"OTCHET!$E110","v":0},{"$f":"OTCHET!$F110","v":23339},{"$f":"OTCHET!$G110","v":0},{"$f":"OTCHET!$H110","v":23339},{"$f":"OTCHET!$I110","v":0},{"$f":"OTCHET!$J110","v":0},1]
[495,3700,"Внесени ДДС и други данъци върху продажбите ",null,{"$f":"OTCHET!$E119","v":0},{"$f":"OTCHET!$F119","v":0},{"$f":"OTCHET!$G119","v":0},{"$f":"OTCHET!$H119","v":0},{"$f":"OTCHET!$I119","v":0},{"$f":"OTCHET!$J119","v":0},""]
[515,4000,"Постъпления от продажба на нефинансови активи (без 40-71)",null,{"$f":"OTCHET!$E123","v":0},{"$f":"OTCHET!$F123","v":0},{"$f":"OTCHET!$G123","v":0},{"$f":"OTCHET!$H123","v":0},{"$f":"OTCHET!$I123","v":0},{"$f":"OTCHET!$J123","v":0},""]
[540,4100,"Приходи от концесии",null,{"$f":"OTCHET!$E135","v":0},{"$f":"OTCHET!$F135","v":0},{"$f":"OTCHET!$G135","v":0},{"$f":"OTCHET!$H135","v":0},{"$f":"OTCHET!$I135","v":0},{"$f":"OTCHET!$J135","v":0},""]
[550,4200,"Приходи от лицензии за ползване на държавни/общински активи",null,{"$f":"OTCHET!$E136","v":0},{"$f":"OTCHET!$F136","v":0},{"$f":"OTCHET!$G136","v":0},{"$f":"OTCHET!$H136","v":0},{"$f":"OTCHET!$I136","v":0},{"$f":"OTCHET!$J136","v":0},""]
[560,"45-00","Помощи и дарения от страната",null,{"$f":"OTCHET!$E137","v":0},{"$f":"OTCHET!$F137","v":0},{"$f":"OTCHET!$G137","v":0},{"$f":"OTCHET!$H137","v":0},{"$f":"OTCHET!$I137","v":0},{"$f":"OTCHET!$J137","v":0},""]
[575,4600,"Помощи и дарения от чужбина",null,{"$f":"OTCHET!$E140","v":0},{"$f":"OTCHET!$F140","v":0},{"$f":"OTCHET!$G140","v":0},{"$f":"OTCHET!$H140","v":0},{"$f":"OTCHET!$I140","v":0},{"$f":"OTCHET!$J140","v":0},""]
[575,4700,"Получени чрез небюджетни предприятия средства от КФП по международни и други програми",null,{"$f":"OTCHET!$E947","v":0},{"$f":"OTCHET!$F149","v":0},{"$f":"OTCHET!$G149","v":0},{"$f":"OTCHET!$H149","v":0},{"$f":"OTCHET!$I149","v":0},{"$f":"OTCHET!$J149","v":0},""]
[575,4800,"Разпределени към администратори от чужбина средства по международни програми и договори (-)",null,{"$f":"OTCHET!$E158","v":0},{"$f":"OTCHET!$F158","v":0},{"$f":"OTCHET!$G158","v":0},{"$f":"OTCHET!$H158","v":0},{"$f":"OTCHET!$I158","v":0},{"$f":"OTCHET!$J158","v":0},""]
[620,null,null,"I. ОБЩО ПРИХОДИ",{"$f":"OTCHET!$E167","v":0},{"$f":"OTCHET!$F167","v":23339},{"$f":"OTCHET!$G167","v":0},{"$f":"OTCHET!$H167","v":23339},{"$f":"OTCHET!$I167","v":0},{"$f":"OTCHET!$J167","v":0},1]
[null,null,null,null,null,null,null,null,null,null,1]
[null,null,null,null,null,null,null,null,null,null,1]
[null,null,null,null,null,null,null,null,null,null,1]
[null,null,null,null,null,null,null,null,null,null,1]
[null,{"$f":"$B$7","v":"ОТЧЕТНИ ДАННИ ПО ЕБК ЗА СМЕТКИТЕ ЗА СРЕДСТВАТА ОТ ЕВРОПЕЙСКИЯ СЪЮЗ - ДЕС"},null,null,null,null,null,null,null,null,1]
[null,null,null,null,"за периода от ","до",null,null,null,null,1]
[null,{"$f":"$B$9","v":"ХТМУ"},null,null,{"$f":"$E$9","v":"2025-01-01"},{"$f":"$F$9","v":"2025-09-30"},null,null,null,null,1]
[null,{"$f":"$B$10","v":"                                                            (наименование на разпоредителя с бюджет)"},null,null,null,{"$f":"$F$10","v":0},null,null,null,null,1]
[null,null,null,null,null,null,null,null,null,null,1]
[null,{"$f":"$B$12","v":"Министерство на образованието и науката "},null,null,"код :",{"$f":"$F$12","v":"1700"},null,null,null,null,1]
[null,{"$f":"$B$13","v":"                                             (наименование на първостепенния разпоредител с бюджет)"},null,null,"(по ЕБК)",null,null,null,null,null,1]
[null,null,null,null,null,null,null,null,null,null,1]
[null,null,null,null,null,null,null,null,null,"(в лева)",1]
[null,null,"II. РАЗХОДИ ",null,"Уточнен план","Отчет",null,null,null,null,1,"Прогнозен размер на ан-гажиментите за поемане през 2018 г.","Прогнозен размер на ан-гажиментите за поемане през 2019 г.","Прогнозен размер на ан-гажиментите за поемане през 2020 г.","Прогнозен размер на ан-гажиментите за поемане през 2021 г."]
[null,"§§","(параграфи по ЕБК)",null,2017,"Общо","левови\nсметки ","валутни\nсметки ","Касови операции в лева и валута","Приравнени некасови операции",1]
[null,null," 02 ¦",null,"(1)","(2)","(3)","(4)","(5)","(6)",1]
[5,100,"Заплати и възнаграждения за персонала, нает по трудови и служебни правоотношения",null,{"$f":"OTCHET!$E187","v":0},{"$f":"OTCHET!$F187","v":0},{"$f":"OTCHET!$G187","v":0},{"$f":"OTCHET!$H187","v":0},{"$f":"OTCHET!$I187","v":0},{"$f":"OTCHET!$J187","v":0},{"$f":"(IF(E66<>0,$K$2,IF(F66<>0,$K$2,\"\")))","v":""}]
[35,200,"Други възнаграждения и плащания за персонала",null,{"$f":"OTCHET!$E190","v":0},{"$f":"OTCHET!$F190","v":75853},{"$f":"OTCHET!$G190","v":0},{"$f":"OTCHET!$H190","v":69492},{"$f":"OTCHET!$I190","v":0},{"$f":"OTCHET!$J190","v":6361},1]
[65,500,"Задължителни осигурителни вноски от работодатели",null,{"$f":"OTCHET!$E196","v":0},{"$f":"OTCHET!$F196","v":986},{"$f":"OTCHET!$G196","v":0},{"$f":"OTCHET!$H196","v":0},{"$f":"OTCHET!$I196","v":0},{"$f":"OTCHET!$J196","v":986},1]
[115,800,"Вноски за доброволно осигуряване  ",null,{"$f":"OTCHET!$E204","v":0},{"$f":"OTCHET!$F204","v":0},{"$f":"OTCHET!$G204","v":0},{"$f":"OTCHET!$H204","v":0},{"$f":"OTCHET!$I204","v":0},{"$f":"OTCHET!$J204","v":0},""]
[125,1000,"Издръжка",null,{"$f":"OTCHET!$E205","v":0},{"$f":"OTCHET!$F205","v":96968},{"$f":"OTCHET!$G205","v":5424},{"$f":"OTCHET!$H205","v":91544},{"$f":"OTCHET!$I205","v":0},{"$f":"OTCHET!$J205","v":0},1]
[220,1900,"Платени данъци, такси и административни санкции",null,{"$f":"OTCHET!$E223","v":0},{"$f":"OTCHET!$F223","v":0},{"$f":"OTCHET!$G223","v":0},{"$f":"OTCHET!$H223","v":0},{"$f":"OTCHET!$I223","v":0},{"$f":"OTCHET!$J223","v":0},""]
[220,2100,"Разходи за лихви по емисии на държавни (общински) ценни книжа",null,{"$f":"OTCHET!$E227","v":0},{"$f":"OTCHET!$F227","v":0},{"$f":"OTCHET!$G227","v":0},{"$f":"OTCHET!$H227","v":0},{"$f":"OTCHET!$I227","v":0},{"$f":"OTCHET!$J227","v":0},""]
[250,2200,"Разходи за лихви по заеми от страната",null,{"$f":"OTCHET!$E233","v":0},{"$f":"OTCHET!$F233","v":0},{"$f":"OTCHET!$G233","v":0},{"$f":"OTCHET!$H233","v":0},{"$f":"OTCHET!$I233","v":0},{"$f":"OTCHET!$J233","v":0},""]
[270,2500,"Разходи за лихви по заеми от други държави",null,{"$f":"OTCHET!$E236","v":0},{"$f":"OTCHET!$F236","v":0},{"$f":"OTCHET!$G236","v":0},{"$f":"OTCHET!$H236","v":0},{"$f":"OTCHET!$I236","v":0},{"$f":"OTCHET!$J236","v":0},""]
[290,2600,"Разходи за лихви по заеми от международни организации и институции",null,{"$f":"OTCHET!$E237","v":0},{"$f":"OTCHET!$F237","v":0},{"$f":"OTCHET!$G237","v":0},{"$f":"OTCHET!$H237","v":0},{"$f":"OTCHET!$I237","v":0},{"$f":"OTCHET!$J237","v":0},""]
[320,2700,"Разходи за лихви по заеми от банки и други финансови институции от чужбина",null,{"$f":"OTCHET!$E238","v":0},{"$f":"OTCHET!$F238","v":0},{"$f":"OTCHET!$G238","v":0},{"$f":"OTCHET!$H238","v":0},{"$f":"OTCHET!$I238","v":0},{"$f":"OTCHET!$J238","v":0},""]
[330,2800,"Разходи за лихви  и отстъпки по облигации, емитирани и търгувани на международните капиталови пазари",null,{"$f":"OTCHET!$E239","v":0},{"$f":"OTCHET!$F239","v":0},{"$f":"OTCHET!$G239","v":0},{"$f":"OTCHET!$H239","v":0},{"$f":"OTCHET!$I239","v":0},{"$f":"OTCHET!$J239","v":0},""]
[350,2900,"Други разходи за лихви",null,{"$f":"OTCHET!$E243","v":0},{"$f":"OTCHET!$F243","v":0},{"$f":"OTCHET!$G243","v":0},{"$f":"OTCHET!$H243","v":0},{"$f":"OTCHET!$I243","v":0},{"$f":"OTCHET!$J243","v":0},""]
[397,3300,"Вноска в бюджета на Европейския съюз",null,{"$f":"OTCHET!$E252","v":0},{"$f":"OTCHET!$F252","v":0},{"$f":"OTCHET!$G252","v":0},{"$f":"OTCHET!$H252","v":0},{"$f":"OTCHET!$I252","v":0},{"$f":"OTCHET!$J252","v":0},""]
[404,3900,"Здравно-осигурителни плащания",null,{"$f":"OTCHET!$E258","v":0},{"$f":"OTCHET!$F258","v":0},{"$f":"OTCHET!$G258","v":0},{"$f":"OTCHET!$H258","v":0},{"$f":"OTCHET!$I258","v":0},{"$f":"OTCHET!$J258","v":0},""]
[440,4000,"Стипендии",null,{"$f":"OTCHET!$E259","v":0},{"$f":"OTCHET!$F259","v":0},{"$f":"OTCHET!$G259","v":0},{"$f":"OTCHET!$H259","v":0},{"$f":"OTCHET!$I259","v":0},{"$f":"OTCHET!$J259","v":0},""]
[450,4100,"Пенсии",null,{"$f":"OTCHET!$E260","v":0},{"$f":"OTCHET!$F260","v":0},{"$f":"OTCHET!$G260","v":0},{"$f":"OTCHET!$H260","v":0},{"$f":"OTCHET!$I260","v":0},{"$f":"OTCHET!$J260","v":0},""]
[495,4200,"Текущи трансфери, обезщетения и помощи за домакинствата",null,{"$f":"OTCHET!$E261","v":0},{"$f":"OTCHET!$F261","v":102442},{"$f":"OTCHET!$G261","v":0},{"$f":"OTCHET!$H261","v":102442},{"$f":"OTCHET!$I261","v":0},{"$f":"OTCHET!$J261","v":0},1]
[635,4300,"Субсидии и други текущи трансфери за нефинансови предприятия ",null,{"$f":"OTCHET!$E268","v":0},{"$f":"OTCHET!$F268","v":0},{"$f":"OTCHET!$G268","v":0},{"$f":"OTCHET!$H268","v":0},{"$f":"OTCHET!$I268","v":0},{"$f":"OTCHET!$J268","v":0},""]
[655,4400,"Субсидии и други текущи трансфери за финансови институции",null,{"$f":"OTCHET!$E272","v":0},{"$f":"OTCHET!$F272","v":0},{"$f":"OTCHET!$G272","v":0},{"$f":"OTCHET!$H272","v":0},{"$f":"OTCHET!$I272","v":0},{"$f":"OTCHET!$J272","v":0},""]
[665,4500,"Субсидии и други текущи трансфери на организации с нестопанска цел",null,{"$f":"OTCHET!$E273","v":0},{"$f":"OTCHET!$F273","v":0},{"$f":"OTCHET!$G273","v":0},{"$f":"OTCHET!$H273","v":0},{"$f":"OTCHET!$I273","v":0},{"$f":"OTCHET!$J273","v":0},""]
[675,4600,"Разходи за членски внос и участие в нетърговски организации и дейности",null,{"$f":"OTCHET!$E274","v":0},{"$f":"OTCHET!$F274","v":0},{"$f":"OTCHET!$G274","v":0},{"$f":"OTCHET!$H274","v":0},{"$f":"OTCHET!$I274","v":0},{"$f":"OTCHET!$J274","v":0},""]
[685,4900,"Предоставени текущи и капиталови трансфери за чужбина",null,{"$f":"OTCHET!$E275","v":0},{"$f":"OTCHET!$F275","v":241244},{"$f":"OTCHET!$G275","v":0},{"$f":"OTCHET!$H275","v":241244},{"$f":"OTCHET!$I275","v":0},{"$f":"OTCHET!$J275","v":0},1]
[700,5100,"Основен ремонт на дълготрайни материални активи",null,{"$f":"OTCHET!$E278","v":0},{"$f":"OTCHET!$F278","v":0},{"$f":"OTCHET!$G278","v":0},{"$f":"OTCHET!$H278","v":0},{"$f":"OTCHET!$I278","v":0},{"$f":"OTCHET!$J278","v":0},""]
[710,5200,"Придобиване на дълготрайни материални активи",null,{"$f":"OTCHET!$E279","v":0},{"$f":"OTCHET!$F279","v":0},{"$f":"OTCHET!$G279","v":0},{"$f":"OTCHET!$H279","v":0},{"$f":"OTCHET!$I279","v":0},{"$f":"OTCHET!$J279","v":0},""]
[750,5300,"Придобиване на нематериални дълготрайни активи",null,{"$f":"OTCHET!$E287","v":0},{"$f":"OTCHET!$F287","v":286},{"$f":"OTCHET!$G287","v":0},{"$f":"OTCHET!$H287","v":286},{"$f":"OTCHET!$I287","v":0},{"$f":"OTCHET!$J287","v":0},1]
[765,5400,"Придобиване на земя",null,{"$f":"OTCHET!$E290","v":0},{"$f":"OTCHET!$F290","v":0},{"$f":"OTCHET!$G290","v":0},{"$f":"OTCHET!$H290","v":0},{"$f":"OTCHET!$I290","v":0},{"$f":"OTCHET!$J290","v":0},""]
[775,5500,"Капиталови трансфери",null,{"$f":"OTCHET!$E291","v":0},{"$f":"OTCHET!$F291","v":0},{"$f":"OTCHET!$G291","v":0},{"$f":"OTCHET!$H291","v":0},{"$f":"OTCHET!$I291","v":0},{"$f":"OTCHET!$J291","v":0},""]
[805,5700,"Прираст на държавния резерв и изкупуване на земеделска продукция (включва и 40-71)",null,{"$f":"OTCHET!$E296","v":0},{"$f":"OTCHET!$F296","v":0},{"$f":"OTCHET!$G296","v":0},{"$f":"OTCHET!$H296","v":0},{"$f":"OTCHET!$I296","v":0},{"$f":"OTCHET!$J296","v":0},""]
[820,"00-98","Резерв за непредвидени и неотложни разходи",null,{"$f":"OTCHET!$E300","v":0},{"$f":"OTCHET!$F300","v":0},{"$f":"OTCHET!$G300","v":0},{"$f":"OTCHET!$H300","v":0},{"$f":"OTCHET!$I300","v":0},{"$f":"OTCHET!$J300","v":0},""]
[825,null,"II. ОБЩО РАЗХОДИ РЕКАПИТУЛАЦИЯ",null,{"$f":"OTCHET!$E304","v":0},{"$f":"OTCHET!$F304","v":517779},{"$f":"OTCHET!$G304","v":5424},{"$f":"OTCHET!$H304","v":505008},{"$f":"OTCHET!$I304","v":0},{"$f":"OTCHET!$J304","v":7347},1,{"$f":"SUM(L66:L95)","v":0},{"$f":"SUM(M66:M95)","v":0},{"$f":"SUM(N66:N95)","v":0},{"$f":"SUM(O66:O95)","v":0}]
[null,null,null,null,null,null,null,null,null,null,1]
[null,null,null,null,null,null,null,null,null,null,1]
[null,{"$f":"$B$7","v":"ОТЧЕТНИ ДАННИ ПО ЕБК ЗА СМЕТКИТЕ ЗА СРЕДСТВАТА ОТ ЕВРОПЕЙСКИЯ СЪЮЗ - ДЕС"},null,null,null,null,null,null,null,null,1]
[null,null,null,null,"за периода от ","до",null,null,null,null,1]
[null,{"$f":"$B$9","v":"ХТМУ"},null,null,{"$f":"$E$9","v":"2025-01-01"},{"$f":"$F$9","v":"2025-09-30"},null,null,null,null,1]
[null,{"$f":"$B$10","v":"                                                            (наименование на разпоредителя с бюджет)"},null,null,null,{"$f":"$F$10","v":0},null,null,null,null,1]
[null,null,null,null,null,null,null,null,null,null,1]
[null,{"$f":"$B$12","v":"Министерство на образованието и науката "},null,null,"код :",{"$f":"$F$12","v":"1700"},null,null,null,null,1]
[null,{"$f":"$B$13","v":"                                             (наименование на първостепенния разпоредител с бюджет)"},null,null,"(по ЕБК)",null,null,null,null,null,1]
[null,null,null,null,null,null,null,null,null,null,1]
[null,null,null,null,null,null,null,null,null,"(в лева)",1]
[null,null,"IV ТРАНСФЕРИ - РЕКАПИТУЛАЦИЯ",null,"Уточнен план","Отчет",null,null,null,null,1]
[null,"§§","(параграфи по ЕБК)",null,2017,"Общо","левови\nсметки ","валутни\nсметки ","Касови операции в лева и валута","Приравнени некасови операции",1]
[1,null," 03 ¦",null,"(1)","(2)","(3)","(4)","(5)","(6)",1]
[2,null,"А) ТРАНСФЕРИ",null,null,null,null,null,null,null,1]
[5,3000,"Трансфери от ЦБ за други бюджети (нето) ",null,{"$f":"OTCHET!$E364","v":0},{"$f":"OTCHET!$F364","v":0},{"$f":"OTCHET!$G364","v":0},{"$f":"OTCHET!$H364","v":0},{"$f":"OTCHET!$I364","v":0},{"$f":"OTCHET!$J364","v":0},{"$f":"(IF(E112<>0,$K$2,IF(F112<>0,$K$2,\"\")))","v":""}]
[70,3100,"Трансфери между бюджета на бюджетната организация и ЦБ (нето)",null,{"$f":"OTCHET!$E378","v":0},{"$f":"OTCHET!$F378","v":0},{"$f":"OTCHET!$G378","v":0},{"$f":"OTCHET!$H378","v":0},{"$f":"OTCHET!$I378","v":0},{"$f":"OTCHET!$J378","v":0},""]
[115,3200,"Предоставени субсидии от държавния бюджет за БАН и държавните висши училища (нето)",null,{"$f":"OTCHET!$E386","v":0},{"$f":"OTCHET!$F386","v":0},{"$f":"OTCHET!$G386","v":0},{"$f":"OTCHET!$H386","v":0},{"$f":"OTCHET!$I386","v":0},{"$f":"OTCHET!$J386","v":0},""]
[145,6000,"Трансфери между ЦБ и сметки за средствата от ЕС (нето)",null,{"$f":"OTCHET!$E391","v":0},{"$f":"OTCHET!$F391","v":0},{"$f":"OTCHET!$G391","v":0},{"$f":"OTCHET!$H391","v":0},{"$f":"OTCHET!$I391","v":0},{"$f":"OTCHET!$J391","v":0},""]
[160,6100,"Трансфери между бюджети (нето)",null,{"$f":"OTCHET!$E394","v":0},{"$f":"OTCHET!$F394","v":0},{"$f":"OTCHET!$G394","v":0},{"$f":"OTCHET!$H394","v":0},{"$f":"OTCHET!$I394","v":0},{"$f":"OTCHET!$J394","v":0},""]
[185,6200,"Трансфери между бюджети и сметки за средствата от ЕС (нето)",null,{"$f":"OTCHET!$E399","v":0},{"$f":"OTCHET!$F399","v":0},{"$f":"OTCHET!$G399","v":0},{"$f":"OTCHET!$H399","v":0},{"$f":"OTCHET!$I399","v":0},{"$f":"OTCHET!$J399","v":0},""]
[200,6300,"Трансфери между сметки за средствата от ЕС (нето)",null,{"$f":"OTCHET!$E402","v":0},{"$f":"OTCHET!$F402","v":509753},{"$f":"OTCHET!$G402","v":0},{"$f":"OTCHET!$H402","v":509753},{"$f":"OTCHET!$I402","v":0},{"$f":"OTCHET!$J402","v":0},1]
[210,6400,"Трансфери от/за държавни предприятия и други лица, включени в консолидираната фискална програма",null,{"$f":"OTCHET!$E405","v":0},{"$f":"OTCHET!$F405","v":0},{"$f":"OTCHET!$G405","v":0},{"$f":"OTCHET!$H405","v":0},{"$f":"OTCHET!$I405","v":0},{"$f":"OTCHET!$J405","v":0},""]
[213,6500,"Трансфери на отчислени пoстъпления",null,{"$f":"OTCHET!$E408","v":0},{"$f":"OTCHET!$F408","v":0},{"$f":"OTCHET!$G408","v":0},{"$f":"OTCHET!$H408","v":0},{"$f":"OTCHET!$I408","v":0},{"$f":"OTCHET!$J408","v":0},""]
[215,6600,"Разчети за извършени плащания в СЕБРА (+/-)",null,{"$f":"OTCHET!$E409","v":0},{"$f":"OTCHET!$F409","v":0},{"$f":"OTCHET!$G409","v":0},{"$f":"OTCHET!$H409","v":0},{"$f":"OTCHET!$I409","v":0},{"$f":"OTCHET!$J409","v":0},""]
[215,6700,"Трансфери от/за сметки за чужди средства",null,{"$f":"OTCHET!$E412","v":0},{"$f":"OTCHET!$F412","v":0},{"$f":"OTCHET!$G412","v":0},{"$f":"OTCHET!$H412","v":0},{"$f":"OTCHET!$I412","v":0},{"$f":"OTCHET!$J412","v":0},""]
[230,6900,"Трансфери за поети осигурителни вноски и данъци",null,{"$f":"OTCHET!$E415","v":0},{"$f":"OTCHET!$F415","v":0},{"$f":"OTCHET!$G415","v":0},{"$f":"OTCHET!$H415","v":0},{"$f":"OTCHET!$I415","v":0},{"$f":"OTCHET!$J415","v":0},""]
[260,null,"III. ОБЩО",null,{"$f":"OTCHET!$E422","v":0},{"$f":"OTCHET!$F422","v":509753},{"$f":"OTCHET!$G422","v":0},{"$f":"OTCHET!$H422","v":509753},{"$f":"OTCHET!$I422","v":0},{"$f":"OTCHET!$J422","v":0},1]
[261,null," 04 ¦",null,null,null,null,null,null,null,1]
[262,"§§","В) ВРЕМЕННИ БЕЗЛИХВЕНИ ЗАЕМИ МЕЖДУ ЦЕНТРАЛНИЯ БЮДЖЕТ,  БЮДЖЕТНИ СМЕТКИ  И  ИЗВЪНБЮДЖЕТНИ ФОНДОВЕ И СМЕТКИ",null,null,null,null,null,null,null,1]
[265,7400,"Получени/предоставени временни безлихвени заеми от/за ЦБ (нето)",null,{"$f":"OTCHET!$E425","v":0},{"$f":"OTCHET!$F425","v":0},{"$f":"OTCHET!$G425","v":0},{"$f":"OTCHET!$H425","v":0},{"$f":"OTCHET!$I425","v":0},{"$f":"OTCHET!$J425","v":0},{"$f":"(IF(E127<>0,$K$2,IF(F127<>0,$K$2,\"\")))","v":""}]
[275,7500,"Временни безлихвени заеми между бюджетни сметки (нето)",null,{"$f":"OTCHET!$E426","v":0},{"$f":"OTCHET!$F426","v":0},{"$f":"OTCHET!$G426","v":0},{"$f":"OTCHET!$H426","v":0},{"$f":"OTCHET!$I426","v":0},{"$f":"OTCHET!$J426","v":0},{"$f":"(IF(E128<>0,$K$2,IF(F128<>0,$K$2,\"\")))","v":""}]
[285,7600,"Временни безлихвени заеми между бюджети и сметки за средствата от ЕС (нето)",null,{"$f":"OTCHET!$E427","v":0},{"$f":"OTCHET!$F427","v":0},{"$f":"OTCHET!$G427","v":0},{"$f":"OTCHET!$H427","v":0},{"$f":"OTCHET!$I427","v":0},{"$f":"OTCHET!$J427","v":0},{"$f":"(IF(E129<>0,$K$2,IF(F129<>0,$K$2,\"\")))","v":""}]
[295,7700,"Временни безлихвени заеми между сметки за средствата от ЕС (нето)",null,{"$f":"OTCHET!$E428","v":0},{"$f":"OTCHET!$F428","v":0},{"$f":"OTCHET!$G428","v":0},{"$f":"OTCHET!$H428","v":0},{"$f":"OTCHET!$I428","v":0},{"$f":"OTCHET!$J428","v":0},{"$f":"(IF(E130<>0,$K$2,IF(F130<>0,$K$2,\"\")))","v":""}]
[305,7800,"Временни безлихвени заеми от/за държавни предприятия и други сметки, включени в консолидираната фискална програма (нето)",null,{"$f":"OTCHET!$E429","v":0},{"$f":"OTCHET!$F429","v":0},{"$f":"OTCHET!$G429","v":0},{"$f":"OTCHET!$H429","v":0},{"$f":"OTCHET!$I429","v":0},{"$f":"OTCHET!$J429","v":0},{"$f":"(IF(E131<>0,$K$2,IF(F131<>0,$K$2,\"\")))","v":""}]
[315,null,"IV. ОБЩО",null,{"$f":"OTCHET!$E432","v":0},{"$f":"OTCHET!$F432","v":0},{"$f":"OTCHET!$G432","v":0},{"$f":"OTCHET!$H432","v":0},{"$f":"OTCHET!$I432","v":0},{"$f":"OTCHET!$J432","v":0},1]
[null,null,null,null,null,null,null,null,null,null,1]
[null,null,null,null,null,null,null,null,null,null,1]
[null,null,null,null,null,null,null,null,null,null,1]
[null,{"$f":"$B$7","v":"ОТЧЕТНИ ДАННИ ПО ЕБК ЗА СМЕТКИТЕ ЗА СРЕДСТВАТА ОТ ЕВРОПЕЙСКИЯ СЪЮЗ - ДЕС"},null,null,null,null,null,null,null,null,1]
[null,null,null,null,"за периода от ","до",null,null,null,null,1]
[null,{"$f":"$B$9","v":"ХТМУ"},null,null,{"$f":"$E$9","v":"2025-01-01"},{"$f":"$F$9","v":"2025-09-30"},null,null,null,null,1]
[null,{"$f":"$B$10","v":"                                                            (наименование на разпоредителя с бюджет)"},null,null,null,{"$f":"$F$10","v":0},null,null,null,null,1]
[null,null,null,null,null,null,null,null,null,null,1]
[null,{"$f":"$B$12","v":"Министерство на образованието и науката "},null,null,"код :",{"$f":"$F$12","v":"1700"},null,null,null,null,1]
[null,{"$f":"$B$13","v":"                                             (наименование на първостепенния разпоредител с бюджет)"},null,null,"(по ЕБК)",null,null,null,null,null,1]
[null,null,null,null,null,null,null,null,null,null,1]
[null,null,null,null,null,null,null,null,null,"(в лева)",1]
[null,null,null,"V. БЮДЖЕТНО САЛДО (ДЕФИЦИТ / ИЗЛИШЪК) =","Уточнен план","Отчет",null,null,null,null,1]
[null,null,null,"= I.(раздел)-II.(раздел=рекапитулацията от всички дейности)+III.(раздел=рекапитулация от всички трансфери)",2017,"Общо","левови\nсметки ","валутни\nсметки ","Касови операции в лева и валута","Приравнени некасови операции",1]
[null,null,null," 0 5  ¦","(1)","(2)","(3)","(4)","(5)","(6)",1]
[null,null,null,null,{"$f":"+E49-E96+E124+E132","v":0},15313,-5424,28084,0,-7347,1]
[null,null,null,null,null,null,null,null,null,null,1]
[null,null,null,null,null,null,null,null,null,null,1]
[null,null,null,null,null,null,null,null,null,null,1]
[null,{"$f":"$B$7","v":"ОТЧЕТНИ ДАННИ ПО ЕБК ЗА СМЕТКИТЕ ЗА СРЕДСТВАТА ОТ ЕВРОПЕЙСКИЯ СЪЮЗ - ДЕС"},null,null,null,null,null,null,null,null,1]
[null,null,null,null,"за периода от ","до",null,null,null,null,1]
[null,{"$f":"$B$9","v":"ХТМУ"},null,null,{"$f":"$E$9","v":"2025-01-01"},{"$f":"$F$9","v":"2025-09-30"},null,null,null,null,1]
[null,{"$f":"$B$10","v":"                                                            (наименование на разпоредителя с бюджет)"},null,null,null,{"$f":"$F$10","v":0},null,null,null,null,1]
[null,null,null,null,null,null,null,null,null,null,1]
[null,{"$f":"$B$12","v":"Министерство на образованието и науката "},null,null,"код :",{"$f":"$F$12","v":"1700"},null,null,null,null,1]
[null,{"$f":"$B$13","v":"                                             (наименование на първостепенния разпоредител с бюджет)"},null,null,"(по ЕБК)",null,null,null,null,null,1]
[null,null,null,null,null,null,null,null,null,null,1]
[null,null,null,null,null,null,null,null,null,"(в лева)",1]
[null,null,"VI. ОПЕРАЦИИ С ФИНАНСОВИ АКТИВИ И ПАСИВИ - ПОЗИЦИИ",null,"Уточнен план","Отчет",null,null,null,null,1]
[null,"§§","(параграфи по ЕБК)",null,2017,"Общо","левови\nсметки ","валутни\nсметки ","Касови операции в лева и валута","Приравнени некасови операции",1]
[1,null," 0 6 ¦",null,"(1)","(2)","(3)","(4)","(5)","(6)",1]
[5,7000,"Придобиване на дялове, акции и съучастия (нето)",null,{"$f":"OTCHET!$E464","v":0},{"$f":"OTCHET!$F464","v":0},{"$f":"OTCHET!$G464","v":0},{"$f":"OTCHET!$H464","v":0},{"$f":"OTCHET!$I464","v":0},{"$f":"OTCHET!$J464","v":0},{"$f":"(IF(E164<>0,$K$2,IF(F164<>0,$K$2,\"\")))","v":""}]
[30,7100,"Предоставени кредити (нето)",null,{"$f":"OTCHET!$E468","v":0},{"$f":"OTCHET!$F468","v":0},{"$f":"OTCHET!$G468","v":0},{"$f":"OTCHET!$H468","v":0},{"$f":"OTCHET!$I468","v":0},{"$f":"OTCHET!$J468","v":0},""]
[45,7200,"Предоставена възмездна финансова помощ (нето)",null,{"$f":"OTCHET!$E471","v":0},{"$f":"OTCHET!$F471","v":0},{"$f":"OTCHET!$G471","v":0},{"$f":"OTCHET!$H471","v":0},{"$f":"OTCHET!$I471","v":0},{"$f":"OTCHET!$J471","v":0},""]
[60,7300,"Плащания по активирани гаранции, поръчителства и преоформен държавен дълг (нето)",null,{"$f":"OTCHET!$E474","v":0},{"$f":"OTCHET!$F474","v":0},{"$f":"OTCHET!$G474","v":0},{"$f":"OTCHET!$H474","v":0},{"$f":"OTCHET!$I474","v":0},{"$f":"OTCHET!$J474","v":0},""]
[110,7900,"Предоставени заеми към крайни бенефициенти по държавни инвестиционни заеми (нето)",null,{"$f":"OTCHET!$E481","v":0},{"$f":"OTCHET!$F481","v":0},{"$f":"OTCHET!$G481","v":0},{"$f":"OTCHET!$H481","v":0},{"$f":"OTCHET!$I481","v":0},{"$f":"OTCHET!$J481","v":0},""]
[125,8000,"Заеми от чужбина - нето (+/-)",null,{"$f":"OTCHET!$E484","v":0},{"$f":"OTCHET!$F484","v":0},{"$f":"OTCHET!$G484","v":0},{"$f":"OTCHET!$H484","v":0},{"$f":"OTCHET!$I484","v":0},{"$f":"OTCHET!$J484","v":0},""]
[220,8100,"Държавни (общински) ценни книжа емитирани на международните капиталови пазари - нето (+/-)",null,{"$f":"OTCHET!$E500","v":0},{"$f":"OTCHET!$F500","v":0},{"$f":"OTCHET!$G500","v":0},{"$f":"OTCHET!$H500","v":0},{"$f":"OTCHET!$I500","v":0},{"$f":"OTCHET!$J500","v":0},""]
[245,8200,"Получени погашения по предоставени кредити на други държави (+)",null,{"$f":"OTCHET!$E505","v":0},{"$f":"OTCHET!$F505","v":0},{"$f":"OTCHET!$G505","v":0},{"$f":"OTCHET!$H505","v":0},{"$f":"OTCHET!$I505","v":0},{"$f":"OTCHET!$J505","v":0},""]
[255,8300,"Заеми от банки и други лица в страната - нето (+/-)",null,{"$f":"OTCHET!$E506","v":0},{"$f":"OTCHET!$F506","v":0},{"$f":"OTCHET!$G506","v":0},{"$f":"OTCHET!$H506","v":0},{"$f":"OTCHET!$I506","v":0},{"$f":"OTCHET!$J506","v":0},""]
[295,8500,"Емисии на държавни (общински) ценни книжа (+)",null,{"$f":"OTCHET!$E515","v":0},{"$f":"OTCHET!$F515","v":0},{"$f":"OTCHET!$G515","v":0},{"$f":"OTCHET!$H515","v":0},{"$f":"OTCHET!$I515","v":0},{"$f":"OTCHET!$J515","v":0},""]
[315,8600,"Погашения на държавни (общински) ценни книжа (-)",null,{"$f":"OTCHET!$E519","v":0},{"$f":"OTCHET!$F519","v":0},{"$f":"OTCHET!$G519","v":0},{"$f":"OTCHET!$H519","v":0},{"$f":"OTCHET!$I519","v":0},{"$f":"OTCHET!$J519","v":0},""]
[355,8700,"Разчети между първостепенни разпоредители  за централизация на средства и плащания в Себра",null,{"$f":"OTCHET!$E524","v":0},{"$f":"OTCHET!$F524","v":0},{"$f":"OTCHET!$G524","v":0},{"$f":"OTCHET!$H524","v":0},{"$f":"OTCHET!$I524","v":0},{"$f":"OTCHET!$J524","v":0},""]
[355,8800,"Събрани средства и извършени плащания за сметка на други бюджети, сметки и фондове - нето (+/-)",null,{"$f":"OTCHET!$E527","v":0},{"$f":"OTCHET!$F527","v":-22660},{"$f":"OTCHET!$G527","v":5424},{"$f":"OTCHET!$H527","v":-28084},{"$f":"OTCHET!$I527","v":0},{"$f":"OTCHET!$J527","v":0},1]
[375,8900,"Суми по разчети за поети осигурителни вноски и данъци",null,{"$f":"OTCHET!$E534","v":0},{"$f":"OTCHET!$F534","v":7347},{"$f":"OTCHET!$G534","v":0},{"$f":"OTCHET!$H534","v":0},{"$f":"OTCHET!$I534","v":0},{"$f":"OTCHET!$J534","v":7347},1]
[395,9000,"Приватизация (+)",null,{"$f":"OTCHET!$E538","v":0},{"$f":"OTCHET!$F538","v":0},{"$f":"OTCHET!$G538","v":0},{"$f":"OTCHET!$H538","v":0},{"$f":"OTCHET!$I538","v":0},{"$f":"OTCHET!$J538","v":0},""]
[405,9100,"Покупко-продажба на държавни (общински) ценни книжа от бюджетни организации - нето  (+/-)",null,{"$f":"OTCHET!$E539","v":0},{"$f":"OTCHET!$F539","v":0},{"$f":"OTCHET!$G539","v":0},{"$f":"OTCHET!$H539","v":0},{"$f":"OTCHET!$I539","v":0},{"$f":"OTCHET!$J539","v":0},""]
[430,9200,"Операции с други ценни книжа и финансови активи за управление на ликвидността - нето (+/-)",null,{"$f":"OTCHET!$E544","v":0},{"$f":"OTCHET!$F544","v":0},{"$f":"OTCHET!$G544","v":0},{"$f":"OTCHET!$H544","v":0},{"$f":"OTCHET!$I544","v":0},{"$f":"OTCHET!$J544","v":0},""]
[445,9300,"Друго финансиране - нето(+/-)",null,{"$f":"OTCHET!$E547","v":0},{"$f":"OTCHET!$F547","v":0},{"$f":"OTCHET!$G547","v":0},{"$f":"OTCHET!$H547","v":0},{"$f":"OTCHET!$I547","v":0},{"$f":"OTCHET!$J547","v":0},""]
[470,9500,"Депозити и средства по сметки - нето (+/-)    (този параграф се използва и за наличностите на ЦБ в БНБ)",null,{"$f":"OTCHET!$E569","v":0},{"$f":"OTCHET!$F569","v":0},{"$f":"OTCHET!$G569","v":0},{"$f":"OTCHET!$H569","v":0},{"$f":"OTCHET!$I569","v":0},{"$f":"OTCHET!$J569","v":0},""]
[565,9600,"Депозити и сметки консолидирани в системата на \"Единната сметка\"-нето (+/-)",null,{"$f":"OTCHET!$E589","v":0},{"$f":"OTCHET!$F589","v":0},{"$f":"OTCHET!$G589","v":0},{"$f":"OTCHET!$H589","v":0},{"$f":"OTCHET!$I589","v":0},{"$f":"OTCHET!$J589","v":0},""]
[575,9800,"Касови операции, депозити, покупко-продажба на валута и сетълмент операции",null,{"$f":"OTCHET!$E594","v":0},{"$f":"OTCHET!$F594","v":0},{"$f":"OTCHET!$G594","v":0},{"$f":"OTCHET!$H594","v":0},{"$f":"OTCHET!$I594","v":0},{"$f":"OTCHET!$J594","v":0},""]
[610,null,"VI. ОБЩО ОПЕРАЦИИ С ФИНАНСОВИ АКТИВИ И ПАСИВИ",null,{"$f":"OTCHET!$E600","v":0},{"$f":"OTCHET!$F600","v":-15313},{"$f":"OTCHET!$G600","v":5424},{"$f":"OTCHET!$H600","v":-28084},{"$f":"OTCHET!$I600","v":0},{"$f":"OTCHET!$J600","v":7347},1]
[null,null,null,null,null,null,null,null,null,null,1]
[null,null,null,null,null,null,null,null,null,null,1]
[null,null,null,null,null,null,null,null,null,null,1]
[null,{"$f":"$B$7","v":"ОТЧЕТНИ ДАННИ ПО ЕБК ЗА СМЕТКИТЕ ЗА СРЕДСТВАТА ОТ ЕВРОПЕЙСКИЯ СЪЮЗ - ДЕС"},null,null,null,null,null,null,null,null,1]
[null,null,null,null,"за периода от ","до",null,null,null,null,1]
[null,{"$f":"$B$9","v":"ХТМУ"},null,null,{"$f":"$E$9","v":"2025-01-01"},{"$f":"$F$9","v":"2025-09-30"},null,null,null,null,1]
[null,{"$f":"$B$10","v":"                                                            (наименование на разпоредителя с бюджет)"},null,null,null,{"$f":"$F$10","v":0},null,null,null,null,1]
[null,null,null,null,null,null,null,null,null,null,1]
[null,{"$f":"$B$12","v":"Министерство на образованието и науката "},null,null,"код :",{"$f":"$F$12","v":"1700"},null,null,null,null,1]
[null,{"$f":"$B$13","v":"                                             (наименование на първостепенния разпоредител с бюджет)"},null,null,"(по ЕБК)",null,null,null,null,null,1]
[null,null,null,null,null,null,null,null,null,null,1]
[null,null,null,null,null,null,null,null,null,"(в лева)",1]
[null,"§§","РАЗПРЕДЕЛЕНИЕ НА РАЗХОДИТЕ ПО ФУНКЦИИ",null,"Уточнен план","Отчет",null,null,null,null,1]
[null,null,null,null,2017,"Общо","левови\nсметки ","валутни\nсметки ","Касови операции в лева и валута","Приравнени некасови операции",1]
[null,"I.","ОБЩИ ДЪРЖАВНИ СЛУЖБИ",null,{"$f":"SUMIF(OTCHET!L:L,1,OTCHET!E:E)","v":0},{"$f":"SUMIF(OTCHET!L:L,1,OTCHET!F:F)","v":0},{"$f":"SUMIF(OTCHET!L:L,1,OTCHET!G:G)","v":0},{"$f":"SUMIF(OTCHET!L:L,1,OTCHET!H:H)","v":0},{"$f":"SUMIF(OTCHET!L:L,1,OTCHET!I:I)","v":0},{"$f":"SUMIF(OTCHET!L:L,1,OTCHET!J:J)","v":0},1]
[null,"II.","ОТБРАНА И СИГУРНОСТ",null,{"$f":"SUMIF(OTCHET!L:L,2,OTCHET!E:E)","v":0},{"$f":"SUMIF(OTCHET!L:L,2,OTCHET!F:F)","v":0},{"$f":"SUMIF(OTCHET!L:L,2,OTCHET!G:G)","v":0},{"$f":"SUMIF(OTCHET!L:L,2,OTCHET!H:H)","v":0},{"$f":"SUMIF(OTCHET!L:L,2,OTCHET!I:I)","v":0},{"$f":"SUMIF(OTCHET!L:L,2,OTCHET!J:J)","v":0},1]
[null,"III.","ОБРАЗОВАНИЕ",null,{"$f":"SUMIF(OTCHET!L:L,3,OTCHET!E:E)","v":0},{"$f":"SUMIF(OTCHET!L:L,3,OTCHET!F:F)","v":517779},{"$f":"SUMIF(OTCHET!L:L,3,OTCHET!G:G)","v":5424},{"$f":"SUMIF(OTCHET!L:L,3,OTCHET!H:H)","v":505008},{"$f":"SUMIF(OTCHET!L:L,3,OTCHET!I:I)","v":0},{"$f":"SUMIF(OTCHET!L:L,3,OTCHET!J:J)","v":7347},1]
[null,"IV.","ЗДРАВЕОПАЗВАНЕ",null,{"$f":"SUMIF(OTCHET!L:L,4,OTCHET!E:E)","v":0},{"$f":"SUMIF(OTCHET!L:L,4,OTCHET!F:F)","v":0},{"$f":"SUMIF(OTCHET!L:L,4,OTCHET!G:G)","v":0},{"$f":"SUMIF(OTCHET!L:L,4,OTCHET!H:H)","v":0},{"$f":"SUMIF(OTCHET!L:L,4,OTCHET!I:I)","v":0},{"$f":"SUMIF(OTCHET!L:L,4,OTCHET!J:J)","v":0},1]
[null,"V.","СОЦИАЛНО ОСИГУРЯВАНЕ, ПОДПОМАГАНЕ И ГРИЖИ",null,{"$f":"SUMIF(OTCHET!L:L,5,OTCHET!E:E)","v":0},{"$f":"SUMIF(OTCHET!L:L,5,OTCHET!F:F)","v":0},{"$f":"SUMIF(OTCHET!L:L,5,OTCHET!G:G)","v":0},{"$f":"SUMIF(OTCHET!L:L,5,OTCHET!H:H)","v":0},{"$f":"SUMIF(OTCHET!L:L,5,OTCHET!I:I)","v":0},{"$f":"SUMIF(OTCHET!L:L,5,OTCHET!J:J)","v":0},1]
[null,"VI.","ЖИЛИЩНО СТРОИТЕЛСТВО, БЛАГОУСТРОЙСТВО, КОМУНАЛНО СТОПАНСТВО И ОПАЗВАНЕ НА ОКОЛНАТА СРЕДА",null,{"$f":"SUMIF(OTCHET!L:L,6,OTCHET!E:E)","v":0},{"$f":"SUMIF(OTCHET!L:L,6,OTCHET!F:F)","v":0},{"$f":"SUMIF(OTCHET!L:L,6,OTCHET!G:G)","v":0},{"$f":"SUMIF(OTCHET!L:L,6,OTCHET!H:H)","v":0},{"$f":"SUMIF(OTCHET!L:L,6,OTCHET!I:I)","v":0},{"$f":"SUMIF(OTCHET!L:L,6,OTCHET!J:J)","v":0},1]
[null,"VII.","ПОЧИВНО ДЕЛО, КУЛТУРА, РЕЛИГИОЗНИ ДЕЙНОСТИ",null,{"$f":"SUMIF(OTCHET!L:L,7,OTCHET!E:E)","v":0},{"$f":"SUMIF(OTCHET!L:L,7,OTCHET!F:F)","v":0},{"$f":"SUMIF(OTCHET!L:L,7,OTCHET!G:G)","v":0},{"$f":"SUMIF(OTCHET!L:L,7,OTCHET!H:H)","v":0},{"$f":"SUMIF(OTCHET!L:L,7,OTCHET!I:I)","v":0},{"$f":"SUMIF(OTCHET!L:L,7,OTCHET!J:J)","v":0},1]
[null,"VIII.","ИКОНОМИЧЕСКИ ДЕЙНОСТИ И УСЛУГИ",null,{"$f":"SUMIF(OTCHET!L:L,8,OTCHET!E:E)","v":0},{"$f":"SUMIF(OTCHET!L:L,8,OTCHET!F:F)","v":0},{"$f":"SUMIF(OTCHET!L:L,8,OTCHET!G:G)","v":0},{"$f":"SUMIF(OTCHET!L:L,8,OTCHET!H:H)","v":0},{"$f":"SUMIF(OTCHET!L:L,8,OTCHET!I:I)","v":0},{"$f":"SUMIF(OTCHET!L:L,8,OTCHET!J:J)","v":0},1]
[null,"IX.","РАЗХОДИ НЕКЛАСИФИЦИРАНИ В ДРУГИТЕ ДЕЙНОСТИ",null,{"$f":"SUMIF(OTCHET!L:L,9,OTCHET!E:E)","v":0},{"$f":"SUMIF(OTCHET!L:L,9,OTCHET!F:F)","v":0},{"$f":"SUMIF(OTCHET!L:L,9,OTCHET!G:G)","v":0},{"$f":"SUMIF(OTCHET!L:L,9,OTCHET!H:H)","v":0},{"$f":"SUMIF(OTCHET!L:L,9,OTCHET!I:I)","v":0},{"$f":"SUMIF(OTCHET!L:L,9,OTCHET!J:J)","v":0},1]
[null,null,"ОБЩО РАЗХОДИ ПО ФУНКЦИИ",null,{"$f":"SUM(E200:E208)","v":0},517779,5424,505008,0,7347,1]
[]
[]
[]
[]
[]
[]
[]
[]
[]
[]
[]
[]
[]
[]
[]
[]
[]
[]
[]
[]
[]
[]
[]
[]
[]
[]
[]
[]
[]
[]
[]
[]
[]
[]
[]
[]
[]
[]
[]
[]
[]
[]
[]
[]
[]
[]
[]
[]
[]
[]
[]
[]
[]
[]
[]
[]
[]
[]
[]
[]
[]
[]
[]
[]
[]
[]
[]
[]
[]
[]
[]
[]
[]
[]
[]
[]
[]
[]
[]
[]
[]
[]
[]
[]
[]
[]
[]
[]
[]
[]
[]
[]
[]
[]
[]
[]
[]
[]
[]
[]
[]
[]
[]
[]
[]
[]
[]
[]
[]
[]
[]
[]
[]
[]
[]
[]
[]
[]
[]
[]
[]
[]
[]
[]
[]
[]
[]
[]
[]
[]
[]
[]
[]
[]
[]
[]
[]
[]
[]
[]
[]
[]
[]
[]
[]
[]
[]
[]
[]
[]
[]
[]
[]
[]
[]
[]
[]
[]
[]
[]
[]
[]
[]
[]
[]
[]
[]
[]
[]
[]
[]
[]
[]
[]
[]
[]
[]
[]
[]
[]
[]
[]
[]
[]
[]
[]
[]
[]
[]
[]
[]
[]
[]
[]
[]
[]
[]
[]
[]
[]
[]
[]
[]
[]
[]
[]
[]
[]
[]
[]
[]
[]
[]
[]
[]
[]
[]
[]
[]
[]
[]
[]
[]
[]
[]
[]
[]
[]
[]
[]
[]
[]
[]
[]
[]
[]
[]
[]
[]
[]
[]
[]
[]
[]
[]
[]
[]
[]
[]
[]
[]
[]
[]
[]
[]
[]
[]
[]
[]
[]
[]
[]
[]
[]
[]
[]
[]
[]
[]
[]
[]
[]
[]
[]
[]
[]
[]
[]
[]
[]
[]
[]
[]
[]
[]
[]
[]
[]
[]
[]
[]
[]
[]
[]
[]
[]
[]
[]
[]
[]
[]
[]
[]
[]
[]
[]
[]
[]
[]
[]
[]
[]
[]
[]
[]
[]
[]
[]
[]
[]
[]
[]
[]
[]
[]
[]
[]
[]
[]
[]
[]
[]
[]
[]
[]
[]
[]
[]
[]
[]
[]
[]
[]
[]
[]
[]
[]
[]
[]
[]
[]
[]
[]
[]
[]
[]
[]
[]
[]
[]
[]
[]
[]
[]
[]
[]
[]
[]
[]
[]
[]
[]
[]
[]
[]
[]
[]
[]
[]
[]
[]
[]
[]
[]
[]
[]
[]
[]
[]
[]
[]
[]
[]
[]
[]
[]
[]
[]
[]
[]
[]
[]
[]
[]
[]
[]
[]
[]
[]
[]
[]
[]
[]
[]
[]
[]
[]
[]
[]
[]
[]
[]
[]
[]
[]
[]
[]
[]
[]
[]
[]
[]
[]
[]
[]
[]
[]
[]
[]
[]
[]
[]
[]
[]
[]
[]
[]
[]
[]
[]
[]
[]
[]
[]
[]
[]
[]
[]
[]
[]
[]
[]
[]
[]
[]
[]
[]
[]
[]
[]
[]
[]
[]
[]
[]
[]
[]
[]
[]
[]
[]
[]
[]
[]
[]
[]
[]
[]
[]
[]
[]
[]
[]
[]
[]
[]
[]
[]
[]
[]
[]
[]
[]
[]
[]
[]
[]
[]
[]
[]
[]
[]
[]
[]
[]
[]
[]
[]
[]
[]
[]
[]
[]
[]
[null,null,null,null,null,null,{"$f":"(IF(E693<>0,$G$2,IF(F693<>0,$G$2,\"\")))","v":""}]

{"sheet":"OTCHET","index":3,"n_rows":789,"n_cols":13,"rows_kept":789,"cut":false,"hidden":false,"merged":[[38,2,38,3],[186,2,186,3],[6,1,6,3],[8,1,8,3],[11,1,11,3],[21,2,21,3],[27,2,27,3],[32,2,32,3],[363,2,363,3],[350,1,350,3],[352,1,352,3],[401,2,401,3],[390,2,390,3],[424,2,424,3],[404,2,404,3],[398,2,398,3],[453,1,453,3],[189,2,189,3],[195,2,195,3],[173,1,173,3],[175,1,175,3],[178,1,178,3],[609,7,609,9],[607,7,607,9],[286,2,286,3],[289,2,289,3],[290,2,290,3],[295,2,295,3],[377,2,377,3],[385,2,385,3],[308,1,308,3],[310,1,310,3],[313,1,313,3],[346,1,346,3],[451,1,451,3],[414,2,414,3],[426,2,426,3],[355,1,355,3],[607,1,607,2],[257,2,257,3],[299,2,299,3],[236,2,236,3],[237,2,237,3],[222,2,222,3],[203,2,203,3],[278,2,278,3],[204,2,204,3],[226,2,226,3],[232,2,232,3],[235,2,235,3],[242,2,242,3],[238,2,238,3],[258,2,258,3],[259,2,259,3],[260,2,260,3],[267,2,267,3],[272,2,272,3],[274,2,274,3],[277,2,277,3],[271,2,271,3],[273,2,273,3],[408,2,408,3],[411,2,411,3],[537,2,537,3],[456,1,456,3],[437,1,437,3],[393,2,393,3],[425,2,425,3],[428,2,428,3],[435,1,435,3],[407,2,407,3],[8,8,8,9],[9,8,11,9],[605,6,605,9],[603,6,603,9],[606,6,606,9],[593,2,593,3],[514,2,514,3],[538,2,538,3],[518,2,518,3],[523,2,523,3],[588,2,588,3],[568,2,568,3],[526,2,526,3],[543,2,543,3],[546,2,546,3],[463,2,463,3],[499,2,499,3],[504,2,504,3],[533,2,533,3],[480,2,480,3],[483,2,483,3],[505,2,505,3],[440,1,440,3],[427,2,427,3],[613,1,613,3],[615,1,615,3],[618,1,618,3],[629,2,629,3],[632,2,632,3],[606,1,606,2],[602,6,602,9],[467,2,467,3],[470,2,470,3],[473,2,473,3],[675,2,675,3],[678,2,678,3],[679,2,679,3],[680,2,680,3],[681,2,681,3],[638,2,638,3],[646,2,646,3],[647,2,647,3],[665,2,665,3],[669,2,669,3],[710,2,710,3],[714,2,714,3],[715,2,715,3],[716,2,716,3],[717,2,717,3],[685,2,685,3],[700,2,700,3],[701,2,701,3],[702,2,702,3],[703,2,703,3],[788,1,788,3],[738,2,738,3],[743,2,743,3],[751,1,751,3],[753,1,753,3],[756,1,756,3],[720,2,720,3],[721,2,721,3],[729,2,729,3],[732,2,732,3],[733,2,733,3]]}
["a","Бланка версия 1.01 от 2019г.","c","d","e","f","f","f","f","f","endprint"]
[2,null,null,null,null,null,null,null,null,null,1]
[null,"година",{"$f":"YEAR(F9)","v":2025},null,null,null,null,null,null,null,1]
[null,null,null,null,null,null,null,null,null,null,1]
[null,null,null,null," "," "," "," "," "," ",1]
[null,null,null,null,null," "," "," "," "," ",1]
[null,{"$f":"VLOOKUP(E15,SMETKA,2,FALSE)","v":"ОТЧЕТНИ ДАННИ ПО ЕБК ЗА СМЕТКИТЕ ЗА СРЕДСТВАТА ОТ ЕВРОПЕЙСКИЯ СЪЮЗ - ДЕС"},null,null,null,null,null,null,null,null,1]
[null,null,null,null,"за периода        от ","до",null,"ЕИК/БУЛСТАТ",null,null,1]
[null,"ХТМУ",null,null,"2025-01-01","2025-09-30",null,null,null,null,1]
[null,"                                                            (наименование на разпоредителя с бюджет)",null,null,null,null,null,null,"код от регистъра на бюджетните организации в СЕБРА",null,1]
[null,null,null,null,null,null,null,null,null,null,1]
[null,{"$f":"VLOOKUP(F12,PRBK,2,FALSE)","v":"Министерство на образованието и науката "},null,null,"код по ЕБК:","1700",null,null,null,null,1]
[null,"                                             (наименование на първостепенния разпоредител с бюджет)",null,null,null,null,null,null,null,null,1]
[null,null,null,null,null,null,null,null,null,null,1]
[null,null,null,"ФИНАНСОВО-ПРАВНА ФОРМА",96,{"$f":"+IF(+E15=0,\"БЮДЖЕТ\",+IF(+E15=98,\"СЕС - КСФ\",+IF(+E15=42,\"СЕС - РА\",+IF(+E15=96,\"СЕС - ДЕС\",+IF(+E15=97,\"СЕС - ДМП\",+IF(+E15=33,\"Чужди средства\"))))))","v":"СЕС - ДЕС"},null,null,null,null,1]
[null,null,null,null,null,null,null,null,null,null,1]
[null,null,null,null,null,null,null,null,null,null,1]
[null,null,null,null,null,null,null,null,null,"(в лева)",1]
[null,null,null,"I. П Р И Х О Д И,  П О М О Щ И   И   Д А Р Е Н И Я","Уточнен план","                                                                                                                              О Т Ч Е Т Н И   Д А Н Н И",null,null,null,null,1]
[null,"§§","под-§§","Н А И М Е Н О В А Н И Е",{"$f":"$C$3","v":2025},"ОБЩО","левови\n сметки и СЕБРА ","валутни \nсметки ","операции в брой (в левове и валута)","операции приравнени на касов поток",1]
[null,null,null," 0 1 ¦","(1)","(2)","(3)","(4)","(5)","(6)",1]
[5,100,"Данък върху доходите на физически лица:",null,{"$f":"SUM(E23:E27)","v":0},0,0,0,0,0,{"$f":"(IF($E22<>0,$K$2,IF($F22<>0,$K$2,IF($G22<>0,$K$2,IF($H22<>0,$K$2,IF($I22<>0,$K$2,IF($J22<>0,$K$2,\"\")))))))","v":""}]
[10,null,101,"за доходи по трудови, служебни и приравнени на тях правоотношения",null,{"$f":"G23+H23+I23+J23","v":0},null,null,null,null,""]
[15,null,102,"за доходи на  еднолични търговци, свободни професии, извънтрудови правоотношения и др.",null,{"$f":"G24+H24+I24+J24","v":0},null,null,null,null,""]
[20,null,103,"патентен данък и данък върху таксиметров превоз на пътници",null,{"$f":"G25+H25+I25+J25","v":0},null,null,null,null,""]
[20,null,108,"окончателен данък върху доходите от лихви по банкови сметки на местните физически лица",null,{"$f":"G26+H26+I26+J26","v":0},null,null,null,null,""]
[21,null,109,"окончателен данък  върху доходи на местни и чуждестранни физически лица по чл. 37 и 38 от ЗДДФЛ",null,{"$f":"G27+H27+I27+J27","v":0},null,null,null,null,""]
[25,200,"Корпоративен данък:",null,{"$f":"SUM(E29:E32)","v":0},0,0,0,0,0,""]
[30,null,201,"корпоративен данък от нефинансови предприятия",null,{"$f":"G29+H29+I29+J29","v":0},null,null,null,null,""]
[35,null,202,"корпоративен данък от финансови институции",null,{"$f":"G30+H30+I30+J30","v":0},null,null,null,null,""]
[40,null,203,"корпоративен данък от юридически лица с нестопанска цел",null,{"$f":"G31+H31+I31+J31","v":0},null,null,null,null,""]
[45,null,204,"корпоративен данък от застрахователни дружества",null,{"$f":"G32+H32+I32+J32","v":0},null,null,null,null,""]
[50,400,"Данъци върху дивидентите, ликвидационните дялове и доходите на местни и чуждестранни лица:",null,{"$f":"SUM(E34:E38)","v":0},0,0,0,0,0,""]
[55,null,401,"данък върху дивидентите и ликвидационните дялове на местни юридически лица",null,{"$f":"G34+H34+I34+J34","v":0},null,null,null,null,""]
[56,null,402,"данък върху дивидентите и ликвидационните дялове на бюджетни предприятия",null,{"$f":"G35+H35+I35+J35","v":0},null,null,null,null,""]
[57,null,403,"данък върху дивидентите и ликвидационните дялове на чуждестрани юридически лица",null,{"$f":"G36+H36+I36+J36","v":0},null,null,null,null,""]
[58,null,404,"данък при източника върху доходи на чуждестранни юридически лица",null,{"$f":"G37+H37+I37+J37","v":0},null,null,null,null,""]
[59,null,411,"данък върху дивидентите и ликвидационните дялове на физически лица",null,{"$f":"G38+H38+I38+J38","v":0},null,null,null,null,""]
[65,800,"Осигурителни вноски",null,{"$f":"SUM(E40:E46)","v":0},0,0,0,0,0,""]
[70,null,801,"вноски за работници и служители от работодатели",null,{"$f":"G40+H40+I40+J40","v":0},null,null,null,null,""]
[75,null,802,"вноски от работници и служители (лична вноска) ",null,0,null,null,null,null,""]
[80,null,804,"вноски от самонаети лица (самоосигуряващи се лица) ",null,0,null,null,null,null,""]
[85,null,809,"вноски  за други категории осигурени лица",null,0,null,null,null,null,""]
[85,null,811,"вноски по чл. 4б и 4в от КСО за сметка на осигурителя",null,0,null,null,null,null,""]
[85,null,812,"вноски по чл. 4б от КСО за сметка на осигурените лица",null,0,null,null,null,null,""]
[85,null,814,"вноски по чл. 4б от КСО от самонаети лица (самоосигуряващи се лица) ",null,0,null,null,null,null,""]
[95,1000,"Здравно-осигурителни вноски",null,{"$f":"SUM(E48:E51)","v":0},0,0,0,0,0,""]
[100,null,1001,"здравно-осигурителни вноски за работници и служители от работодатели",null,{"$f":"G48+H48+I48+J48","v":0},null,null,null,null,""]
[105,null,1002,"здравно-осигурителни вноски от работници и служители (лична вноска) ",null,{"$f":"G49+H49+I49+J49","v":0},null,null,null,null,""]
[110,null,1004,"здравно-осигурителни вноски от самонаети (самоосигуряващи се лица) ",null,{"$f":"G50+H50+I50+J50","v":0},null,null,null,null,""]
[125,null,1007,"здравно-осигур.вноски  за други категории осигурени лица",null,{"$f":"G51+H51+I51+J51","v":0},null,null,null,null,""]
[130,1300,"Имуществени и други местни данъци :",null,{"$f":"SUM(E53:E57)","v":0},0,0,0,0,0,""]
[135,null,1301,"данък върху недвижими имоти",null,{"$f":"G53+H53+I53+J53","v":0},null,null,null,null,""]
[140,null,1302,"данък върху наследствата",null,{"$f":"G54+H54+I54+J54","v":0},null,null,null,null,""]
[145,null,1303,"данък върху превозните средства",null,{"$f":"G55+H55+I55+J55","v":0},null,null,null,null,""]
[null,null,1304,"данък при придобиване на имущество по дарения и възмезден начин",null,{"$f":"G56+H56+I56+J56","v":0},null,null,null,null,""]
[150,null,1308,"туристически данък",null,{"$f":"G57+H57+I57+J57","v":0},null,null,null,null,""]
[160,1400,"Данък върху добавената стойност",null,{"$f":"SUM(E59:E60)","v":0},0,0,0,0,0,""]
[165,null,1401,"данък върху добавената стойност при сделки в страната",null,{"$f":"G59+H59+I59+J59","v":0},null,null,null,null,""]
[170,null,1402,"данък върху добавената стойност при внос",null,{"$f":"G60+H60+I60+J60","v":0},null,null,null,null,""]
[175,1500,"Акцизи ",null,{"$f":"SUM(E62:E63)","v":0},0,0,0,0,0,""]
[180,null,1501,"акциз при сделки в страната",null,{"$f":"G62+H62+I62+J62","v":0},null,null,null,null,""]
[185,null,1502,"акциз при внос",null,{"$f":"G63+H63+I63+J63","v":0},null,null,null,null,""]
[null,1600,"Данък върху застрахователните премии",null,null,{"$f":"G64+H64+I64+J64","v":0},null,null,null,null,""]
[200,1700,"Други данъци по Закона за корпоративното подоходно облагане:",null,{"$f":"SUM(E66:E71)","v":0},0,0,0,0,0,""]
[205,null,1701,"данък върху представителните разходи",null,{"$f":"G66+H66+I66+J66","v":0},null,null,null,null,""]
[210,null,1702,"данък върху разходи, предоставяни в натура",null,0,null,null,null,null,""]
[215,null,1703,"данък върху разходите за превозни средства",null,0,null,null,null,null,""]
[225,null,1706,"данък върху хазартната дейност",null,0,null,null,null,null,""]
[226,null,1707,"данък върху дейността от опериране на кораби",null,0,null,null,null,null,""]
[227,null,1709,"данък върху приходите на бюджетните предприятия",null,0,null,null,null,null,""]
[235,1900,"Мита и митнически такси:",null,null,0,null,null,null,null,""]
[255,2000,"Други данъци",null,null,0,null,null,null,null,""]
[265,2400,"Приходи и доходи от собственост",null,{"$f":"SUM(E75:E89)","v":0},0,0,0,0,0,""]
[270,null,2401,"вноски от приходи на държавни (общински) предприятия и институции",null,{"$f":"G75+H75+I75+J75","v":0},0,0,0,0,""]
[280,null,2403,"превишение на приходите над разходите на БНБ",null,0,0,0,0,0,""]
[285,null,2404,"нетни приходи от продажби на услуги, стоки и продукция",null,0,0,0,0,0,""]
[290,null,2405,"приходи от наеми на имущество",null,0,0,0,0,0,""]
[295,null,2406,"приходи от наеми на земя",null,0,0,0,0,0,""]
[300,null,2407,"приходи от дивиденти",null,0,0,0,0,0,""]
[305,null,2408,"приходи от лихви по текущи банкови сметки",null,0,0,0,0,0,""]
[310,null,2409,"приходи от лихви по срочни депозити",null,0,0,0,0,0,""]
[315,null,2410,"приходи от лихви по предоставени заеми в страната и чужбина",null,0,0,0,0,0,""]
[325,null,2412,"приходи от лихви от предприятия по преоформен държавен дълг",null,0,0,0,0,0,""]
[330,null,2413,"приходи от лихви и отстъпки от държавни и общински ценни книжа",null,0,0,0,0,0,""]
[335,null,2415,"приходи от лихви и отстъпки от дългови ценни книжа на местни и чуждестранни лица",null,0,0,0,0,0,""]
[340,null,2417,"приходи от лихви по заеми, предоставени на бюджетни организации",null,{"$f":"G87+H87+I87+J87","v":0},null,null,null,null,""]
[340,null,2418,"лихви по срочни депозити за сметка на централния бюджет (+/-)",null,0,0,0,0,0,""]
[345,null,2419,"приходи от други лихви",null,0,0,0,0,0,{"$f":"(IF($E89<>0,$K$2,IF($F89<>0,$K$2,IF($G89<>0,$K$2,IF($H89<>0,$K$2,IF($I89<>0,$K$2,IF($J89<>0,$K$2,\"\")))))))","v":""}]
[350,2500,"Държавни такси",null,{"$f":"SUM(E91:E92)","v":0},0,0,0,0,0,""]
[355,null,2501,"такси за административни и други услуги и дейности",null,{"$f":"G91+H91+I91+J91","v":0},0,0,0,0,""]
[356,null,2502,"такси и лицензии с данъчен характер",null,{"$f":"G92+H92+I92+J92","v":0},null,null,null,null,""]
[360,2600,"Съдебни такси",null,null,{"$f":"G93+H93+I93+J93","v":0},null,null,null,null,""]
[370,2700,"Общински такси",null,{"$f":"SUM(E95:E105)","v":0},0,0,0,0,0,""]
[380,null,"27-02","за ползване на детски кухни",null,{"$f":"G95+H95+I95+J95","v":0},null,null,null,null,""]
[385,null,"27-03","за ползване на лагери и други по социалния отдих",null,0,null,null,null,null,""]
[390,null,2704,"за ползване на домашен социален патронаж и други общински социални услуги",null,0,null,null,null,null,""]
[395,null,"27-05","за ползване на пазари, тържища, панаири, тротоари, улични платна и др.",null,0,null,null,null,null,""]
[405,null,"27-07","за битови отпадъци",null,0,null,null,null,null,""]
[410,null,"27-08","за ползване на общежития и други по образованието",null,0,null,null,null,null,""]
[420,null,"27-10","за технически услуги",null,0,null,null,null,null,""]
[425,null,"27-11","за административни услуги",null,0,null,null,null,null,""]
[430,null,"27-15","за откупуване на гробни места",null,0,null,null,null,null,""]
[436,null,"27-17","за притежаване на куче",null,0,null,null,null,null,""]
[440,null,"27-29","други общински такси",null,0,null,null,null,null,""]
[445,2800,"Глоби, санкции и наказателни лихви",null,{"$f":"+E107+E108+E109","v":0},{"$f":"+F107+F108+F109","v":0},{"$f":"+G107+G108+G109","v":0},{"$f":"SUM(H107:H109)","v":0},{"$f":"+I107+I108+I109","v":0},{"$f":"SUM(J107:J109)","v":0},""]
[450,null,2801,"конфискувани средства и приходи от продажби на конфискувани и придобити от залог вещи",null,{"$f":"G107+H107+I107+J107","v":0},0,0,0,0,""]
[455,null,2802,"глоби, санкции, неустойки, наказателни лихви, обезщетения и начети",null,{"$f":"G108+H108+I108+J108","v":0},0,0,0,0,""]
[455,null,2809,"наказателни лихви за данъци, мита и осигурителни вноски",null,{"$f":"G109+H109+I109+J109","v":0},0,0,0,0,""]
[470,3600,"Други приходи",null,{"$f":"SUM(E111:E118)","v":0},23339,0,23339,0,0,1]
[475,null,3601,"реализирани курсови разлики от валутни операции (нето) (+/-)",null,{"$f":"G111+H111+I111+J111","v":0},0,0,0,0,""]
[480,null,3605,"прехвърлени/възстановени акумулирани средства от осигурителни вноски",null,{"$f":"G112+H112+I112+J112","v":0},null,null,null,null,""]
[480,null,3608,"вноски за фонд \"ИЕЯС\" и фонд \"РАО\"",null,{"$f":"G113+H113+I113+J113","v":0},null,null,null,null,""]
[480,null,3610,"приходи от други вноски",null,0,null,null,null,null,""]
[480,null,3611,"получени застрахователни обезщетения за ДМА",null,0,0,0,0,0,""]
[485,null,3612,"получени други застрахователни обезщетения",null,0,0,0,0,0,""]
[null,null,3618,"коректив за касови постъпления (-/+) ",null,0,0,0,0,0,""]
[490,null,3619,"други неданъчни приходи",null,23339,0,23339,0,0,1]
[495,3700,"Внесени ДДС и други данъци върху продажбите ",null,{"$f":"SUM(E120:E122)","v":0},0,0,0,0,0,""]
[500,null,3701,"внесен ДДС (-)",null,{"$f":"G120+H120+I120+J120","v":0},0,0,0,0,""]
[505,null,3702,"внесен данък върху приходите от стопанска дейност на бюджетните предприятия (-)",null,{"$f":"G121+H121+I121+J121","v":0},0,0,0,0,""]
[510,null,3709,"внесени други данъци,такси и вноски върху продажбите (-)",null,{"$f":"G122+H122+I122+J122","v":0},null,null,null,null,""]
[515,4000,"Постъпления от продажба на нефинансови активи (без § 40-71)",null,{"$f":"SUM(E124:E134)","v":0},0,0,0,0,0,""]
[516,null,4021,"постъпления от продажба на компютри и хардуер",null,{"$f":"G124+H124+I124+J124","v":0},0,0,0,0,""]
[517,null,4022,"постъпления от продажба на сгради",null,0,0,0,0,0,""]
[518,null,4023,"постъпления от продажба на друго оборудване, машини и съоръжения",null,0,0,0,0,0,""]
[519,null,4024,"постъпления от продажба на транспортни средства",null,0,0,0,0,0,""]
[520,null,4025,"постъпления от продажба на стопански инвентар",null,0,0,0,0,0,""]
[521,null,4026,"постъпления от продажба на инфраструктурни обекти",null,0,0,0,0,0,""]
[522,null,4029,"постъпления от продажба на други ДМА",null,0,0,0,0,0,""]
[523,null,4030,"постъпления от продажба на нематериални дълготрайни активи",null,0,0,0,0,0,""]
[523,null,4039,"постъпления от продажба на квоти за емисии на парникови газове",null,0,null,null,null,null,""]
[524,null,4040,"постъпления от продажба на земя",null,0,0,0,0,0,""]
[526,null,4072,"постъпления от продажба на земеделска продукция",null,0,0,0,0,0,""]
[540,4100,"Приходи от концесии",null,null,0,null,null,null,null,""]
[550,4200,"Приходи от лицензии за ползване на държавни/общински активи",null,null,0,null,null,null,null,""]
[560,"45-00","Помощи и дарения от страната",null,{"$f":"SUM(E138:E139)","v":0},0,0,0,0,0,""]
[565,null,4501,"текущи помощи и дарения от страната",null,{"$f":"G138+H138+I138+J138","v":0},0,0,0,0,""]
[570,null,4503,"капиталови помощи и дарения от страната",null,{"$f":"G139+H139+I139+J139","v":0},0,0,0,0,""]
[575,4600,"Помощи и дарения от чужбина",null,{"$f":"SUM(E141:E148)","v":0},0,0,0,0,0,""]
[580,null,4610,"текущи помощи и дарения от Европейския съюз",null,{"$f":"G141+H141+I141+J141","v":0},0,0,0,0,""]
[585,null,4620,"капиталови помощи и дарения от Европейския съюз",null,0,0,0,0,0,""]
[590,null,4630,"текущи помощи и дарения от други държави",null,0,0,0,0,0,""]
[595,null,4640,"капиталови помощи и дарения от други държави",null,0,0,0,0,0,""]
[600,null,4650,"текущи помощи и дарения от други международни организации",null,0,0,0,0,0,""]
[605,null,4660,"капиталови помощи и дарения от други международни организации",null,0,0,0,0,0,""]
[610,null,4670,"други текущи помощи и дарения от чужбина",null,0,0,0,0,0,""]
[615,null,4680,"други капиталови помощи и дарения  от чужбина",null,0,0,0,0,0,""]
[575,4700,"Получени чрез небюджетни предприятия средства от КФП по международни и други програми",null,{"$f":"SUM(E150:E157)","v":0},0,0,0,0,0,""]
[580,null,4743,"получени чрез нефинансови предприятия текущи трансфери от КФП по международни и други програми ",null,{"$f":"G150+H150+I150+J150","v":0},null,null,null,null,""]
[585,null,4744,"получени чрез финансови институции текущи трансфери от КФП по международни и други програми",null,0,null,null,null,null,""]
[590,null,4745,"получени чрез нестопански организации текущи трансфери от КФП по международни и други програми ",null,0,null,null,null,null,""]
[595,null,4749,"получени чрез предприятия от чужбина текущи трансфери от КФП по международни и други програми",null,0,null,null,null,null,{"$f":"(IF($E153<>0,$K$2,IF($F153<>0,$K$2,IF($G153<>0,$K$2,IF($H153<>0,$K$2,IF($I153<>0,$K$2,IF($J153<>0,$K$2,\"\")))))))","v":""}]
[600,null,4751,"получени чрез нефинансови предприятия капиталови трансфери от КФП по международни и други програми ",null,0,null,null,null,null,""]
[605,null,4752,"получени чрез финансови институции капиталови трансфери от КФП по международни и други програми ",null,0,null,null,null,null,""]
[610,null,4753,"получени чрез нестопански организации капиталови трансфери от КФП по международни и други програми",null,0,null,null,null,null,""]
[615,null,4759,"получени чрез предприятия от чужбина капиталови трансфери от КФП по международни и други програми",null,0,null,null,null,null,""]
[575,4800,"Разпределени към администратори от чужбина средства по международни програми и договори (-)",null,{"$f":"SUM(E159:E166)","v":0},0,0,0,0,0,""]
[580,null,4810,"разпределени към чужбина текущи трансфери по програми на Европейския съюз (-)",null,{"$f":"G159+H159+I159+J159","v":0},0,0,0,0,""]
[585,null,4820,"разпределени към чужбина капиталови трансфери по програми на Европейския съюз ",null,0,null,null,null,null,""]
[590,null,4830,"разпределени към чужбина текущи трансфери по програми на други държави (-)",null,0,null,null,null,null,""]
[595,null,4840,"разпределени към чужбина капиталови трансфери по програми на други държави (-)",null,0,null,null,null,null,""]
[600,null,4850,"разпределени към чужбина текущи трансфери по програми на други международни организации (-)",null,0,null,null,null,null,""]
[605,null,4860,"разпределени към чужбина капиталови трансфери по програми на други международни организации  (-)",null,0,null,null,null,null,""]
[610,null,4870,"разпределени към чужбина текущи трансфери по други чуждестранни дарения и помощи (-)",null,0,null,null,null,null,""]
[615,null,4880,"разпределени към чужбина капиталови трансфери по други чуждестранни дарения и помощи (-)",null,0,null,null,null,null,""]
[620,"ВСИЧКО","99-99","I. В С И Ч К О   П Р И Х О Д И,  П О М О Щ И   И   Д А Р Е Н И Я",{"$f":"SUM(E22,E28,E33,E39,E47,E52,E58,E61,E64,E65,E72,E73,E74,E90,E93,E94,E106,E110,E119,E123,E135,E136,E137,E140,E149,E158)","v":0},23339,0,23339,0,0,1]
[null,null,null,null,null,null,null,null,null,null,1]
[]
[]
[null,null,null,null,null,null,null,null,null,null,1]
[null,null,null,null,null,null,null,null,null,null,1]
[null,null,null,null,null,null,null,null,null,null,1]
[null,{"$f":"$B$7","v":"ОТЧЕТНИ ДАННИ ПО ЕБК ЗА СМЕТКИТЕ ЗА СРЕДСТВАТА ОТ ЕВРОПЕЙСКИЯ СЪЮЗ - ДЕС"},null,null,null,null,null,null,null,null,1]
[null,null,null,null,"за периода        от ","до",null,null,null,null,1]
[null,{"$f":"$B$9","v":"ХТМУ"},null,null,{"$f":"$E$9","v":"2025-01-01"},{"$f":"$F$9","v":"2025-09-30"},null,null,null,null,1]
[null,{"$f":"$B$10","v":"                                                            (наименование на разпоредителя с бюджет)"},null,null,null,null,null,null,null,null,1]
[null,null,null,null,null,null,null,null,null,null,1]
[null,{"$f":"$B$12","v":"Министерство на образованието и науката "},null,null,"       код по ЕБК:",{"$f":"$F$12","v":"1700"},null,null,null,null,1]
[null,{"$f":"$B$13","v":"                                             (наименование на първостепенния разпоредител с бюджет)"},null,null,null,null,null,null,null,null,1]
[null,null,null,"ФИНАНСОВО-ПРАВНА ФОРМА",{"$f":"$E$15","v":96},{"$f":"$F$15","v":"СЕС - ДЕС"},null,null,null,null,1]
[null,null,null,null,null,null,null,null,null,"(в лева)",1]
[null,null,null,"II. РАЗХОДИ - РЕКАПИТУЛАЦИЯ ПО ПАРАГРАФИ И ПОДПАРАГРАФИ","Уточнен план","                                                                                                                              О Т Ч Е Т Н И   Д А Н Н И",null,null,null,null,1]
[null,"§§","под-§§","НАИМЕНОВАНИЕ НА ПАРАГРАФИТЕ И ПОДПАРАГРАФИТЕ",{"$f":"$C$3","v":2025},"ОБЩО","левови\n сметки и СЕБРА ","валутни \nсметки ","операции в брой (в левове и валута)","операции приравнени на касов поток",1]
[null,null,null," 02 ¦","(1)","(2)","(3)","(4)","(5)","(6)",1]
[null,null,null,null,null,null,null,null,null,null,1]
[5,100,"Заплати и възнаграждения за персонала, нает по трудови и служебни правоотношения",null,{"$f":"SUMIF($B$613:$B$20149,$B187,E$613:E$20149)","v":0},0,0,0,0,0,{"$f":"(IF($E187<>0,$K$2,IF($F187<>0,$K$2,IF($G187<>0,$K$2,IF($H187<>0,$K$2,IF($I187<>0,$K$2,IF($J187<>0,$K$2,\"\")))))))","v":""}]
[10,null,101,"заплати и възнаграждения на персонала нает по трудови правоотношения",{"$f":"SUMIF($C$613:$C$20149,$C188,E$613:E$20149)","v":0},0,0,0,0,0,"","Р"]
[15,null,102,"заплати и възнаграждения на персонала нает по служебни правоотношения",0,0,0,0,0,0,"","Е"]
[35,200,"Други възнаграждения и плащания за персонала",null,{"$f":"SUMIF($B$613:$B$20149,$B190,E$613:E$20149)","v":0},75853,0,69492,0,6361,1,"К"]
[40,null,201,"за нещатен персонал нает по трудови правоотношения ",{"$f":"SUMIF($C$613:$C$20149,$C191,E$613:E$20149)","v":0},0,0,0,0,0,"","А"]
[45,null,202,"за персонала по извънтрудови правоотношения",0,75853,0,69492,0,6361,1,"П"]
[50,null,205,"изплатени суми от СБКО за облекло и други на персонала, с характер на възнаграждение",0,0,0,0,0,0,"","И"]
[55,null,208,"обезщетения за персонала, с характер на възнаграждение",0,0,0,0,0,0,"","Т"]
[60,null,209,"другиплащания и възнаграждения",0,0,0,0,0,0,"","У"]
[65,500,"Задължителни осигурителни вноски от работодатели",null,{"$f":"SUMIF($B$613:$B$20149,$B196,E$613:E$20149)","v":0},986,0,0,0,986,1,"Л"]
[70,null,551,"осигурителни вноски от работодатели за Държавното обществено осигуряване (ДОО)",{"$f":"SUMIF($C$613:$C$20149,$C197,E$613:E$20149)","v":0},512,0,0,0,512,1,"А"]
[75,null,{"$f":"C197+1","v":552},"осигурителни вноски от работодатели за Учителския пенсионен фонд (УчПФ)",0,0,0,0,0,0,"","Ц"]
[80,null,558,"вноски по чл. 4б и 4в от КСО за сметка на осигурителя",0,0,0,0,0,0,"","И"]
[80,null,560,"здравно-осигурителни вноски от работодатели",0,299,0,0,0,299,1,"Я"]
[85,null,580,"вноски за допълнително задължително осигуряване от работодатели",0,175,0,0,0,175,1]
[90,null,588,"коректив на вноски за ДЗПО за сумите по чл. 4б и 4в от КСО за сметка на осигурителя",0,0,0,0,0,0,""]
[90,null,590,"задължителни вноски за чуждестранни пенсионни фондове и  схеми за сметка на осигурителя",0,0,0,0,0,0,""]
[115,800,"Вноски за доброволно осигуряване  ",null,{"$f":"SUMIF($B$613:$B$20149,$B204,E$613:E$20149)","v":0},0,0,0,0,0,"","Н"]
[125,1000,"Издръжка",null,0,96968,5424,91544,0,0,1,"А"]
[130,null,1011,"Храна",{"$f":"SUMIF($C$613:$C$20149,$C206,E$613:E$20149)","v":0},328,0,328,0,0,1]
[135,null,1012,"Медикаменти",0,0,0,0,0,0,"","Р"]
[140,null,1013,"Постелен инвентар и облекло",0,0,0,0,0,0,"","А"]
[145,null,1014,"Учебни и научно-изследователски разходи и книги за библиотеките",0,0,0,0,0,0,"","З"]
[150,null,1015,"материали",0,5527,5424,103,0,0,1,"Х"]
[155,null,1016,"вода, горива и енергия",0,0,0,0,0,0,"","О"]
[160,null,1020,"разходи за външни услуги",0,3006,0,3006,0,0,1,"Д"]
[165,null,1030,"Текущ ремонт",0,0,0,0,0,0,"","И"]
[175,null,1051,"командировки в страната",0,0,0,0,0,0,""]
[180,null,1052,"краткосрочни командировки в чужбина",0,88048,0,88048,0,0,1]
[185,null,1053,"дългосрочни командировки в чужбина",{"$f":"SUMIF($C$613:$C$20149,$C216,E$613:E$20149)","v":0},0,0,0,0,0,"","Р"]
[190,null,1062,"разходи за застраховки",0,0,0,0,0,0,"","Е"]
[200,null,1063,"такса ангажимент по заеми",0,0,0,0,0,0,"","К"]
[200,null,1069,"други финансови услуги",0,59,0,59,0,0,1,"А"]
[205,null,1091,"други разходи за СБКО",0,0,0,0,0,0,"","П"]
[210,null,1092,"разходи за договорни санкции и неустойки, съдебни обезщетения и разноски",0,0,0,0,0,0,"","И"]
[215,null,1098,"други разходи, некласифицирани в другите параграфи и подпараграфи",0,0,0,0,0,0,"","Т"]
[220,1900,"Платени данъци, такси и административни санкции",null,{"$f":"SUMIF($B$613:$B$20149,$B223,E$613:E$20149)","v":0},0,0,0,0,0,"","У"]
[225,null,1901,"платени държавни данъци, такси, наказателни лихви и административни санкции",{"$f":"SUMIF($C$613:$C$20149,$C224,E$613:E$20149)","v":0},0,0,0,0,0,"","Л"]
[230,null,1981,"платени общински данъци, такси, наказателни лихви и административни санкции",0,0,0,0,0,0,"","А"]
[245,null,1991,"платени данъци, такси, наказателни лихви и административни санкции в чужбина",0,0,0,0,0,0,"","Ц"]
[220,2100,"Разходи за лихви по емисии на държавни (общински) ценни книжа",null,{"$f":"SUMIF($B$613:$B$20149,$B227,E$613:E$20149)","v":0},0,0,0,0,0,"","И"]
[225,null,2110,"лихви по държавни (общински) ценни книжа",{"$f":"SUMIF($C$613:$C$20149,$C228,E$613:E$20149)","v":0},0,0,0,0,0,"","Я"]
[230,null,2120,"отстъпки по държавни (общински) ценни книжа",0,0,0,0,0,0,""]
[235,null,2125,"лихви и отстъпки по целеви емисии на държавни ценни книжа",0,0,0,0,0,0,"","Н"]
[240,null,2140,"лихви по държавни ценни книжа, емитирани за структурната реформа ",0,0,0,0,0,0,"","А"]
[245,null,2190,"премии над номинала от емисии на държавни (общински) ценни книжа (-)",0,0,0,0,0,0,""]
[250,2200,"Разходи за лихви по заеми от страната",null,{"$f":"SUMIF($B$613:$B$20149,$B233,E$613:E$20149)","v":0},0,0,0,0,0,"","Р"]
[255,null,2221,"Разходи за лихви по заеми от банки в страната",{"$f":"SUMIF($C$613:$C$20149,$C234,E$613:E$20149)","v":0},0,0,0,0,0,"","А"]
[265,null,2224,"Разходи за лихви по други заеми от страната",0,0,0,0,0,0,"","З"]
[270,2500,"Разходи за лихви по заеми от други държави",null,{"$f":"SUMIF($B$613:$B$20149,$B236,E$613:E$20149)","v":0},0,0,0,0,0,"","Х"]
[290,2600,"Разходи за лихви по заеми от международни организации и институции",null,0,0,0,0,0,0,"","О"]
[320,2700,"Разходи за лихви по заеми от банки и други финансови институции от чужбина",null,0,0,0,0,0,0,"","Д"]
[330,2800,"Разходи за лихви и отстъпки по облигации, емитирани и търгувани на международните капиталови пазари",null,{"$f":"SUM(E240:E242)","v":0},0,0,0,0,0,"","И"]
[331,null,2810,"лихви по облигации, емитирани на международните капиталови пазари",{"$f":"SUMIF($C$613:$C$20149,$C240,E$613:E$20149)","v":0},0,{"$f":"SUMIF($C$613:$C$20149,$C240,G$613:G$20149)","v":0},{"$f":"SUMIF($C$613:$C$20149,$C240,H$613:H$20149)","v":0},{"$f":"SUMIF($C$613:$C$20149,$C240,I$613:I$20149)","v":0},{"$f":"SUMIF($C$613:$C$20149,$C240,J$613:J$20149)","v":0},""]
[332,null,2820,"отстъпки по облигации, емитирани на международните капиталови пазари",0,0,0,0,0,0,""]
[333,null,2890,"премии над номинала на облигации, емитирани и търгувани на международните капиталови пазари (-)",{"$f":"SUMIF($C$613:$C$20149,$C242,E$613:E$20149)","v":0},0,0,0,0,0,""]
[350,2900,"Други разходи за лихви",null,{"$f":"SUMIF($B$613:$B$20149,$B243,E$613:E$20149)","v":0},0,0,0,0,0,""]
[355,null,2910,"Платени лихви по финансов лизинг и търговски кредит",0,0,0,0,0,0,""]
[375,null,2920,"Платени лихви по активирани гаранции по заеми от  банки в страната",0,0,0,0,0,0,""]
[375,null,2969,"Платени лихви по активирани гаранции по заеми от международни организации и институции",0,0,0,0,0,0,""]
[380,null,2970,"Платени лихви по активирани гаранции по заеми от банки и финансови институции от чужбина",0,0,0,0,0,0,""]
[385,null,2989,"Възстановени суми по платени лихви по активирани гаранции (-)",0,0,0,0,0,0,""]
[390,null,2990,"Платени лихви по заеми, предоставени от централния бюджет и бюджетни организации",0,0,0,0,0,0,""]
[390,null,2991,"Други разходи за лихви към  местни лица",0,0,0,0,0,0,""]
[395,null,2992,"Други разходи за лихви към чуждестранни лица",0,0,0,0,0,0,""]
[397,3300,"Вноска в общия бюджет на Европейския съюз",null,{"$f":"SUMIF($B$613:$B$20149,$B252,E$613:E$20149)","v":0},0,0,0,0,0,"","Р"]
[398,null,3301,"ресурс на база брутен национален доход",{"$f":"SUMIF($C$613:$C$20149,$C253,E$613:E$20149)","v":0},0,0,0,0,0,"","Е"]
[399,null,3302,"ресурс на база данък върху добавената стойност",0,0,0,0,0,0,"","К"]
[400,null,3304,"традиционни собствени ресурси - мита",0,0,0,0,0,0,"","А"]
[401,null,3306,"участие във финансирането на брутното намаление за  Австрия, Дания, Германия, Нидерландия и Швеция и вноска за корекция за неучастие на съответни държави членки в някои политики за свобода, сигурност и правосъдие",0,0,0,0,0,0,"","П"]
[404,null,3307,"ресурс на база нерециклираните отпадъци от опаковки от пластмаса",0,0,0,0,0,0,{"$f":"(IF($E257<>0,$K$2,IF($F257<>0,$K$2,IF($G257<>0,$K$2,IF($H257<>0,$K$2,IF($I257<>0,$K$2,IF($J257<>0,$K$2,\"\")))))))","v":""},"Т"]
[404,3900,"Здравно-осигурителни плащания",null,{"$f":"SUMIF($B$613:$B$20149,$B258,E$613:E$20149)","v":0},0,0,0,0,0,"","У"]
[440,4000,"Стипендии",null,0,0,0,0,0,0,"","Л"]
[450,4100,"Пенсии",null,0,0,0,0,0,0,"","А"]
[495,4200,"Текущи трансфери, обезщетения и помощи за домакинствата",null,0,102442,0,102442,0,0,1,"Ц"]
[500,null,4201,"обезщетения и помощи по социалното осигуряване",{"$f":"SUMIF($C$613:$C$20149,$C262,E$613:E$20149)","v":0},0,0,0,0,0,"","И"]
[505,null,4202,"обезщетения и помощи по социалното подпомагане",0,0,0,0,0,0,"","Я"]
[510,null,4214,"обезщетения и помощи по решение на общинския съвет",0,0,0,0,0,0,""]
[515,null,4217,"текущи трансфери за домакинства от средства на Европейския съюз",0,102442,0,102442,0,0,1,"Н"]
[520,null,4218,"текущи трансфери за домакинства по други международни програми и споразумения",0,0,0,0,0,0,"","А"]
[525,null,4219,"други текущи трансфери за домакинствата",0,0,0,0,0,0,""]
[635,4300,"Субсидии и други текущи трансфери за нефинансови предприятия ",null,{"$f":"SUMIF($B$613:$B$20149,$B268,E$613:E$20149)","v":0},0,0,0,0,0,"","Р"]
[640,null,4301,"за текуща дейност",{"$f":"SUMIF($C$613:$C$20149,$C269,E$613:E$20149)","v":0},0,0,0,0,0,"","А"]
[645,null,4302,"за осъществяване на болнична помощ ",0,0,0,0,0,0,"","З"]
[650,null,4309,"други субсидии и плащания",0,0,0,0,0,0,"","Х"]
[655,4400,"Субсидии и други текущи трансфери за финансови институции",null,{"$f":"SUMIF($B$613:$B$20149,$B272,E$613:E$20149)","v":0},0,0,0,0,0,"","О"]
[665,4500,"Субсидии и други текущи трансфери за юридически лица с нестопанска цел",null,0,0,0,0,0,0,"","Д"]
[675,4600,"Разходи за членски внос и участие в нетърговски организации и дейности",null,0,0,0,0,0,0,"","И"]
[685,4900,"Предоставени текущи и капиталови трансфери за чужбина",null,0,241244,0,241244,0,0,1]
[690,null,4901,"текущи трансфери за чужбина",{"$f":"SUMIF($C$613:$C$20149,$C276,E$613:E$20149)","v":0},241244,0,241244,0,0,1]
[695,null,4902,"капиталови трансфери за чужбина",0,0,0,0,0,0,"","Р"]
[700,5100,"Основен ремонт на дълготрайни материални активи",null,{"$f":"SUMIF($B$613:$B$20149,$B278,E$613:E$20149)","v":0},0,0,0,0,0,"","Е"]
[710,5200,"Придобиване на дълготрайни материални активи",null,0,0,0,0,0,0,"","К"]
[715,null,5201,"придобиване на компютри и хардуер",{"$f":"SUMIF($C$613:$C$20149,$C280,E$613:E$20149)","v":0},0,0,0,0,0,"","А"]
[720,null,5202,"придобиване на сгради",0,0,0,0,0,0,"","П"]
[725,null,5203,"придобиване на друго оборудване, машини и съоръжения",0,0,0,0,0,0,"","И"]
[730,null,5204,"придобиване на транспортни средства",0,0,0,0,0,0,"","Т"]
[735,null,5205,"придобиване на стопански инвентар",0,0,0,0,0,0,"","У"]
[740,null,5206,"изграждане на инфраструктурни обекти",0,0,0,0,0,0,"","Л"]
[745,null,5219,"придобиване на други ДМА",0,0,0,0,0,0,"","А"]
[750,5300,"Придобиване на нематериални дълготрайни активи",null,{"$f":"SUMIF($B$613:$B$20149,$B287,E$613:E$20149)","v":0},286,0,286,0,0,1,"Ц"]
[755,null,5301,"придобиване на програмни продукти и лицензи за програмни продукти",{"$f":"SUMIF($C$613:$C$20149,$C288,E$613:E$20149)","v":0},286,0,286,0,0,1,"И"]
[760,null,5309,"придобиване на други нематериални дълготрайни активи",0,0,0,0,0,0,"","Я"]
[765,5400,"Придобиване на земя",null,{"$f":"SUMIF($B$613:$B$20149,$B290,E$613:E$20149)","v":0},0,0,0,0,0,""]
[775,5500,"Капиталови трансфери",null,0,0,0,0,0,0,"","Н"]
[780,null,5501,"капиталови трансфери за нефинансови предприятия",{"$f":"SUMIF($C$613:$C$20149,$C292,E$613:E$20149)","v":0},0,0,0,0,0,"","А"]
[785,null,5502,"капиталови трансфери за финансови институции",0,0,0,0,0,0,""]
[790,null,5503,"капиталови трансфери за организации с нестопанска цел",0,0,0,0,0,0,"","Р"]
[795,null,5504,"капиталови трансфери за домакинствата",0,0,0,0,0,0,"","А"]
[805,5700,"Прираст на държавния резерв и изкупуване на земеделска продукция (включва и § 40-71)",null,{"$f":"SUMIF($B$613:$B$20149,$B296,E$613:E$20149)","v":0},0,0,0,0,0,"","З"]
[810,null,5701,"плащания за попълване на държавния резерв",{"$f":"SUMIF($C$613:$C$20149,$C297,E$613:E$20149)","v":0},0,0,0,0,0,"","Х"]
[815,null,5702,"плащания за изкупуване на земеделска продукция",0,0,0,0,0,0,"","О"]
[525,null,4071,"постъпления от продажба на държавния резерв (-)",0,0,0,0,0,0,"","Д"]
[820,98,"Резерв за непредвидени и неотложни разходи",null,{"$f":"SUMIF($B$613:$B$20149,$B300,E$613:E$20149)","v":0},0,0,0,0,0,"","И"]
[821,null,null,null,null,null,null,null,null,null,""]
[822,null,null,null,null,null,null,null,null,null,""]
[823,null,null,null,null,null,null,null,null,null,""]
[825,"ВСИЧКО","99-99","II. ВСИЧКО РАЗХОДИ - РЕКАПИТУЛАЦИЯ ПО ПАРАГРАФИ И ПОДПАРАГРАФИ",{"$f":"SUMIF($C$613:$C$20149,$C304,E$613:E$20149)","v":0},517779,5424,505008,0,7347,1]
[null,null,null,null,null,null,null,null,null,null,1]
[null,null,null,null,null,null,null,null,null,null,1]
[null,null,null,null,null,null,null,null,null,null,{"$f":"(IF($E$304<>0,$K$2,IF($F$304<>0,$K$2,\"\")))","v":1}]
[null,null,null,null,null,null,null,null,null,null,1]
[null,{"$f":"$B$7","v":"ОТЧЕТНИ ДАННИ ПО ЕБК ЗА СМЕТКИТЕ ЗА СРЕДСТВАТА ОТ ЕВРОПЕЙСКИЯ СЪЮЗ - ДЕС"},null,null,null,null,null,null,null,null,1]
[null,null,null,null,"за периода        от ","до",null,null,null,null,1]
[null,{"$f":"$B$9","v":"ХТМУ"},null,null,{"$f":"$E$9","v":"2025-01-01"},{"$f":"$F$9","v":"2025-09-30"},null,null,null,null,1]
[null,{"$f":"$B$10","v":"                                                            (наименование на разпоредителя с бюджет)"},null,null,null,null,null,null,null,null,1]
[null,null,null,null,null,null,null,null,null,null,1]
[null,{"$f":"$B$12","v":"Министерство на образованието и науката "},null,null,"       код по ЕБК:",{"$f":"$F$12","v":"1700"},null,null,null,null,1]
[null,{"$f":"$B$13","v":"                                             (наименование на първостепенния разпоредител с бюджет)"},null,null,null,null,null,null,null,null,1,"Р"]
[null,null,null,"               ФИНАНСОВО-ПРАВНА ФОРМА",{"$f":"$E$15","v":96},{"$f":"+$F$15","v":"СЕС - ДЕС"},null,null,null,null,1,"Е"]
[null,null,null,null,null,null,null,null,null,null,1,"К"]
[null,null,null,"НАТУРАЛНИ И ДРУГИ ПОКАЗАТЕЛИ - РЕКАПИТУЛАЦИЯ",null,null,null,null,null,null,1,"А"]
[null,"МЯРКА","Код  9 8","  О б щ и   н а т у р а л н и   п о к а з а т е л и","    П л а н","    О т ч е т ",null,null,null,null,1,"П"]
[905,null," 9 8 0 1","Щ а т н и   б р о й к и",{"$f":"SUMIF($C$613:$C$20149,$C320,E$613:E$20149)","v":0},0,null,null,null,null,1,"И"]
[906,null," 9 8 1 1","в т.ч.: по трудови правоотношения",0,0,null,null,null,null,1,"Т"]
[907,null," 9 8 1 2","           по служебни правоотношения",0,0,null,null,null,null,1,"У"]
[910,null," 9 8 0 2","Средногодишни щатни бройки",0,0,null,null,null,null,1,"Л"]
[911,null," 9 8 2 1","в т.ч.: по трудови правоотношения",0,0,null,null,null,null,1,"А"]
[912,null," 9 8 2 2","         по служебни правоотношения",0,0,null,null,null,null,1,"Ц"]
[920,null," 9 8 0 3","Средна годишна брутна заплата",{"$f":"IF(ISERROR(E187/(E323+E335)),0,E187/(E323+E335))","v":0},{"$f":"IF(ISERROR(J187/(F323+F335)),0,F187/(F323+F335))","v":0},null,null,null,null,1,"И"]
[921,null," 9 8 3 1"," в т.ч.:   по трудови правоотношения",{"$f":"IF(ISERROR(E188/(E324+E335)),0,E188/(E324+E335))","v":0},{"$f":"IF(ISERROR(J188/(F324+F335)),0,F188/(F324+F335))","v":0},null,null,null,null,1,"Я"]
[922,null," 9 8 3 2","            по служебни правоотношения",{"$f":"IF(ISERROR(E189/(E325)),0,E189/(E325))","v":0},{"$f":"IF(ISERROR(J189/(F325)),0,F189/(F325))","v":0},null,null,null,null,1,"-"]
[930,null," 9 8 0 4","Брой на моторни превозни средства",{"$f":"SUMIF($C$613:$C$20149,$C329,E$613:E$20149)","v":0},0,null,null,null,null,1,"Н"]
[931,null,"9 8 0 5","- в т.ч. - леки автомобили",0,0,null,null,null,null,1,"А"]
[932,null,"9 8 0 6","             - санитарни линейки",0,0,null,null,null,null,1,"Т"]
[935,null," 9 8 0 7","Брой ученици, финансирани по единни разходни стандарти",0,0,null,null,null,null,1,"У"]
[940,null," 9 8 0 8","Средна годишна брутна заплата на делегирани бюджети",null,null,null,null,null,null,1,"Р"]
[950,null," 9 8 0 9","Щатни бройки на делегирани бюджети",{"$f":"SUMIF($C$613:$C$20149,$C334,E$613:E$20149)","v":0},0,null,null,null,null,1,"А"]
[953,null," 9 8 1 0","Средногодишни щатни бройки на делегирани бюджети",0,0,null,null,null,null,1,"Л"]
[954,null,"9 8 1 3","Средногодишен приравнен брой учащи във ВУ, финансирани по норматив за издръжка на обучението",0,0,null,null,null,null,1,"Н"]
[955,null,"9 8 1 4","Брой леглодни в студентски общежития",0,0,null,null,null,null,1,"И"]
[956,null,"9 8 1 5","Брой хранодни в студентски стол",0,0,null,null,null,null,1]
[958,null,"9 8 1 7","Болнични легла",0,0,null,null,null,null,1,"П"]
[959,null,"9 8 1 8","Обем радиопрограма /часове/",0,0,null,null,null,null,1,"-"]
[955,null,"9 8 1 9","Обем телевизионна програма /часове/",0,0,null,null,null,null,1,"И"]
[956,"МЯРКА","Код  ","Разходи в областта на електронното управление и за използваните информационни и комуникационни технологии","    П л а н","    О т ч е т ",null,null,null,null,1]
[958,null,"9 8 5 0","Общо разходи в областта на ЕУ и за използваните ИКТ",{"$f":"E344+E345","v":0},{"$f":"F344+F345","v":0},null,null,null,null,1]
[959,null,"9 8 5 1","Текущи разходи в областта на ЕУ и за използваните ИКТ",{"$f":"SUMIF($C$613:$C$20149,$C344,E$613:E$20149)","v":0},{"$f":"SUMIF($C$613:$C$20149,$C344,F$613:F$20149)","v":0},null,null,null,null,1]
[960,null,"9 8 5 2","Капиталови разходи в областта на ЕУ и за използваните ИКТ",{"$f":"SUMIF($C$613:$C$20149,$C345,E$613:E$20149)","v":0},{"$f":"SUMIF($C$613:$C$20149,$C345,F$613:F$20149)","v":0},null,null,null,null,1]
[null,"ЗАБЕЛЕЖКА:",null,null,null,null,null,null,null,null,1]
[null," За натурални показатели, не влючени в този отчет, специфични за конкретна дейност се представят отделни справки, допълнително определени от Министерство на финансите.",null,null,null,null,null,null,null,null,1]
[null,null,null,null,null,null,null,null,null,null,1]
[null,null,null,null,null,null,null,null,null,null,1]
[null,null,null,null,null,null,null,null,null,null,1]
[null,{"$f":"$B$7","v":"ОТЧЕТНИ ДАННИ ПО ЕБК ЗА СМЕТКИТЕ ЗА СРЕДСТВАТА ОТ ЕВРОПЕЙСКИЯ СЪЮЗ - ДЕС"},null,null,null,null,null,null,null,null,1]
[null,null,null,null,"за периода        от ","до",null,null,null,null,1]
[null,{"$f":"$B$9","v":"ХТМУ"},null,null,{"$f":"$E$9","v":"2025-01-01"},{"$f":"$F$9","v":"2025-09-30"},null,null,null,null,1]
[null,{"$f":"$B$10","v":"                                                            (наименование на разпоредителя с бюджет)"},null,null,null,null,null,null,null,null,1]
[null,null,null,null,null,null,null,null,null,null,1]
[null,{"$f":"$B$12","v":"Министерство на образованието и науката "},null,null,"       код по ЕБК:",{"$f":"$F$12","v":"1700"},null,null,null,null,1]
[null,{"$f":"$B$13","v":"                                             (наименование на първостепенния разпоредител с бюджет)"},null,null,null,null,null,null,null,null,1]
[null,null,null,"ФИНАНСОВО-ПРАВНА ФОРМА",{"$f":"$E$15","v":96},{"$f":"+$F$15","v":"СЕС - ДЕС"},null,null,null,null,1]
[null,null,null,null,null,null,null,null,null,"(в лева)",1]
[null,null,null,"III-ІV. ТРАНСФЕРИ И ВРЕМЕННИ БЕЗЛИХВЕНИ ЗАЕМИ - РЕКАПИТУЛАЦИЯ","Уточнен план","                                                                                                                              О Т Ч Е Т Н И   Д А Н Н И",null,null,null,null,1]
[null,"§§","под-§§","НАИМЕНОВАНИЕ НА ПАРАГРАФИТЕ И ПОДПАРАГРАФИТЕ",{"$f":"$C$3","v":2025},"ОБЩО","левови\n сметки и СЕБРА ","валутни \nсметки ","операции в брой (в левове и валута)","операции приравнени на касов поток",1]
[1,"  ІІІ. ТРАНСФЕРИ",null," 03 ¦","(1)","(2)","(3)","(4)","(5)","(6)",1]
[2,null,null,null,null,null,null,null,null,null,1]
[5,3000,"Трансфери от ЦБ за други бюджети (нето)",null,{"$f":"SUM(E365:E377)","v":0},0,0,0,0,0,{"$f":"(IF($E364<>0,$K$2,IF($F364<>0,$K$2,IF($G364<>0,$K$2,IF($H364<>0,$K$2,IF($I364<>0,$K$2,IF($J364<>0,$K$2,\"\")))))))","v":""}]
[10,null,3020,"трансфери между ЦБ и бюджети по държавния бюджет",null,{"$f":"G365+H365+I365+J365","v":0},null,null,null,null,""]
[20,null,3040,"възстановени трансфери в ЦБ от бюджети на общини",null,0,null,null,null,null,""]
[25,null,3041,"обща субсидия и други трансфери за държавни дейности от ЦБ за общини",null,0,null,null,null,null,""]
[30,null,3042,"обща изравнителна субсидия и други трансфери за местни дейности от ЦБ за общини",null,0,null,null,null,null,""]
[35,null,3043,"целеви субсидии от ЦБ за капиталови разходи за общини",null,0,null,null,null,null,""]
[36,null,3048,"други целеви трансфери от ЦБ за общини",null,0,null,null,null,null,""]
[45,null,3050,"трансфери между ЦБ и Държавното обществено осигуряване",null,0,null,null,null,null,""]
[50,null,3061,"трансфери между ЦБ и НЗОК",null,0,null,null,null,null,""]
[60,null,3081,"трансфери между ЦБ и БНТ",null,0,null,null,null,null,""]
[null,null,"30-82","трансфери между ЦБ и БНР",null,0,null,null,null,null,""]
[65,null,3083,"трансфери между ЦБ и БТА",null,0,null,null,null,null,""]
[65,null,3089,"трансфери  между ЦБ и други бюджети",null,0,null,null,null,null,""]
[65,null,3090,"други възстановени в ЦБ трансфери от бюджети",null,0,null,null,null,null,""]
[70,3100,"Трансфери между бюджета на бюджетната организация и ЦБ (нето)",null,{"$f":"SUM(E379:E385)","v":0},0,0,0,0,0,""]
[75,null,3110,"трансфери от/за ЦБ (+/-)",null,{"$f":"G379+H379+I379+J379","v":0},null,null,null,null,""]
[80,null,3111,"обща субсидия и други трансфери за държавни дейности от ЦБ за общини (+)",null,0,null,null,null,null,""]
[85,null,3112,"обща изравнителна субсидия и други трансфери за местни дейности от ЦБ за общини (+)",null,0,null,null,null,null,""]
[90,null,3113,"получени от общини целеви субсидии от ЦБ за капиталови разходи (+)",null,0,null,null,null,null,""]
[91,null,3118,"получени от общини трансфери за други целеви разходи от ЦБ чрез  кодовете в СЕБРА 488 001 ххх-х",null,0,null,null,null,null,""]
[null,null,3128,"получени от общини трансфери за други целеви разходи от ЦБ чрез  кодовете в СЕБРА 488 002 ххх-х",null,0,null,null,null,null,""]
[100,null,3120,"възстановени трансфери за ЦБ (-)",null,0,null,null,null,null,""]
[115,3200,"Предоставени субсидии от държавния бюджет за БАН и държавните висши училища (нето)",null,{"$f":"SUM(E387:E390)","v":0},0,0,0,0,0,""]
[120,null,3210,"предоставени трансфери от ДБ за държавните висши училища",null,{"$f":"G387+H387+I387+J387","v":0},null,null,null,null,""]
[125,null,3220,"предоставени трансфери от ДБ за БАН",null,{"$f":"G388+H388+I388+J388","v":0},null,null,null,null,""]
[130,null,3230,"получени от държавните висши училища  трансфери от ДБ (+)",null,{"$f":"G389+H389+I389+J389","v":0},null,null,null,null,""]
[135,null,3240,"получени от БАН трансфери от ДБ (+)",null,{"$f":"G390+H390+I390+J390","v":0},null,null,null,null,""]
[145,6000,"Трансфери между ЦБ и сметки за средствата от ЕС (нето)",null,{"$f":"+E392+E393","v":0},0,0,0,0,0,""]
[150,null,6001," - получени трансфери (+)",null,{"$f":"G392+H392+I392+J392","v":0},null,null,null,null,""]
[155,null,6002," - предоставени трансфери (-)",null,{"$f":"G393+H393+I393+J393","v":0},0,0,0,0,""]
[160,6100,"Трансфери между бюджети (нето)",null,{"$f":"SUM(E395:E398)","v":0},0,0,0,0,0,""]
[165,null,6101,"трансфери между бюджети - получени трансфери (+)",null,{"$f":"G395+H395+I395+J395","v":0},0,0,0,0,""]
[170,null,6102,"трансфери между бюджети - предоставени трансфери (-)",null,{"$f":"G396+H396+I396+J396","v":0},0,0,0,0,""]
[180,null,6105,"трансфери от МТСП по програми за осигуряване на заетост (+/-)",null,{"$f":"G397+H397+I397+J397","v":0},0,0,0,0,""]
[180,null,6109,"вътрешни трансфери в системата на първостепенния разпоредител (+/-)",null,{"$f":"G398+H398+I398+J398","v":0},0,0,0,0,""]
[185,6200,"Трансфери между бюджети и сметки за средствата от ЕС (нето)",null,{"$f":"+E400+E401","v":0},0,0,0,0,0,""]
[190,null,6201,"- получени трансфери (+)",null,{"$f":"G400+H400+I400+J400","v":0},0,0,0,0,""]
[195,null,6202,"- предоставени трансфери (-)",null,{"$f":"G401+H401+I401+J401","v":0},null,null,null,null,""]
[200,6300,"Трансфери между сметки за средствата от ЕС (нето)",null,{"$f":"+E403+E404","v":0},509753,0,509753,0,0,1]
[205,null,6301,"- получени трансфери (+)",null,{"$f":"G403+H403+I403+J403","v":509753},0,509753,0,0,1]
[206,null,6302,"- предоставени трансфери (-)",null,{"$f":"G404+H404+I404+J404","v":0},0,0,0,0,""]
[210,6400,"Трансфери между бюджети на лица по чл. 13, ал. 4 от ЗПФ и бюджети на други бюджетни организации",null,{"$f":"+E406+E407","v":0},0,0,0,0,0,""]
[211,null,6401,"- получени трансфери (+)",null,{"$f":"G406+H406+I406+J406","v":0},null,null,null,null,""]
[212,null,6402,"- предоставени трансфери (-)",null,{"$f":"G407+H407+I407+J407","v":0},null,null,null,null,""]
[213,6500,"Трансфери на отчислени постъпления",null,null,{"$f":"G408+H408+I408+J408","v":0},null,null,null,null,""]
[215,6600,"Разчети за извършени плащания в СЕБРА (+/-)",null,{"$f":"+E410+E411","v":0},0,0,0,0,0,{"$f":"(IF($E409<>0,$K$2,IF($F409<>0,$K$2,IF($F410<>0,$K$2,IF($F411<>0,$K$2,\"\")))))","v":""}]
[220,null,6601,"Разчети с подведомствени разпоредители за плащания в СЕБРА  (-)",null,{"$f":"G410+H410+I410+J410","v":0},null,null,null,null,""]
[225,null,6602,"Разчети с първостепенен разпоредител за плащания в СЕБРА  (+)",null,{"$f":"G411+H411+I411+J411","v":0},null,null,null,null,""]
[215,6700,"Трансфери от/за сметки за чужди средства",null,{"$f":"+E413+E414","v":0},0,0,0,0,0,""]
[220,null,6701,"трансфери от/за сметки за чужди средства - получени трансфери (+)",null,{"$f":"G413+H413+I413+J413","v":0},null,null,null,null,""]
[225,null,6702,"трансфери от/за сметки за чужди средства - предоставени трансфери (-)",null,{"$f":"G414+H414+I414+J414","v":0},null,null,null,null,""]
[230,6900,"Трансфери за поети осигурителни вноски и данъци",null,{"$f":"SUM(E416:E421)","v":0},0,0,0,0,0,{"$f":"(IF($E415<>0,$K$2,IF($F415<>0,$K$2,IF($F416<>0,$K$2,IF($F417<>0,$K$2,IF($F418<>0,$K$2,IF($F419<>0,$K$2,IF($F420<>0,$K$2,IF($F421<>0,$K$2,\"\")))))))))","v":1}]
[235,null,6901,"Трансфери за поети данъци върху доходите на физически лица",null,{"$f":"G416+H416+I416+J416","v":5614},0,0,0,5614,1]
[240,null,6905,"Трансфери за поети осигурителни вноски за ДОО",null,922,0,0,0,922,1]
[240,null,6906,"Трансфери за поети осигурителни вноски за здравно осигуряване",null,499,0,0,0,499,1]
[245,null,6907,"Трансфери за поети осигурителни вноски за ДЗПО",null,312,0,0,0,312,1]
[250,null,6908,"Корективен трансфер за поети осигурителни вноски и данъци",null,-7347,0,0,0,-7347,1]
[255,null,6909,"Разпределени суми на трансфери за поети осигурителни вноски и данъци (-)",null,0,0,0,0,0,""]
[260,"ВСИЧКО","99-99","III. ВСИЧКО ТРАНСФЕРИ",{"$f":"SUM(E364,E378,E386,E391,E394,E399,E402,E405,E408,E409,E412,E415)","v":0},509753,0,509753,0,0,1]
[261,"ІV. ВР.БЕЗЛ.ЗАЕМИ",null," 04 ¦",null,null,null,null,null,null,""]
[262,null,null,null,null,null,null,null,null,null,""]
[265,7400,"Получени/предоставени временни безлихвени заеми от/за ЦБ (нето)",null,null,{"$f":"G425+H425+I425+J425","v":0},null,null,null,null,""]
[275,7500,"Временни безлихвени заеми между бюджети (нето)",null,null,{"$f":"G426+H426+I426+J426","v":0},null,null,null,null,""]
[285,7600,"Временни безлихвени заеми между бюджети и сметки за средствата от ЕС (нето)",null,null,{"$f":"G427+H427+I427+J427","v":0},null,null,null,null,""]
[295,7700,"Временни безлихвени заеми между сметки за средствата от ЕС (нето)",null,null,{"$f":"G428+H428+I428+J428","v":0},null,null,null,null,{"$f":"(IF($E428<>0,$K$2,IF($F428<>0,$K$2,IF($G428<>0,$K$2,IF($H428<>0,$K$2,IF($I428<>0,$K$2,IF($J428<>0,$K$2,\"\")))))))","v":""}]
[215,7800,"Временни безлихвени заеми от/за държавни предприятия и други сметки, включени в КФП ",null,{"$f":"+E430+E431","v":0},0,0,0,0,0,{"$f":"(IF($E429<>0,$K$2,IF($F429<>0,$K$2,IF($G429<>0,$K$2,IF($H429<>0,$K$2,IF($I429<>0,$K$2,IF($J429<>0,$K$2,\"\")))))))","v":""}]
[220,null,7833,"Временни безлихвени заеми от/за сметки за чужди средства (нето) ",null,{"$f":"G430+H430+I430+J430","v":0},null,null,null,null,{"$f":"(IF($E430<>0,$K$2,IF($F430<>0,$K$2,IF($G430<>0,$K$2,IF($H430<>0,$K$2,IF($I430<>0,$K$2,IF($J430<>0,$K$2,\"\")))))))","v":""}]
[225,null,7888,"Временни безлихвени заеми от/за държавни предприятия, включени в КФП (нето) ",null,{"$f":"G431+H431+I431+J431","v":0},null,null,null,null,{"$f":"(IF($E431<>0,$K$2,IF($F431<>0,$K$2,IF($G431<>0,$K$2,IF($H431<>0,$K$2,IF($I431<>0,$K$2,IF($J431<>0,$K$2,\"\")))))))","v":""}]
[315,"ВСИЧКО","99-99","IV. ВСИЧКО ВРЕМЕННИ БЕЗЛИХВЕНИ ЗАЕМИ",{"$f":"SUM(E425,E426,E427,E428,E429)","v":0},0,0,0,0,0,1]
[null,null,null,null,null,null,null,null,null,null,1]
[null,null,null,null,null,null,null,null,null,null,1]
[null,null,null,null,null,null,null,null,null,null,1]
[null,{"$f":"$B$7","v":"ОТЧЕТНИ ДАННИ ПО ЕБК ЗА СМЕТКИТЕ ЗА СРЕДСТВАТА ОТ ЕВРОПЕЙСКИЯ СЪЮЗ - ДЕС"},null,null,null,null,null,null,null,null,1]
[null,null,null,null,"за периода        от ","до",null,null,null,null,1]
[null,{"$f":"$B$9","v":"ХТМУ"},null,null,{"$f":"$E$9","v":"2025-01-01"},{"$f":"$F$9","v":"2025-09-30"},null,null,null,null,1]
[null,{"$f":"$B$10","v":"                                                            (наименование на разпоредителя с бюджет)"},null,null,null,null,null,null,null,null,1]
[null,null,null,null,null,null,null,null,null,null,1]
[null,{"$f":"$B$12","v":"Министерство на образованието и науката "},null,null,"       код по ЕБК:",{"$f":"$F$12","v":"1700"},null,null,null,null,1]
[null,{"$f":"$B$13","v":"                                             (наименование на първостепенния разпоредител с бюджет)"},null,null,null,null,null,null,null,null,1]
[null,null,null,"ФИНАНСОВО-ПРАВНА ФОРМА",{"$f":"$E$15","v":96},{"$f":"+$F$15","v":"СЕС - ДЕС"},null,null,null,null,1]
[null,null,null,null,null,null,null,null,null,null,1]
[null,null,null,null,null,null,null,null,null,"(в лева)",1]
[null,null,null,"V.-VІ. БЮДЖЕТНО САЛДО и ФИНАНСИРАНЕ НА БЮДЖЕТНОТО САЛДО","Уточнен план 2025","ОТЧЕТНИ ДАННИ ОБЩО","левови\n сметки и СЕБРА ","валутни \nсметки ","операции в брой (в левове и валута)","операции приравнени на касов поток",1]
[null,null,null," 0 5  ¦","(1)","(2)=(3+4+5+6)","(3)","(4)","(5)","(6)",1]
[null,null,null,"V. БЮДЖЕТНО САЛДО - ДЕФИЦИТ (-) / ИЗЛИШЪК (+)      (V.=I.-II.+III.+ІV.)",{"$f":"+E167-E304+E422+E432","v":0},15313,-5424,28084,0,-7347,1]
[null,null,null,"VІ. ФИНАНСИРАНЕ НА БЮДЖЕТНОТО САЛДО (VІ.=-V.)",{"$f":"+E600","v":0},-15313,5424,-28084,0,7347,1]
[null,null,null,{"$f":"+IF(+SUM(E450:J450)=0,0,\"Контрола: дефицит/излишък = финансиране с обратен знак (V. + VІ. = 0)\")","v":0},0,0,0,0,0,0,1]
[null,null,null,null,null,null,null,null,null,null,1]
[null,{"$f":"$B$7","v":"ОТЧЕТНИ ДАННИ ПО ЕБК ЗА СМЕТКИТЕ ЗА СРЕДСТВАТА ОТ ЕВРОПЕЙСКИЯ СЪЮЗ - ДЕС"},null,null,null,null,null,null,null,null,1]
[null,null,null,null,"за периода        от ","до",null,null,null,null,1]
[null,{"$f":"$B$9","v":"ХТМУ"},null,null,{"$f":"$E$9","v":"2025-01-01"},{"$f":"$F$9","v":"2025-09-30"},null,null,null,null,1]
[null,{"$f":"$B$10","v":"                                                            (наименование на разпоредителя с бюджет)"},null,null,null,null,null,null,null,null,1]
[null,null,null,null,null,null,null,null,null,null,1]
[null,{"$f":"$B$12","v":"Министерство на образованието и науката "},null,null,"       код по ЕБК:",{"$f":"$F$12","v":"1700"},null,null,null,null,1]
[null,null,null,null,null,null,null,null,null,null,1]
[null,null,null,"ФИНАНСОВО-ПРАВНА ФОРМА",{"$f":"$E$15","v":96},{"$f":"+$F$15","v":"СЕС - ДЕС"},null,null,null,null,1]
[null,null,null,null,null,null,null,null,null,"(в лева)",1]
[null,"       VI. ОПЕРАЦИИ С ФИНАНСОВИ АКТИВИ И ПАСИВИ (финансиране на бюдж. салдо)",null,null,"Уточнен план","                                                                                                                              О Т Ч Е Т Н И   Д А Н Н И",null,null,null,null,1]
[null,"§§","под-§§","НАИМЕНОВАНИЕ НА ПАРАГРАФИТЕ И ПОДПАРАГРАФИТЕ",{"$f":"$C$3","v":2025},"ОБЩО","левови\n сметки и СЕБРА ","валутни \nсметки ","операции в брой (в левове и валута)","операции приравнени на касов поток",1]
[1,null,null," 0 6 ¦","(1)","(2)","(3)","(4)","(5)","(6)",1]
[5,7000,"Придобиване на дялове, акции и съучастия (нето)",null,{"$f":"SUM(E465:E467)","v":0},0,0,0,0,0,{"$f":"(IF($E464<>0,$K$2,IF($F464<>0,$K$2,IF($G464<>0,$K$2,IF($H464<>0,$K$2,IF($I464<>0,$K$2,IF($J464<>0,$K$2,\"\")))))))","v":""}]
[10,null,7001,"придобиване на дялове и акции и увеличение на капитала и капиталовите резерви (-)",null,{"$f":"G465+H465+I465+J465","v":0},null,null,null,null,""]
[20,null,7003,"участия в съвместни предприятия, активи и стопански дейности (-)",null,{"$f":"G466+H466+I466+J466","v":0},null,null,null,null,""]
[25,null,7010,"постъпления от продажби на дялове, акции, съучастия, и от ликвидационни дялове (+)",null,{"$f":"G467+H467+I467+J467","v":0},null,null,null,null,""]
[30,7100,"Предоставени кредити (нето)",null,{"$f":"+E469+E470","v":0},0,0,0,0,0,""]
[35,null,7101,"предоставени средства по лихвени заеми (-)",null,{"$f":"G469+H469+I469+J469","v":0},null,null,null,null,""]
[40,null,7102,"възстановени главници по предоставени лихвени заеми (+)",null,{"$f":"G470+H470+I470+J470","v":0},null,null,null,null,""]
[45,7200,"Предоставена възмездна финансова помощ (нето)",null,{"$f":"+E472+E473","v":0},0,0,0,0,0,""]
[50,null,7201,"предоставени средства по възмездна финансова помощ (-)",null,{"$f":"G472+H472+I472+J472","v":0},null,null,null,null,""]
[55,null,7202,"възстановени суми по възмездна финансова помощ (+)",null,{"$f":"G473+H473+I473+J473","v":0},null,null,null,null,""]
[60,7300,"Плащания по активирани гаранции, поръчителства и преоформен държавен дълг (нето)",null,{"$f":"SUM(E475:E480)","v":0},0,0,0,0,0,""]
[65,null,7320,"Погашения по активирани гаранции по заеми от  банки в страната",null,{"$f":"G475+H475+I475+J475","v":0},null,null,null,null,""]
[85,null,7369,"Погашения по активирани гаранции по заеми от международни организации и институции",null,0,null,null,null,null,""]
[90,null,7370,"Погашения по активирани гаранции по заеми от банки и финансови институции от чужбина",null,0,null,null,null,null,""]
[95,null,7391,"възстановени средства по активирани гаранции и поръчителства (+)",null,0,null,null,null,null,""]
[100,null,7392,"вноски от предприятия по преоформен държавен дълг (+)",null,0,null,null,null,null,""]
[105,null,7393,"получени суми от банки в несъстоятелност (+)",null,0,null,null,null,null,""]
[110,7900,"Предоставени заеми към крайни бенефициенти по държавни инвестиционни заеми (нето)",null,{"$f":"+E482+E483","v":0},0,0,0,0,0,""]
[115,null,7901,"предоставени заеми на крайни бенефициенти (-)",null,{"$f":"G482+H482+I482+J482","v":0},null,null,null,null,""]
[120,null,7902,"възстановени суми по предоставени заеми на крайни бенефиценти (+)",null,{"$f":"G483+H483+I483+J483","v":0},null,null,null,null,""]
[125,8000,"Заеми от чужбина - нето (+/-)",null,{"$f":"SUM(E485:E499)","v":0},0,0,0,0,0,""]
[130,null,8011,"получени краткосрочни заеми от други държави (+)",null,{"$f":"G485+H485+I485+J485","v":0},null,null,null,null,""]
[135,null,8012,"получени дългосрочни заеми от други държави (+)",null,0,null,null,null,null,""]
[140,null,8017,"погашения по краткосрочни заеми от други държави (-)",null,0,null,null,null,null,""]
[145,null,8018,"погашения по дългосрочни заеми от други държави (-)",null,0,null,null,null,null,""]
[150,null,8031,"получени краткосрочни заеми от международни организации (+)",null,0,null,null,null,null,""]
[155,null,8032,"получени дългосрочни заеми от международни организации (+)",null,0,null,null,null,null,""]
[175,null,8037,"погашения по краткосрочни заеми от международни организации (-)",null,0,null,null,null,null,""]
[180,null,8038,"погашения по дългосрочнизаеми от международни организации (-)",null,0,null,null,null,null,""]
[185,null,8051,"получени краткосрочни заеми от банки и финансови институции от чужбина (+)",null,0,null,null,null,null,""]
[190,null,8052,"получени дългосрочни заеми от банки и финансови институции от чужбина (+)",null,0,null,null,null,null,""]
[195,null,8057,"погашения по краткосрочни заеми от банки и финансови институции от чужбина (-)",null,0,null,null,null,null,""]
[200,null,8058,"погашения по дългосрочни заеми от банки и финансови институции от чужбина (-)",null,0,null,null,null,null,""]
[205,null,8080,"клирингови разчети - пасивни и активни салда (-/+)",null,0,null,null,null,null,""]
[210,null,8097,"друго финансиране от чужбина (+)",null,0,null,null,null,null,""]
[215,null,8098,"други погашения и плащания по финансиране от чужбина (-)",null,0,null,null,null,null,""]
[220,8100,"Държавни (общински) ценни книжа емитирани на международните капиталови пазари",null,{"$f":"SUM(E501:E504)","v":0},0,0,0,0,0,""]
[225,null,8111,"краткосрочни  ДЦК (ОбЦК) емитирани на международните капиталови пазари (+)",null,{"$f":"G501+H501+I501+J501","v":0},null,null,null,null,""]
[230,null,8112,"дългосрочни ДЦК (ОбЦК) емитирани на международните капиталови пазари (+)",null,{"$f":"G502+H502+I502+J502","v":0},null,null,null,null,""]
[235,null,8121,"погашения по  краткосрочни ДЦК (ОбЦК) емитирани на международните капиталови пазари (-)",null,{"$f":"G503+H503+I503+J503","v":0},null,null,null,null,""]
[240,null,8122,"погашения по дългосрочни ДЦК (ОбЦК) емитирани на международните капиталови пазари (-)",null,{"$f":"G504+H504+I504+J504","v":0},null,null,null,null,""]
[245,8200,"Получени погашения по предоставени кредити на други държави (+)",null,null,{"$f":"G505+H505+I505+J505","v":0},null,null,null,null,""]
[255,8300,"Заеми от банки и други лица в страната - нето (+/-)",null,{"$f":"SUM(E507:E514)","v":0},0,0,0,0,0,""]
[260,null,8311,"получени краткосрочни заеми от банки в страната (+)",null,{"$f":"G507+H507+I507+J507","v":0},null,null,null,null,""]
[261,null,8312,"получени дългосрочни заеми от банки в страната (+)",null,0,null,null,null,null,""]
[262,null,8321,"погашения по краткосрочни заеми от банки в страната (-)",null,0,null,null,null,null,""]
[263,null,8322,"погашения по дългосрочни заеми от банки в страната (-)",null,0,null,null,null,null,""]
[264,null,8371,"получени краткосрочни заеми от други лица  в страната (+)",null,0,null,null,null,null,""]
[265,null,8372,"получени дългосрочни заеми от други лица в страната (+)",null,0,null,null,null,null,""]
[266,null,8381,"погашения по краткосрочни заеми от други лица в страната (-)",null,0,null,null,null,null,""]
[267,null,8382,"погашения по дългосрочни заеми от други лица в страната (-)",null,0,null,null,null,null,""]
[295,8500,"Емисии на държавни (общински) ценни книжа (+)",null,{"$f":"SUM(E516:E518)","v":0},0,0,0,0,0,""]
[300,null,8501,"емисии на краткосрочни държавни (общински) ценни книжа (+)",null,{"$f":"G516+H516+I516+J516","v":0},null,null,null,null,""]
[305,null,8502,"емисии на дългосрочни държавни (общински) ценни книжа (+)",null,{"$f":"G517+H517+I517+J517","v":0},null,null,null,null,""]
[310,null,8504,"целеви емисии на дългосрочни държавни (общински) ценни книжа (+)",null,{"$f":"G518+H518+I518+J518","v":0},null,null,null,null,""]
[315,8600,"Погашения на държавни (общински) ценни книжа (-)",null,{"$f":"SUM(E520:E523)","v":0},0,0,0,0,0,""]
[320,null,8611,"погашения по краткосрочни държавни (общински) ценни книжа (-)",null,{"$f":"G520+H520+I520+J520","v":0},null,null,null,null,""]
[325,null,8621,"погашения по дългосрочни държавни (общински) ценни книжа (-)",null,{"$f":"G521+H521+I521+J521","v":0},null,null,null,null,""]
[330,null,8623,"погашения по целеви емисии на дългосрочни държавни (общински) ценни книжа (-)",null,{"$f":"G522+H522+I522+J522","v":0},null,null,null,null,""]
[340,null,8640,"погашения по ДЦК, емитирани за структурната реформа (-)",null,{"$f":"G523+H523+I523+J523","v":0},null,null,null,null,""]
[295,8700,"Разчети между първостепенни разпоредители  за централизация на средства и плащания в СЕБРА",null,{"$f":"SUM(E525:E526)","v":0},0,0,0,0,0,""]
[300,null,8733,"разчети между първостепенни разпоредители за централизация на средства (+/-)",null,{"$f":"G525+H525+I525+J525","v":0},null,null,null,null,""]
[310,null,8766,"разчети между първостепенни разпоредители за плащания в СЕБРА (+/-)",null,{"$f":"G526+H526+I526+J526","v":0},null,null,null,null,""]
[355,8800,"Събрани средства и извършени плащания за сметка на други бюджети, сметки и фондове ",null,{"$f":"SUM(E528:E533)","v":0},-22660,5424,-28084,0,0,1]
[360,null,8801,"събрани средства и извършени плащания от/за ЦБ (+/-)",null,{"$f":"G528+H528+I528+J528","v":0},null,null,null,null,{"$f":"(IF($E528<>0,$K$2,IF($F528<>0,$K$2,IF($G528<>0,$K$2,IF($H528<>0,$K$2,IF($I528<>0,$K$2,IF($J528<>0,$K$2,\"\")))))))","v":""}]
[365,null,8802,"събрани средства и извършени плащания от/за бюджети по държавния бюджет (+/-)",null,0,null,null,null,null,""]
[365,null,8803,"събрани средства и извършени плащания от/за сметки за средствата от Европейския съюз ",null,-22660,5424,-28084,0,0,1]
[370,null,8804,"събрани средства и извършени плащания от/за общински бюджети (+/-)",null,0,null,null,null,null,""]
[365,null,"88-05","събрани средства и извършени плащания от/за социалноосигурителни фондове (+/-)",null,0,null,null,null,null,""]
[370,null,8809,"събрани средства и извършени плащания от/за други бюджети (+/-)",null,0,null,null,null,null,""]
[375,8900,"Суми по разчети за поети осигурителни вноски и данъци",null,{"$f":"SUM(E535:E537)","v":0},7347,0,0,0,7347,1]
[380,null,8901,"суми по разчети м/у ЦБ,НОИ, НЗОК и НАП за поети осигурителни вноски",null,{"$f":"G535+H535+I535+J535","v":0},null,null,null,null,""]
[385,null,8902,"суми по разчети м/у ЦБ и бюджетните организации за поети осигурителни вноски и данъци",null,{"$f":"G536+H536+I536+J536","v":0},null,null,null,null,""]
[390,null,8903,"суми по разчети м/у бюджети, сметки и фондове за поети осигурителни вноски и данъци",null,{"$f":"G537+H537+I537+J537","v":7347},0,0,0,7347,1]
[395,9000,"Приватизация на дялове, акции и участия",null,null,{"$f":"G538+H538+I538+J538","v":0},null,null,null,null,""]
[405,9100,"Покупко-продажба на държавни (общински) ценни книжа от бюджетни организации - нето  (+/-)",null,{"$f":"SUM(E540:E543)","v":0},0,0,0,0,0,""]
[410,null,9111,"покупка на държавни (общински) ценни книжа на първичния пазар (-)",null,{"$f":"G540+H540+I540+J540","v":0},null,null,null,null,""]
[415,null,9112,"покупка на държавни (общински) ценни книжа на вторичния пазар (-)",null,{"$f":"G541+H541+I541+J541","v":0},null,null,null,null,""]
[420,null,9121,"продажба на държавни (общински) ценни книжа (+)",null,{"$f":"G542+H542+I542+J542","v":0},null,null,null,null,""]
[425,null,9122,"получени погашения по държавни (общински) ценни книжа (+)",null,{"$f":"G543+H543+I543+J543","v":0},null,null,null,null,""]
[430,9200,"Операции с други ценни книжа и финансови активи за управление на ликвидността - нето (+/-)",null,{"$f":"+E545+E546","v":0},0,0,0,0,0,""]
[435,null,9201,"с чуждестранни ценни книжа и финасови активи (+/-)",null,{"$f":"G545+H545+I545+J545","v":0},null,null,null,null,""]
[440,null,9202,"с ценни книжа и финансови активи на местни лица /резиденти/ (+/-)",null,{"$f":"G546+H546+I546+J546","v":0},null,null,null,null,""]
[445,9300,"Друго финансиране - нето(+/-)",null,{"$f":"SUM(E548:E568)","v":0},0,0,0,0,0,""]
[450,null,9301,"чужди средства от държавни/общински предприятия (+/-)",null,{"$f":"G548+H548+I548+J548","v":0},null,null,null,null,""]
[450,null,9310,"чужди средства от други лица (небюджетни предприятия и физически лица) (+/-)",null,0,null,null,null,null,""]
[451,null,9317,"задължения по финансов лизинг и търговски кредит (+)",null,0,0,0,0,null,""]
[452,null,9318,"погашения по финансов лизинг и търговски кредит (-)",null,0,null,null,null,null,""]
[456,null,9321,"плащания за сметка на Европейския съюз - директни плащания на земеделски производители (-)",null,0,null,null,null,null,""]
[457,null,9322,"възстановени суми от Европейския съюз - директни плащания на земеделски производители (+)",null,0,null,null,null,null,""]
[458,null,9323,"плащания за сметка на Европейския съюз - средства от ЕЗФРСР, прехвърлени към директни плащания (-)",null,0,null,null,null,null,""]
[459,null,9324,"възстановени суми от Европейския съюз - средства от ЕЗФРСР, прехвърлени към директни плащания (+)",null,0,null,null,null,null,""]
[460,null,9325,"плащания за сметка на Европейския съюз - пазарни мерки  (-)",null,0,null,null,null,null,""]
[461,null,9326,"възстановени суми от Европейския съюз - пазарни мерки (+)",null,0,null,null,null,null,""]
[null,null,9327,"плащания за сметка на средства на Европейския съюз от суми за преструктуриране (-)",null,0,null,null,null,null,""]
[null,null,9328," постъпления от Европейския съюз - суми за преструктуриране (+)",null,0,null,null,null,null,""]
[462,null,9330,"суми по разчети с централния бюджет за финансиране на плащания при недостиг на средства по сметки (+/-)",null,0,null,null,null,null,""]
[null,null,9336,"друго финансиране - операции с активи - предоставени временни депозити и гаранции на други бюджетни организации (-/+)",null,0,null,null,null,null,""]
[462,null,9337,"друго финансиране - операции с пасиви - получени временни депозити и гаранции от други бюджетни организации (-/+)",null,0,null,null,null,null,""]
[null,null,9338,"друго финансиране - операции с активи (+/-)",null,0,null,null,null,null,""]
[462,null,9339,"друго финансиране - операции с пасиви (+/-)",null,0,null,null,null,null,""]
[null,null,9355,"събрани суми за допълнително задължително пенсионно осигуряване (+)",null,0,null,null,null,null,""]
[462,null,9356,"разпределени суми за допълнително задължително пенсионно осигуряване (-)",null,0,null,null,null,null,""]
[462,null,9395,"получени парични наличности при преобразуване на бюджетни организации (+)",null,0,null,null,null,null,""]
[465,null,9396,"прехвърлени парични наличности при преобразуване на бюджетни организации (-)",null,{"$f":"G568+H568+I568+J568","v":0},null,null,null,null,""]
[470,9500,"Депозити и средства по сметки - нето (+/-)   ",null,{"$f":"SUM(E570:E588)","v":0},0,0,0,0,0,""]
[475,null,9501,"остатък в левове по сметки от предходния период (+)",null,{"$f":"G570+H570+I570+J570","v":0},null,0,0,0,"",null,{"$f":"+IF(OR($F570<0,$E570<0),\"Гр.знак\",0)","v":0}]
[480,null,9502,"остатък в левова равностойност по валутни сметки от предходния период (+)",null,0,0,null,0,0,"",null,0]
[485,null,9503,"остатък в левове по депозити от предходния период (+)",null,0,null,0,0,0,"",null,0]
[490,null,9504,"остатък в левова равностойност по депозити във валута от предходния период (+)",null,0,0,null,0,0,"",null,0]
[495,null,9505,"остатък в касата в  левове от предходния период (+)",null,0,0,0,null,0,"",null,0]
[500,null,9506,"остътък  в касата във валута от предходния период (+)",null,0,0,0,null,0,"",null,0]
[505,null,9507,"наличност в левове по сметки в края на периода (-)",null,0,null,0,0,0,"",null,{"$f":"+IF(OR($F576>0,$E576>0),\"Гр.знак\",0)","v":0}]
[510,null,9508,"наличност в левова равностойност по валутни сметки в края на периода (-)",null,0,0,null,0,0,"",null,0]
[515,null,9509,"наличност в левове по депозити в края на периода (-)",null,0,null,0,0,0,"",null,0]
[520,null,9510,"наличност в левова равностойност по депозити във валута в края на периода (-)",null,0,0,null,0,0,"",null,0]
[525,null,9511,"наличност в касата в левове в края на периода (-)",null,0,0,0,null,0,"",null,0]
[530,null,9512,"наличност в касата във валута в края на периода (-)",null,0,0,0,null,0,"",null,0]
[535,null,9513,"преводи в процес на сетълмент (-/+)",null,0,null,null,0,null,""]
[540,null,9514," преоценка на валутни наличности (нереализирани курсови разлики) по сметки и средства в страната  (+/-)",null,0,0,null,null,0,""]
[545,null,9521,"остатък в левова равностойност по валутни сметки  в чужбина от предходния период (+)",null,0,0,null,0,0,"",null,{"$f":"+IF(OR($F584<0,$E584<0),\"Гр.знак\",0)","v":0}]
[550,null,9522,"остатък в касата във валута  в чужбина от предходния период (+)",null,0,0,0,null,0,"",null,{"$f":"+IF(OR($F585<0,$E585<0),\"Гр.знак\",0)","v":0}]
[555,null,9528,"наличност в касата във валута  в чужбина в края на периода (-)",null,0,0,0,null,0,"",null,{"$f":"+IF(OR($F586>0,$E586>0),\"Гр.знак\",0)","v":0}]
[560,null,9529,"наличност в левова равностойност по валутни сметки в чужбина в края на периода(-)",null,0,0,null,0,0,"",null,{"$f":"+IF(OR($F587>0,$E587>0),\"Гр.знак\",0)","v":0}]
[561,null,9549,"преоценка на валутни наличности (нереализирани курсови разлики) по сметки и средства в чужбина (+/-)",null,0,0,null,null,0,""]
[565,9600,"Депозити и сметки консолидирани в системата на \"Единната сметка\"-нето (+/-)",null,{"$f":"SUM(E590:E593)","v":0},0,0,0,0,0,{"$f":"(IF($E589<>0,$K$2,IF($F589<>0,$K$2,IF($F590<>0,$K$2,IF($F591<>0,$K$2,IF($F592<>0,$K$2,IF($F593<>0,$K$2,\"\")))))))","v":""}]
[566,null,9601,"остатък по левови текущи сметки на бюджетните организации в БНБ от предходния период (+) ",null,{"$f":"G590+H590+I590+J590","v":0},null,0,0,0,"",null,{"$f":"+IF(AND($F$12<>\"9900\",OR($F590<0,$E590<0)),\"Гр.знак\",IF(AND($F$12=\"9900\",OR($F590>0,$E590>0)),\"Гр.знак\",0))","v":0}]
[567,null,9603,"остатък по левови депозити на бюджетните организации в БНБ от предходния период (+)",null,{"$f":"G591+H591+I591+J591","v":0},null,0,0,0,"",null,{"$f":"+IF(AND($F$12<>\"9900\",OR($F591<0,$E591<0)),\"Гр.знак\",IF(AND($F$12=\"9900\",OR($F591>0,$E591>0)),\"Гр.знак\",0))","v":0}]
[568,null,9607,"наличност по левови текущи сметки на бюджетните организации в БНБ в края на периода (-) ",null,{"$f":"G592+H592+I592+J592","v":0},null,0,0,0,{"$f":"(IF($E592<>0,$K$2,IF($F592<>0,$K$2,IF($G592<>0,$K$2,IF($H592<>0,$K$2,IF($I592<>0,$K$2,IF($J592<>0,$K$2,\"\")))))))","v":""},null,{"$f":"+IF(AND($F$12<>\"9900\",OR($F592>0,$E592>0)),\"Гр.знак\",IF(AND($F$12=\"9900\",OR($F592<0,$E592<0)),\"Гр.знак\",0))","v":0}]
[569,null,9609,"наличност по левови депозити на бюджетните организации в БНБ в края на периода (-)",null,{"$f":"G593+H593+I593+J593","v":0},null,0,0,0,"",null,{"$f":"+IF(AND($F$12<>\"9900\",OR($F593>0,$E593>0)),\"Гр.знак\",IF(AND($F$12=\"9900\",OR($F593<0,$E593<0)),\"Гр.знак\",0))","v":0}]
[575,9800,"Касови операции, депозити, покупко-продажба на валута и сетълмент операции",null,{"$f":"SUM(E595:E599)","v":0},0,0,0,0,0,""]
[580,null,9810,"операции в брой между банка и каса (+/-)",0,{"$f":"G595+H595+I595+J595","v":0},null,null,null,0,""]
[585,null,9820,"предоставяне (възстановяване) на средства по срочни депозити (+/-)",0,{"$f":"G596+H596+I596+J596","v":0},null,null,null,0,""]
[590,null,9830,"покупко-продажба на валута (+/-)",0,{"$f":"G597+H597+I597+J597","v":0},null,null,null,0,""]
[600,null,9850,"операции СЕБРА - захранване на \"сметки за наличности\" (+/-)",0,{"$f":"G598+H598+I598+J598","v":0},null,0,0,0,""]
[605,null,9890,"разчети с БНБ за сетълмент на бюджетни плащания чрез сметка 1760 (+/-)",null,{"$f":"G599+H599+I599+J599","v":0},null,0,0,0,""]
[610,"ВСИЧКО","99-99","VI. ВСИЧКО ОПЕРАЦИИ С ФИНАНСОВИ АКТИВИ И ПАСИВИ",{"$f":"SUM(E464,E468,E471,E474,E484,E500,E505,E506,E515,E519,E524,E481,E527,E534,E538,E539,E544,E547,E569,E589,E594)","v":0},-15313,5424,-28084,0,7347,1]
[null,null,null,{"$f":"+IF(+SUM(E601:J601)=0,0,\"Контрола: дефицит/излишък = финансиране с обратен знак (V. + VІ. = 0)\")","v":0},{"$f":"E600+E448","v":0},0,0,0,0,0,1]
[null,null,null,null,null,null,null,null,null,null,1]
[null,null,null,null,null,"ГЛ. СЧЕТОВОДИТЕЛ:",null,null,null,null,1]
[null,null,null,null,null,null,"( име и фамилия)",null,null,null,1]
[null,null,null,null,null,null,null,null,null,null,1]
[null,null,"ИЗГОТВИЛ:",null,null,"РЪКОВОДИТЕЛ:",null,null,null,null,1]
[null,"дата",null,"                                                                      ( име и фамилия)",null,null,"( име и фамилия)",null,null,null,1]
[null,null,null,"служебни телефони ",null,null,"e-mail:",null,null,null,1]
[null,null,null,null,null,null,null,null,null,null,1]
[null,null,null,null,null,null,"Web-адрес:",null,null,null,1]
[null,null,null,null,null,null,null,null,null,null,1]
[null,null,null,null,null,null,null,null,null,null,{"$f":"(IF($E748<>0,$K$2,IF($F748<>0,$K$2,IF($G748<>0,$K$2,IF($H748<>0,$K$2,IF($I748<>0,$K$2,IF($J748<>0,$K$2,\"\")))))))","v":1}]
[null,null,null,null,null,null,null,null,null,null,{"$f":"(IF($E748<>0,$K$2,IF($F748<>0,$K$2,IF($G748<>0,$K$2,IF($H748<>0,$K$2,IF($I748<>0,$K$2,IF($J748<>0,$K$2,\"\")))))))","v":1}]
[null,{"$f":"$B$7","v":"ОТЧЕТНИ ДАННИ ПО ЕБК ЗА СМЕТКИТЕ ЗА СРЕДСТВАТА ОТ ЕВРОПЕЙСКИЯ СЪЮЗ - ДЕС"},null,null,null,null,null,null,null,null,{"$f":"(IF($E748<>0,$K$2,IF($F748<>0,$K$2,IF($G748<>0,$K$2,IF($H748<>0,$K$2,IF($I748<>0,$K$2,IF($J748<>0,$K$2,\"\")))))))","v":1}]
[null,null,null,null,"за периода от ","до",null,"                 II.1. РАЗХОДИ ПО ДЕЙНОСТИ",null,null,{"$f":"(IF($E748<>0,$K$2,IF($F748<>0,$K$2,IF($G748<>0,$K$2,IF($H748<>0,$K$2,IF($I748<>0,$K$2,IF($J748<>0,$K$2,\"\")))))))","v":1}]
[null,{"$f":"$B$9","v":"ХТМУ"},null,null,{"$f":"$E$9","v":"2025-01-01"},{"$f":"$F$9","v":"2025-09-30"},null,null,null,null,{"$f":"(IF($E748<>0,$K$2,IF($F748<>0,$K$2,IF($G748<>0,$K$2,IF($H748<>0,$K$2,IF($I748<>0,$K$2,IF($J748<>0,$K$2,\"\")))))))","v":1}]
[null,{"$f":"$B$10","v":"                                                            (наименование на разпоредителя с бюджет)"},null,null,null,null,null,null,null,null,{"$f":"(IF($E748<>0,$K$2,IF($F748<>0,$K$2,IF($G748<>0,$K$2,IF($H748<>0,$K$2,IF($I748<>0,$K$2,IF($J748<>0,$K$2,\"\")))))))","v":1}]
[null,null,null,null,null,null,null,null,null,null,{"$f":"(IF($E748<>0,$K$2,IF($F748<>0,$K$2,IF($G748<>0,$K$2,IF($H748<>0,$K$2,IF($I748<>0,$K$2,IF($J748<>0,$K$2,\"\")))))))","v":1}]
[null,{"$f":"$B$12","v":"Министерство на образованието и науката "},null,null,"       код по ЕБК:",{"$f":"$F$12","v":"1700"},null,null,null,null,{"$f":"(IF($E748<>0,$K$2,IF($F748<>0,$K$2,IF($G748<>0,$K$2,IF($H748<>0,$K$2,IF($I748<>0,$K$2,IF($J748<>0,$K$2,\"\")))))))","v":1}]
[null,{"$f":"$B$13","v":"                                             (наименование на първостепенния разпоредител с бюджет)"},null,null,null,null,null,null,null,null,{"$f":"(IF($E748<>0,$K$2,IF($F748<>0,$K$2,IF($G748<>0,$K$2,IF($H748<>0,$K$2,IF($I748<>0,$K$2,IF($J748<>0,$K$2,\"\")))))))","v":1}]
[null,null,null,"ФИНАНСОВО-ПРАВНА ФОРМА",{"$f":"$E$15","v":96},{"$f":"$F$15","v":"СЕС - ДЕС"},null,null,null,null,{"$f":"(IF($E748<>0,$K$2,IF($F748<>0,$K$2,IF($G748<>0,$K$2,IF($H748<>0,$K$2,IF($I748<>0,$K$2,IF($J748<>0,$K$2,\"\")))))))","v":1}]
[null,null,null,null,null,null,null,null,null,"(в лева)",{"$f":"(IF($E748<>0,$K$2,IF($F748<>0,$K$2,IF($G748<>0,$K$2,IF($H748<>0,$K$2,IF($I748<>0,$K$2,IF($J748<>0,$K$2,\"\")))))))","v":1}]
[null,null,null,"II.1. РАЗХОДИ ПО ДЕЙНОСТИ","Уточнен план","                                                                                                                              О Т Ч Е Т Н И   Д А Н Н И",null,null,null,null,{"$f":"(IF($E748<>0,$K$2,IF($F748<>0,$K$2,IF($G748<>0,$K$2,IF($H748<>0,$K$2,IF($I748<>0,$K$2,IF($J748<>0,$K$2,\"\")))))))","v":1}]
[null,"§§","под-§§","НАИМЕНОВАНИЯ НА ПАРАГРАФИТЕ И ПОДПАРАГРАФИТЕ",{"$f":"$C$3","v":2025},"ОБЩО","левови\n сметки и СЕБРА ","валутни \nсметки ","операции в брой (в левове и валута)","операции приравнени на касов поток",{"$f":"(IF($E748<>0,$K$2,IF($F748<>0,$K$2,IF($G748<>0,$K$2,IF($H748<>0,$K$2,IF($I748<>0,$K$2,IF($J748<>0,$K$2,\"\")))))))","v":1}]
[null,null,null," 02 ¦","(1)","(2)","(3)","(4)","(5)","(6)",{"$f":"(IF($E748<>0,$K$2,IF($F748<>0,$K$2,IF($G748<>0,$K$2,IF($H748<>0,$K$2,IF($I748<>0,$K$2,IF($J748<>0,$K$2,\"\")))))))","v":1}]
[null,null,0,"ИЗБЕРЕТЕ ОПЕРАТИВНА ПРОГРАМА ",null,null,null,null,null,null,{"$f":"(IF($E748<>0,$K$2,IF($F748<>0,$K$2,IF($G748<>0,$K$2,IF($H748<>0,$K$2,IF($I748<>0,$K$2,IF($J748<>0,$K$2,\"\")))))))","v":1}]
[null,null,{"$f":"VLOOKUP(D628,EBK_DEIN2,2,FALSE)","v":3388},"<------          ДЕЙНОСТ    -  код  по  ЕБК",null,null,null,null,null,null,{"$f":"(IF($E748<>0,$K$2,IF($F748<>0,$K$2,IF($G748<>0,$K$2,IF($H748<>0,$K$2,IF($I748<>0,$K$2,IF($J748<>0,$K$2,\"\")))))))","v":1}]
[null,null,{"$f":"+C627","v":3388},"388 Международни програми и споразумения, дарения и помощи от чужбина",null,null,null,null,null,null,{"$f":"(IF($E748<>0,$K$2,IF($F748<>0,$K$2,IF($G748<>0,$K$2,IF($H748<>0,$K$2,IF($I748<>0,$K$2,IF($J748<>0,$K$2,\"\")))))))","v":1}]
[null,null,null,"(наименование на дейността)",null,null,null,null,null,null,{"$f":"(IF($E748<>0,$K$2,IF($F748<>0,$K$2,IF($G748<>0,$K$2,IF($H748<>0,$K$2,IF($I748<>0,$K$2,IF($J748<>0,$K$2,\"\")))))))","v":1}]
[null,100,"Заплати и възнаграждения за персонала, нает по трудови и служебни правоотношения",null,{"$f":"SUM(E631:E632)","v":0},0,0,0,0,0,{"$f":"(IF($E630<>0,$K$2,IF($F630<>0,$K$2,IF($G630<>0,$K$2,IF($H630<>0,$K$2,IF($I630<>0,$K$2,IF($J630<>0,$K$2,\"\")))))))","v":""}]
[null,null,101,"заплати и възнаграждения на персонала нает по трудови правоотношения",null,{"$f":"G631+H631+I631+J631","v":0},0,0,0,0,{"$f":"(IF($E631<>0,$K$2,IF($F631<>0,$K$2,IF($G631<>0,$K$2,IF($H631<>0,$K$2,IF($I631<>0,$K$2,IF($J631<>0,$K$2,\"\")))))))","v":""}]
[null,null,102,"заплати и възнаграждения на персонала нает по служебни правоотношения",null,{"$f":"G632+H632+I632+J632","v":0},0,0,0,0,""]
[null,200,"Други възнаграждения и плащания за персонала",null,{"$f":"SUM(E634:E638)","v":0},75853,0,69492,0,6361,1]
[null,null,201,"за нещатен персонал нает по трудови правоотношения ",null,{"$f":"G634+H634+I634+J634","v":0},0,0,0,0,""]
[null,null,202,"за персонала по извънтрудови правоотношения",null,{"$f":"G635+H635+I635+J635","v":75853},0,69492,0,6361,1]
[null,null,205,"изплатени суми от СБКО за облекло и други на персонала, с характер на възнаграждение",null,{"$f":"G636+H636+I636+J636","v":0},0,0,0,0,""]
[null,null,208,"обезщетения за персонала, с характер на възнаграждение",null,{"$f":"G637+H637+I637+J637","v":0},0,0,0,0,""]
[null,null,209,"другиплащания и възнаграждения",null,{"$f":"G638+H638+I638+J638","v":0},0,0,0,0,""]
[null,500,"Задължителни осигурителни вноски от работодатели",null,{"$f":"SUM(E640:E646)","v":0},986,0,0,0,986,1]
[null,null,551,"осигурителни вноски от работодатели за Държавното обществено осигуряване (ДОО)",null,{"$f":"G640+H640+I640+J640","v":512},0,0,0,512,1]
[null,null,{"$f":"C640+1","v":552},"осигурителни вноски от работодатели за Учителския пенсионен фонд (УПФ)",null,0,0,0,0,0,""]
[null,null,558,"вноски по чл. 4б и 4в от КСО за сметка на осигурителя",null,{"$f":"G642+H642+I642+J642","v":0},0,0,0,0,""]
[null,null,560,"здравно-осигурителни вноски от работодатели",null,299,0,0,0,299,1]
[null,null,580,"вноски за допълнително задължително осигуряване от работодатели",null,175,0,0,0,175,1]
[null,null,588,"коректив на вноски за ДЗПО за сумите по чл. 4б и 4в от КСО за сметка на осигурителя",null,{"$f":"G645+H645+I645+J645","v":0},0,0,0,0,""]
[null,null,590,"задължителни вноски за чуждестранни пенсионни фондове и  схеми за сметка на осигурителя",null,0,null,null,null,0,""]
[5,800,"Вноски за доброволно осигуряване ",null,null,0,null,null,null,null,""]
[10,1000,"Издръжка",null,{"$f":"SUM(E649:E665)","v":0},96968,5424,91544,0,0,1]
[15,null,1011,"Храна",null,{"$f":"G649+H649+I649+J649","v":328},0,328,0,0,1]
[35,null,1012,"Медикаменти",null,0,0,0,0,0,""]
[40,null,1013,"Постелен инвентар и облекло",null,0,0,0,0,0,""]
[45,null,1014,"Учебни и научно-изследователски разходи и книги за библиотеките",null,0,0,0,0,0,""]
[50,null,1015,"материали",null,5527,5424,103,0,0,1]
[55,null,1016,"вода, горива и енергия",null,0,0,0,0,0,""]
[60,null,1020,"разходи за външни услуги",null,3006,0,3006,0,0,1]
[65,null,1030,"Текущ ремонт",null,0,0,0,0,0,""]
[70,null,1051,"командировки в страната",null,0,0,0,0,0,""]
[75,null,1052,"краткосрочни командировки в чужбина",null,88048,0,88048,0,0,1]
[80,null,1053,"дългосрочни командировки в чужбина",null,0,0,0,0,0,""]
[80,null,1062,"разходи за застраховки",null,0,0,0,0,0,""]
[85,null,1063,"такса ангажимент по заеми",null,0,null,null,null,null,""]
[90,null,1069,"други финансови услуги",null,59,0,59,0,0,1]
[90,null,1091,"други разходи за СБКО",null,0,0,0,0,0,""]
[115,null,1092,"разходи за договорни санкции и неустойки, съдебни обезщетения и разноски",null,0,0,0,0,0,""]
[125,null,1098,"други разходи, некласифицирани в другите параграфи и подпараграфи",null,0,0,0,0,0,""]
[130,1900,"Платени данъци, такси и административни санкции",null,{"$f":"SUM(E667:E669)","v":0},0,0,0,0,0,""]
[135,null,1901,"платени държавни данъци, такси, наказателни лихви и административни санкции",null,{"$f":"G667+H667+I667+J667","v":0},0,0,0,0,""]
[140,null,1981,"платени общински данъци, такси, наказателни лихви и административни санкции",null,{"$f":"G668+H668+I668+J668","v":0},0,0,0,0,""]
[145,null,1991,"платени данъци, такси, наказателни лихви и административни санкции в чужбина",null,{"$f":"G669+H669+I669+J669","v":0},0,0,0,0,""]
[150,2100,"Разходи за лихви по емисии на държавни (общински) ценни книжа",null,{"$f":"SUM(E671:E675)","v":0},0,0,0,0,0,""]
[155,null,2110,"лихви по държавни (общински) ценни книжа",null,{"$f":"G671+H671+I671+J671","v":0},null,null,null,null,""]
[160,null,2120,"отстъпки по държавни (общински) ценни книжа",null,{"$f":"G672+H672+I672+J672","v":0},null,null,null,null,""]
[165,null,2125,"лихви и отстъпки по целеви емисии на държавни ценни книжа",null,{"$f":"G673+H673+I673+J673","v":0},null,null,0,null,""]
[175,null,2140,"лихви по държавни ценни книжа, емитирани за структурната реформа ",null,{"$f":"G674+H674+I674+J674","v":0},null,null,0,null,""]
[180,null,2190,"премии над номинала от емисии на държавни (общински) ценни книжа (-)",null,{"$f":"G675+H675+I675+J675","v":0},null,null,0,null,""]
[185,2200,"Разходи за лихви по заеми от страната",null,{"$f":"SUM(E677:E678)","v":0},0,0,0,0,0,""]
[190,null,2221,"разходи за лихви по заеми от банки в страната",null,{"$f":"G677+H677+I677+J677","v":0},null,null,null,null,""]
[200,null,2224,"разходи за лихви по други заеми от страната",null,0,null,null,null,null,""]
[200,2500,"Разходи за лихви по заеми от други държави",null,null,0,null,null,null,null,""]
[205,2600,"Разходи за лихви по заеми от международни организации и институции",null,null,0,null,null,null,null,""]
[210,2700,"Разходи за лихви по заеми от банки и други финансови институции от чужбина",null,null,0,null,null,null,null,""]
[215,2800,"Разходи за лихви и отстъпки по облигации, емитирани и търгувани на международните капиталови пазари",null,{"$f":"SUM(E683:E685)","v":0},0,0,0,0,0,""]
[220,null,2810,"лихви по облигации, емитирани на международните капиталови пазари",null,0,null,null,null,null,""]
[225,null,2820,"отстъпки по облигации, емитирани на международните капиталови пазари",null,0,null,null,null,null,""]
[230,null,2890,"премии над номинала на облигации, емитирани и търгувани на международните капиталови пазари (-)",null,0,null,null,null,null,""]
[245,2900,"Други разходи за лихви",null,{"$f":"SUM(E687:E694)","v":0},0,0,0,0,0,""]
[220,null,2910,"платени лихви по финансов лизинг и търговски кредит",null,{"$f":"G687+H687+I687+J687","v":0},null,null,null,null,""]
[225,null,2920,"платени лихви по активирани гаранции по заеми от  банки в страната",null,{"$f":"G688+H688+I688+J688","v":0},null,null,null,null,""]
[230,null,2969,"платени лихви по активирани гаранции по заеми от международни организации и институции",null,0,null,null,null,null,""]
[235,null,2970,"платени лихви по активирани гаранции по заеми от банки и финансови институции от чужбина",null,0,null,null,null,null,""]
[240,null,2989,"възстановени суми по платени лихви по активирани гаранции (-)",null,0,null,null,null,null,""]
[245,null,2990,"платени лихви по заеми, предоставени от централния бюджет и бюджетни организации",null,{"$f":"G692+H692+I692+J692","v":0},null,null,null,null,""]
[250,null,2991,"други разходи за лихви към  местни лица",null,0,null,null,null,null,""]
[255,null,2992,"други разходи за лихви към чуждестранни лица",null,0,null,null,null,null,""]
[265,3300,"Вноска в общия бюджет на Европейския съюз",null,{"$f":"SUM(E696:E700)","v":0},0,0,0,0,0,""]
[270,null,3301,"ресурс на база брутен национален доход",null,{"$f":"G696+H696+I696+J696","v":0},null,null,0,0,""]
[290,null,3302,"ресурс на база данък върху добавената стойност",null,0,null,null,0,0,""]
[320,null,3304,"традиционни собствени ресурси - мита",null,0,null,null,0,0,""]
[330,null,3306,"участие във финансирането на брутното намаление за  Австрия, Дания, Германия, Нидерландия и Швеция и вноска за корекция за неучастие на съответни държави членки в някои политики за свобода, сигурност и правосъдие",null,0,null,null,0,0,""]
[331,null,3307,"ресурс на база нерециклираните отпадъци от опаковки от пластмаса",null,0,null,null,0,0,""]
[332,3900,"Здравно-осигурителни плащания",null,null,0,null,null,null,null,{"$f":"(IF($E701<>0,$K$2,IF($F701<>0,$K$2,IF($G701<>0,$K$2,IF($H701<>0,$K$2,IF($I701<>0,$K$2,IF($J701<>0,$K$2,\"\")))))))","v":""}]
[333,4000,"Стипендии",null,null,0,0,0,0,0,""]
[350,4100,"Пенсии",null,null,0,null,null,null,null,""]
[355,4200,"Текущи трансфери, обезщетения и помощи за домакинствата",null,{"$f":"SUM(E705:E710)","v":0},102442,0,102442,0,0,1]
[375,null,4201,"обезщетения и помощи по социалното осигуряване",null,{"$f":"G705+H705+I705+J705","v":0},0,0,0,0,""]
[375,null,4202,"обезщетения и помощи по социалното подпомагане",null,0,0,0,0,0,""]
[380,null,4214,"обезщетения и помощи по решение на общинския съвет",null,0,0,0,0,0,""]
[385,null,4217,"текущи трансфери за домакинства от средства на Европейския съюз",null,102442,0,102442,0,0,1]
[390,null,4218,"текущи трансфери за домакинства по други международни програми и споразумения",null,0,0,0,0,0,""]
[390,null,4219,"други текущи трансфери за домакинствата",null,0,0,0,0,0,""]
[395,4300,"Субсидии и други текущи трансфери за нефинансови предприятия ",null,{"$f":"SUM(E712:E714)","v":0},0,0,0,0,0,""]
[397,null,4301,"за текуща дейност",null,{"$f":"G712+H712+I712+J712","v":0},null,null,null,null,""]
[398,null,4302,"за осъществяване на болнична помощ ",null,0,null,null,null,null,""]
[399,null,4309,"други субсидии и плащания",null,0,null,null,null,null,""]
[400,4400,"Субсидии и други текущи трансфери за финансови институции",null,null,0,null,null,null,null,""]
[401,4500,"Субсидии и други текущи трансфери за юридически лица с нестопанска цел",null,null,0,null,null,null,null,""]
[404,4600,"Разходи за членски внос и участие в нетърговски организации и дейности",null,null,0,0,0,0,0,""]
[404,4900,"Предоставени текущи и капиталови трансфери за чужбина",null,{"$f":"+E719+E720","v":0},241244,0,241244,0,0,1]
[440,null,4901,"текущи трансфери за чужбина",null,{"$f":"G719+H719+I719+J719","v":241244},0,241244,0,0,1]
[450,null,4902,"капиталови трансфери за чужбина",null,{"$f":"G720+H720+I720+J720","v":0},null,null,null,null,""]
[495,5100,"Основен ремонт на дълготрайни материални активи",null,null,{"$f":"G721+H721+I721+J721","v":0},0,0,0,0,""]
[500,5200,"Придобиване на дълготрайни материални активи",null,{"$f":"SUM(E723:E729)","v":0},0,0,0,0,0,""]
[505,null,5201,"придобиване на компютри и хардуер",null,{"$f":"G723+H723+I723+J723","v":0},0,0,0,0,""]
[510,null,5202,"придобиване на сгради",null,0,0,0,0,0,""]
[515,null,5203,"придобиване на друго оборудване, машини и съоръжения",null,0,0,0,0,0,""]
[520,null,5204,"придобиване на транспортни средства",null,0,0,0,0,0,""]
[525,null,5205,"придобиване на стопански инвентар",null,0,0,0,0,0,""]
[635,null,5206,"изграждане на инфраструктурни обекти",null,0,0,0,0,0,""]
[640,null,5219,"придобиване на други ДМА",null,0,0,0,0,0,""]
[645,5300,"Придобиване на нематериални дълготрайни активи",null,{"$f":"SUM(E731:E732)","v":0},286,0,286,0,0,1]
[650,null,5301,"придобиване на програмни продукти и лицензи за програмни продукти",null,{"$f":"G731+H731+I731+J731","v":286},0,286,0,0,1]
[655,null,5309,"придобиване на други нематериални дълготрайни активи",null,{"$f":"G732+H732+I732+J732","v":0},0,0,0,0,""]
[665,5400,"Придобиване на земя",null,null,{"$f":"G733+H733+I733+J733","v":0},0,0,0,0,""]
[675,5500,"Капиталови трансфери",null,{"$f":"SUM(E735:E738)","v":0},0,0,0,0,0,""]
[685,null,5501,"капиталови трансфери за нефинансови предприятия",null,{"$f":"G735+H735+I735+J735","v":0},null,null,null,null,""]
[690,null,5502,"капиталови трансфери за финансови институции",null,{"$f":"G736+H736+I736+J736","v":0},null,null,null,null,""]
[695,null,5503,"капиталови трансфери за организации с нестопанска цел",null,{"$f":"G737+H737+I737+J737","v":0},null,null,null,null,""]
[700,null,5504,"капиталови трансфери за домакинствата",null,{"$f":"G738+H738+I738+J738","v":0},null,null,null,null,""]
[710,5700,"Прираст на държавния резерв и изкупуване на земеделска продукция (включва и § 40-71)",null,{"$f":"SUM(E740:E742)","v":0},0,0,0,0,0,""]
[715,null,5701,"плащания за попълване на държавния резерв",null,{"$f":"G740+H740+I740+J740","v":0},null,null,null,null,""]
[720,null,5702,"плащания за изкупуване на земеделска продукция",null,{"$f":"G741+H741+I741+J741","v":0},null,null,null,null,""]
[725,null,4071,"постъпления от продажба на държавния резерв (-)",null,{"$f":"G742+H742+I742+J742","v":0},null,null,null,null,""]
[730,null,null,null,null,null,null,null,null,null,""]
[735,98,"Резерв за непредвидени и неотложни разходи",null,null,{"$f":"G744+H744+I744+J744","v":0},0,0,0,0,""]
[740,null,null,null,null,null,null,null,null,null,""]
[745,null,null,null,null,null,null,null,null,null,""]
[750,null,null,null,null,null,null,null,null,null,""]
[755,null,"99-99",{"$f":"+B748","v":0},{"$f":"SUM(E630,E633,E639,E647,E648,E666,E670,E676,E679,E680,E681,E682,E686,E695,E701,E702,E703,E704,E711,E715,E716,E717,E718,E721,E722,E730,E733,E734,E739)+E744","v":0},517779,5424,505008,0,7347,1,{"$f":"LEFT(C627,1)","v":"3"}]
[760,null,null,null,null,null,null,null,null,null,{"$f":"K748","v":1}]
[765,null,null,null,null,null,null,null,null,null,{"$f":"K748","v":1}]
[775,null,null,null,null,null,null,null,null,null,{"$f":"(IF(SUM(K762:K783)<>0,$K$2,\"\"))","v":""}]
[780,{"$f":"$B$7","v":"ОТЧЕТНИ ДАННИ ПО ЕБК ЗА СМЕТКИТЕ ЗА СРЕДСТВАТА ОТ ЕВРОПЕЙСКИЯ СЪЮЗ - ДЕС"},null,null,null,null,null,null,null,null,{"$f":"(IF(SUM(K762:K783)<>0,$K$2,\"\"))","v":""}]
[785,null,null,null,"за периода от ","до",null,null,null,null,{"$f":"(IF(SUM(K762:K783)<>0,$K$2,\"\"))","v":""}]
[790,{"$f":"$B$9","v":"ХТМУ"},null,null,{"$f":"$E$9","v":"2025-01-01"},{"$f":"$F$9","v":"2025-09-30"},null,null,null,null,{"$f":"(IF(SUM(K762:K783)<>0,$K$2,\"\"))","v":""}]
[795,{"$f":"$B$10","v":"                                                            (наименование на разпоредителя с бюджет)"},null,null,null,null,null,null,null,null,{"$f":"(IF(SUM(K762:K783)<>0,$K$2,\"\"))","v":""}]
[805,null,null,null,null,null,null,null,null,null,{"$f":"(IF(SUM(K762:K783)<>0,$K$2,\"\"))","v":""}]
[810,{"$f":"$B$12","v":"Министерство на образованието и науката "},null,null,"       код по ЕБК:",{"$f":"$F$12","v":"1700"},null,null,null,null,{"$f":"(IF(SUM(K762:K783)<>0,$K$2,\"\"))","v":""}]
[815,{"$f":"$B$13","v":"                                             (наименование на първостепенния разпоредител с бюджет)"},null,null,null,null,null,null,null,null,{"$f":"(IF(SUM(K762:K783)<>0,$K$2,\"\"))","v":""}]
[525,null,null,"               ФИНАНСОВО-ПРАВНА ФОРМА",{"$f":"$E$15","v":96},{"$f":"$F$15","v":"СЕС - ДЕС"},null,null,null,null,{"$f":"(IF(SUM(K762:K783)<>0,$K$2,\"\"))","v":""}]
[820,null,null,"Натурални и други показатели за дейността",null,"(в лева)",null,null,null,null,{"$f":"(IF(SUM(K762:K783)<>0,$K$2,\"\"))","v":""}]
[821,"МЯРКА","Код 9 8","  О б щ и   н а т у р а л н и   п о к а з а т е л и","    П л а н","    О т ч е т ",null,null,null,null,{"$f":"(IF(SUM(K762:K783)<>0,$K$2,\"\"))","v":""}]
[822,null," 9 8 0 1","Щ а т н и   б р о й к и",{"$f":"E763+E764","v":0},{"$f":"F763+F764","v":0},null,null,null,null,{"$f":"(IF($E762<>0,$K$2,IF($F762<>0,$K$2,\"\")))","v":""}]
[823,null," 9 8 1 1","в т.ч.: по трудови правоотношения",null,null,null,null,null,null,""]
[825,null," 9 8 1 2","           по служебни правоотношения",null,null,null,null,null,null,""]
[null,null," 9 8 0 2","Средногодишни щатни бройки",{"$f":"E766+E767","v":0},{"$f":"F766+F767","v":0},null,null,null,null,""]
[null,null," 9 8 2 1","в т.ч.: по трудови правоотношения",null,null,null,null,null,null,""]
[null,null," 9 8 2 2","         по служебни правоотношения",null,null,null,null,null,null,""]
[null,null," 9 8 0 3","Средна годишна брутна заплата",null,null,null,null,null,null,""]
[null,null," 9 8 3 1"," в т.ч.:   по трудови правоотношения",null,null,null,null,null,null,""]
[null,null," 9 8 3 2","            по служебни правоотношения",null,null,null,null,null,null,""]
[null,null," 9 8 0 4","Брой на моторни превозни средства",null,null,null,null,null,null,""]
[null,null,"9 8 0 5","- в т.ч. - леки автомобили",null,null,null,null,null,null,""]
[null,null,"9 8 0 6","             - санитарни линейки",null,null,null,null,null,null,""]
[null,null," 9 8 0 7","Брой ученици, финансирани по единни разходни стандарти",null,null,null,null,null,null,""]
[null,null," 9 8 0 8","Средна годишна брутна заплата на делегирани бюджети",null,null,null,null,null,null,""]
[null,null," 9 8 0 9","Щатни бройки на делегирани бюджети",null,null,null,null,null,null,""]
[null,null," 9 8 1 0","Средногодишни щатни бройки на делегирани бюджети",null,null,null,null,null,null,""]
[null,null,"9 8 1 3","Средногодишен приравнен брой учащи във ВУ, финансирани по норматив за издръжка на обучението",null,null,null,null,null,null,""]
[null,null,"9 8 1 4","Брой леглодни в студентски общежития",null,null,null,null,null,null,""]
[905,null,"9 8 1 5","Брой хранодни в студентски стол",null,null,null,null,null,null,""]
[906,null,"9 8 1 7","Болнични легла",null,null,null,null,null,null,""]
[null,null,"9 8 1 8","Обем радиопрограма /часове/",null,null,null,null,null,null,""]
[null,null,"9 8 1 9","Обем телевизионна програма /часове/",null,null,null,null,null,null,""]
[null,"МЯРКА","Код  ","Разходи в областта на електронното управление и за използваните информационни и комуникационни технологии","    П л а н","    О т ч е т ",null,null,null,null,{"$f":"(IF($E785<>0,$K$2,IF($F785<>0,$K$2,\"\")))","v":""}]
[null,null,"9 8 5 0","Общо разходи в областта на ЕУ и за използваните ИКТ",{"$f":"E786+E787","v":0},{"$f":"F786+F787","v":0},null,null,null,null,""]
[null,null,"9 8 5 1","Текущи разходи в областта на ЕУ и за използваните ИКТ",null,null,null,null,null,null,""]
[null,null,"9 8 5 2","Капиталови разходи в областта на ЕУ и за използваните ИКТ",null,null,null,null,null,null,""]
[null,"ЗАБЕЛЕЖКА:",null,null,null,null,null,null,null,null,{"$f":"K748","v":1}]
[null," За натурални показатели, не влючени в този отчет, специфични за конкретна дейност се представят отделни справки, допълнително определени от Министерство на финансите.",null,null,null,null,null,null,null,null,{"$f":"K748","v":1}]

{"sheet":"INF","index":4,"n_rows":197,"n_cols":19,"rows_kept":197,"cut":false,"hidden":true,"merged":[[80,9,80,10],[81,9,81,10],[85,9,85,10],[13,8,13,10],[15,8,15,10],[18,8,18,10],[69,9,69,10],[47,9,47,10],[29,9,29,10],[65,9,65,10],[75,9,75,10],[32,9,32,10],[38,9,38,10],[79,9,79,10],[121,9,121,10],[100,9,100,10],[101,9,101,10],[102,9,102,10],[116,9,116,10],[120,9,120,10],[153,8,153,10],[156,8,156,10],[188,8,188,10],[46,9,46,10],[110,9,110,10],[114,9,114,10],[115,9,115,10],[78,9,78,10],[117,9,117,10],[103,9,103,10],[129,9,129,10],[132,9,132,10],[133,9,133,10],[138,9,138,10],[143,9,143,10],[151,8,151,10]]}
["step",179]
["gotocell","c979"]
["nextcell","b791"]
["INF copyrf","i12:s189"]
["dejKN"]
[]
[]
[null,"d628"]
[]
[]
["Step:"]
[1,null,null,null,null,null,null,null,null,null,null,null,null,null,null,null,null,{"$f":"(IF($E148<>0,$K$2,IF($F148<>0,$K$2,IF($G148<>0,$K$2,IF($H148<>0,$K$2,IF($I148<>0,$K$2,IF($J148<>0,$K$2,\"\")))))))","v":0}]
[2,null,null,null,null,null,null,null,null,null,null,null,null,null,null,null,null,{"$f":"(IF($E148<>0,$K$2,IF($F148<>0,$K$2,IF($G148<>0,$K$2,IF($H148<>0,$K$2,IF($I148<>0,$K$2,IF($J148<>0,$K$2,\"\")))))))","v":0}]
[3,null,null,null,null,null,null,null,{"$f":"$B$7","v":0},null,null,null,null,null,null,null,null,{"$f":"(IF($E148<>0,$K$2,IF($F148<>0,$K$2,IF($G148<>0,$K$2,IF($H148<>0,$K$2,IF($I148<>0,$K$2,IF($J148<>0,$K$2,\"\")))))))","v":0}]
[4,null,null,null,null,null,null,null,null,null,null,"за периода от ","до",null,"                 II.1. РАЗХОДИ ПО ДЕЙНОСТИ",null,null,{"$f":"(IF($E148<>0,$K$2,IF($F148<>0,$K$2,IF($G148<>0,$K$2,IF($H148<>0,$K$2,IF($I148<>0,$K$2,IF($J148<>0,$K$2,\"\")))))))","v":0}]
[5,null,null,null,null,null,null,null,{"$f":"$B$9","v":0},null,null,{"$f":"$E$9","v":"00:00:00"},{"$f":"$F$9","v":"00:00:00"},null,null,null,null,{"$f":"(IF($E148<>0,$K$2,IF($F148<>0,$K$2,IF($G148<>0,$K$2,IF($H148<>0,$K$2,IF($I148<>0,$K$2,IF($J148<>0,$K$2,\"\")))))))","v":0}]
[6,null,null,null,null,null,null,null,{"$f":"$B$10","v":0},null,null,null,null,null,null,null,null,{"$f":"(IF($E148<>0,$K$2,IF($F148<>0,$K$2,IF($G148<>0,$K$2,IF($H148<>0,$K$2,IF($I148<>0,$K$2,IF($J148<>0,$K$2,\"\")))))))","v":0}]
[7,null,null,null,null,null,null,null,null,null,null,null,null,null,null,null,null,{"$f":"(IF($E148<>0,$K$2,IF($F148<>0,$K$2,IF($G148<>0,$K$2,IF($H148<>0,$K$2,IF($I148<>0,$K$2,IF($J148<>0,$K$2,\"\")))))))","v":0}]
[8,null,null,null,null,null,null,null,{"$f":"$B$12","v":0},null,null,"       код по ЕБК:",{"$f":"$F$12","v":0},null,null,null,null,{"$f":"(IF($E148<>0,$K$2,IF($F148<>0,$K$2,IF($G148<>0,$K$2,IF($H148<>0,$K$2,IF($I148<>0,$K$2,IF($J148<>0,$K$2,\"\")))))))","v":0}]
[9,null,null,null,null,null,null,null,{"$f":"$B$13","v":0},null,null,null,null,null,null,null,null,{"$f":"(IF($E148<>0,$K$2,IF($F148<>0,$K$2,IF($G148<>0,$K$2,IF($H148<>0,$K$2,IF($I148<>0,$K$2,IF($J148<>0,$K$2,\"\")))))))","v":0}]
[10,null,null,null,null,null,null,null,null,null,"ФИНАНСОВО-ПРАВНА ФОРМА",{"$f":"$E$15","v":0},{"$f":"$F$15","v":0},null,null,null,null,{"$f":"(IF($E148<>0,$K$2,IF($F148<>0,$K$2,IF($G148<>0,$K$2,IF($H148<>0,$K$2,IF($I148<>0,$K$2,IF($J148<>0,$K$2,\"\")))))))","v":0}]
[11,null,null,null,null,null,null,null,null,null,null,null,null,null,null,null,"(в лева)",{"$f":"(IF($E148<>0,$K$2,IF($F148<>0,$K$2,IF($G148<>0,$K$2,IF($H148<>0,$K$2,IF($I148<>0,$K$2,IF($J148<>0,$K$2,\"\")))))))","v":0}]
[12,null,null,null,null,null,null,null,null,null,"II.1. РАЗХОДИ ПО ДЕЙНОСТИ","Уточнен план","                                                                                                                              О Т Ч Е Т Н И   Д А Н Н И",null,null,null,null,{"$f":"(IF($E148<>0,$K$2,IF($F148<>0,$K$2,IF($G148<>0,$K$2,IF($H148<>0,$K$2,IF($I148<>0,$K$2,IF($J148<>0,$K$2,\"\")))))))","v":0}]
[13,null,null,null,null,null,null,null,"§§","под-§§","НАИМЕНОВАНИЯ НА ПАРАГРАФИТЕ И ПОДПАРАГРАФИТЕ",{"$f":"$C$3","v":0},"ОБЩО","левови\n сметки и СЕБРА ","валутни \nсметки ","операции в брой (в левове и валута)","операции приравнени на касов поток",{"$f":"(IF($E148<>0,$K$2,IF($F148<>0,$K$2,IF($G148<>0,$K$2,IF($H148<>0,$K$2,IF($I148<>0,$K$2,IF($J148<>0,$K$2,\"\")))))))","v":0}]
[14,null,null,null,null,null,null,null,null,null," 02 ¦","(1)","(2)","(3)","(4)","(5)","(6)",{"$f":"(IF($E148<>0,$K$2,IF($F148<>0,$K$2,IF($G148<>0,$K$2,IF($H148<>0,$K$2,IF($I148<>0,$K$2,IF($J148<>0,$K$2,\"\")))))))","v":0}]
[15,null,null,null,null,null,null,null,null,{"$f":"VLOOKUP(K26,OP_LIST2,2,FALSE)","v":0},"ИЗБЕРЕТЕ ОПЕРАТИВНА ПРОГРАМА ",null,null,null,null,null,null,{"$f":"(IF($E148<>0,$K$2,IF($F148<>0,$K$2,IF($G148<>0,$K$2,IF($H148<>0,$K$2,IF($I148<>0,$K$2,IF($J148<>0,$K$2,\"\")))))))","v":0}]
[16,null,null,null,null,null,null,null,null,{"$f":"VLOOKUP(K28,EBK_DEIN2,2,FALSE)","v":0},"<------          ДЕЙНОСТ    -  код  по  ЕБК",null,null,null,null,null,null,{"$f":"(IF($E148<>0,$K$2,IF($F148<>0,$K$2,IF($G148<>0,$K$2,IF($H148<>0,$K$2,IF($I148<>0,$K$2,IF($J148<>0,$K$2,\"\")))))))","v":0}]
[17,null,null,null,null,null,null,null,null,{"$f":"+J27","v":0},"ИЗБЕРЕТЕ ДЕЙНОСТ",null,null,null,null,null,null,{"$f":"(IF($E148<>0,$K$2,IF($F148<>0,$K$2,IF($G148<>0,$K$2,IF($H148<>0,$K$2,IF($I148<>0,$K$2,IF($J148<>0,$K$2,\"\")))))))","v":0}]
[18,null,null,null,null,null,null,null,null,null,"(наименование на дейността)",null,null,null,null,null,null,{"$f":"(IF($E148<>0,$K$2,IF($F148<>0,$K$2,IF($G148<>0,$K$2,IF($H148<>0,$K$2,IF($I148<>0,$K$2,IF($J148<>0,$K$2,\"\")))))))","v":0}]
[19,null,null,null,null,null,null,null,100,"Заплати и възнаграждения за персонала, нает по трудови и служебни правоотношения",null,{"$f":"SUM(L31:L32)","v":0},0,0,0,0,0,{"$f":"(IF($E30<>0,$K$2,IF($F30<>0,$K$2,IF($G30<>0,$K$2,IF($H30<>0,$K$2,IF($I30<>0,$K$2,IF($J30<>0,$K$2,\"\")))))))","v":0}]
[20,null,null,null,null,null,null,null,null,101,"заплати и възнаграждения на персонала нает по трудови правоотношения",null,{"$f":"N31+O31+P31+Q31","v":0},null,null,null,null,{"$f":"(IF($E31<>0,$K$2,IF($F31<>0,$K$2,IF($G31<>0,$K$2,IF($H31<>0,$K$2,IF($I31<>0,$K$2,IF($J31<>0,$K$2,\"\")))))))","v":0}]
[21,null,null,null,null,null,null,null,null,102,"заплати и възнаграждения на персонала нает по служебни правоотношения",null,{"$f":"N32+O32+P32+Q32","v":0},null,null,null,null,0]
[22,null,null,null,null,null,null,null,200,"Други възнаграждения и плащания за персонала",null,{"$f":"SUM(L34:L38)","v":0},0,0,0,0,0,0]
[23,null,null,null,null,null,null,null,null,201,"за нещатен персонал нает по трудови правоотношения ",null,{"$f":"N34+O34+P34+Q34","v":0},null,null,null,null,0]
[24,null,null,null,null,null,null,null,null,202,"за персонала по извънтрудови правоотношения",null,{"$f":"N35+O35+P35+Q35","v":0},null,null,null,null,0]
[25,null,null,null,null,null,null,null,null,205,"изплатени суми от СБКО за облекло и други на персонала, с характер на възнаграждение",null,{"$f":"N36+O36+P36+Q36","v":0},null,null,null,null,0]
[26,null,null,null,null,null,null,null,null,208,"обезщетения за персонала, с характер на възнаграждение",null,{"$f":"N37+O37+P37+Q37","v":0},null,null,null,null,0]
[27,null,null,null,null,null,null,null,null,209,"другиплащания и възнаграждения",null,{"$f":"N38+O38+P38+Q38","v":0},null,null,null,null,0]
[28,null,null,null,null,null,null,null,500,"Задължителни осигурителни вноски от работодатели",null,{"$f":"SUM(L40:L46)","v":0},0,0,0,0,0,0]
[29,null,null,null,null,null,null,null,null,551,"осигурителни вноски от работодатели за Държавното обществено осигуряване (ДОО)",null,{"$f":"N40+O40+P40+Q40","v":0},0,0,0,null,0]
[30,null,null,null,null,null,null,null,null,{"$f":"J40+1","v":552},"осигурителни вноски от работодатели за Учителския пенсионен фонд (УПФ)",null,0,0,0,0,null,0]
[31,null,null,null,null,null,null,null,null,558,"вноски по чл. 4б и 4в от КСО за сметка на осигурителя",null,{"$f":"N42+O42+P42+Q42","v":0},0,0,0,0,0]
[32,null,null,null,null,null,null,null,null,560,"здравно-осигурителни вноски от работодатели",null,0,0,0,0,null,0]
[33,null,null,null,null,null,null,null,null,580,"вноски за допълнително задължително осигуряване от работодатели",null,0,0,0,0,null,0]
[34,null,null,null,null,null,null,null,null,588,"коректив на вноски за ДЗПО за сумите по чл. 4б и 4в от КСО за сметка на осигурителя",null,{"$f":"N45+O45+P45+Q45","v":0},0,0,0,0,0]
[35,null,null,null,null,null,null,null,null,590,"задължителни вноски за чуждестранни пенсионни фондове и  схеми за сметка на осигурителя",null,0,null,null,null,null,0]
[36,null,null,null,null,null,null,null,800,"Вноски за доброволно осигуряване ",null,null,0,null,null,null,null,0]
[37,null,null,null,null,null,null,null,1000,"Издръжка",null,{"$f":"SUM(L49:L65)","v":0},0,0,0,0,0,0]
[38,null,null,null,null,null,null,null,null,1011,"Храна",null,{"$f":"N49+O49+P49+Q49","v":0},null,null,null,null,0]
[39,null,null,null,null,null,null,null,null,1012,"Медикаменти",null,0,null,null,null,null,0]
[40,null,null,null,null,null,null,null,null,1013,"Постелен инвентар и облекло",null,0,null,null,null,null,0]
[41,null,null,null,null,null,null,null,null,1014,"Учебни и научно-изследователски разходи и книги за библиотеките",null,0,null,null,null,null,0]
[42,null,null,null,null,null,null,null,null,1015,"материали",null,0,null,null,null,null,0]
[43,null,null,null,null,null,null,null,null,1016,"вода, горива и енергия",null,0,null,null,null,null,0]
[44,null,null,null,null,null,null,null,null,1020,"разходи за външни услуги",null,0,null,null,null,null,0]
[45,null,null,null,null,null,null,null,null,1030,"Текущ ремонт",null,0,null,null,null,null,0]
[46,null,null,null,null,null,null,null,null,1051,"командировки в страната",null,0,null,null,null,null,0]
[47,null,null,null,null,null,null,null,null,1052,"краткосрочни командировки в чужбина",null,0,null,null,null,null,0]
[48,null,null,null,null,null,null,null,null,1053,"дългосрочни командировки в чужбина",null,0,null,null,null,null,0]
[49,null,null,null,null,null,null,null,null,1062,"разходи за застраховки",null,0,null,null,null,null,0]
[50,null,null,null,null,null,null,null,null,1063,"такса ангажимент по заеми",null,0,null,null,null,null,0]
[51,null,null,null,null,null,null,null,null,1069,"други финансови услуги",null,0,null,null,null,null,0]
[52,null,null,null,null,null,null,null,null,1091,"други разходи за СБКО",null,0,null,null,null,null,0]
[53,null,null,null,null,null,null,null,null,1092,"разходи за договорни санкции и неустойки, съдебни обезщетения и разноски",null,0,null,null,null,null,0]
[54,null,null,null,null,null,null,null,null,1098,"други разходи, некласифицирани в другите параграфи и подпараграфи",null,0,null,null,null,null,0]
[55,null,null,null,null,null,null,null,1900,"Платени данъци, такси и административни санкции",null,{"$f":"SUM(L67:L69)","v":0},0,0,0,0,0,0]
[56,null,null,null,null,null,null,null,null,1901,"платени държавни данъци, такси, наказателни лихви и административни санкции",null,{"$f":"N67+O67+P67+Q67","v":0},null,null,null,null,0]
[57,null,null,null,null,null,null,null,null,1981,"платени общински данъци, такси, наказателни лихви и административни санкции",null,{"$f":"N68+O68+P68+Q68","v":0},null,null,null,null,0]
[58,null,null,null,null,null,null,null,null,1991,"платени данъци, такси, наказателни лихви и административни санкции в чужбина",null,{"$f":"N69+O69+P69+Q69","v":0},null,null,null,null,0]
[59,null,null,null,null,null,null,null,2100,"Разходи за лихви по емисии на държавни (общински) ценни книжа",null,{"$f":"SUM(L71:L75)","v":0},0,0,0,0,0,0]
[60,null,null,null,null,null,null,null,null,2110,"лихви по държавни (общински) ценни книжа",null,{"$f":"N71+O71+P71+Q71","v":0},null,null,null,null,0]
[61,null,null,null,null,null,null,null,null,2120,"отстъпки по държавни (общински) ценни книжа",null,{"$f":"N72+O72+P72+Q72","v":0},null,null,null,null,0]
[62,null,null,null,null,null,null,null,null,2125,"лихви и отстъпки по целеви емисии на държавни ценни книжа",null,{"$f":"N73+O73+P73+Q73","v":0},null,null,0,null,0]
[63,null,null,null,null,null,null,null,null,2140,"лихви по държавни ценни книжа, емитирани за структурната реформа ",null,{"$f":"N74+O74+P74+Q74","v":0},null,null,0,null,0]
[64,null,null,null,null,null,null,null,null,2190,"премии над номинала от емисии на държавни (общински) ценни книжа (-)",null,{"$f":"N75+O75+P75+Q75","v":0},null,null,0,null,0]
[65,null,null,null,null,null,null,null,2200,"Разходи за лихви по заеми от страната",null,{"$f":"SUM(L77:L78)","v":0},0,0,0,0,0,0]
[66,null,null,null,null,null,null,null,null,2221,"разходи за лихви по заеми от банки в страната",null,{"$f":"N77+O77+P77+Q77","v":0},null,null,null,null,0]
[67,null,null,null,null,null,null,null,null,2224,"разходи за лихви по други заеми от страната",null,0,null,null,null,null,0]
[68,null,null,null,null,null,null,null,2500,"Разходи за лихви по заеми от други държави",null,null,0,null,null,null,null,0]
[69,null,null,null,null,null,null,null,2600,"Разходи за лихви по заеми от международни организации и институции",null,null,0,null,null,null,null,0]
[70,null,null,null,null,null,null,null,2700,"Разходи за лихви по заеми от банки и други финансови институции от чужбина",null,null,0,null,null,null,null,0]
[71,null,null,null,null,null,null,null,2800,"Разходи за лихви и отстъпки по облигации, емитирани и търгувани на международните капиталови пазари",null,{"$f":"SUM(L83:L85)","v":0},0,0,0,0,0,0]
[72,null,null,null,null,null,null,null,null,2810,"лихви по облигации, емитирани на международните капиталови пазари",null,0,null,null,null,null,0]
[73,null,null,null,null,null,null,null,null,2820,"отстъпки по облигации, емитирани на международните капиталови пазари",null,0,null,null,null,null,0]
[74,null,null,null,null,null,null,null,null,2890,"премии над номинала на облигации, емитирани и търгувани на международните капиталови пазари (-)",null,0,null,null,null,null,0]
[75,null,null,null,null,null,null,null,2900,"Други разходи за лихви",null,{"$f":"SUM(L87:L94)","v":0},0,0,0,0,0,0]
[76,null,null,null,null,null,null,null,null,2910,"платени лихви по финансов лизинг и търговски кредит",null,{"$f":"N87+O87+P87+Q87","v":0},null,null,null,null,0]
[77,null,null,null,null,null,null,null,null,2920,"платени лихви по активирани гаранции по заеми от  банки в страната",null,{"$f":"N88+O88+P88+Q88","v":0},null,null,null,null,0]
[78,null,null,null,null,null,null,null,null,2969,"платени лихви по активирани гаранции по заеми от международни организации и институции",null,0,null,null,null,null,0]
[79,null,null,null,null,null,null,null,null,2970,"платени лихви по активирани гаранции по заеми от банки и финансови институции от чужбина",null,0,null,null,null,null,0]
[80,null,null,null,null,null,null,null,null,2989,"възстановени суми по платени лихви по активирани гаранции (-)",null,0,null,null,null,null,0]
[81,null,null,null,null,null,null,null,null,2990,"платени лихви по заеми, предоставени от централния бюджет и бюджетни организации",null,{"$f":"N92+O92+P92+Q92","v":0},null,null,null,null,0]
[82,null,null,null,null,null,null,null,null,2991,"други разходи за лихви към  местни лица",null,0,null,null,null,null,0]
[83,null,null,null,null,null,null,null,null,2992,"други разходи за лихви към чуждестранни лица",null,0,null,null,null,null,0]
[84,null,null,null,null,null,null,null,3300,"Вноска в общия бюджет на Европейския съюз",null,{"$f":"SUM(L96:L100)","v":0},0,0,0,0,0,0]
[85,null,null,null,null,null,null,null,null,3301,"ресурс на база брутен национален доход",null,{"$f":"N96+O96+P96+Q96","v":0},null,null,0,0,0]
[86,null,null,null,null,null,null,null,null,3302,"ресурс на база данък върху добавената стойност",null,0,null,null,0,0,0]
[87,null,null,null,null,null,null,null,null,3304,"традиционни собствени ресурси - мита",null,0,null,null,0,0,0]
[88,null,null,null,null,null,null,null,null,3306,"участие във финансирането на брутното намаление за  Австрия, Дания, Германия, Нидерландия и Швеция и вноска за корекция за неучастие на съответни държави членки в някои политики за свобода, сигурност и правосъдие",null,0,null,null,0,0,0]
[89,null,null,null,null,null,null,null,null,3307,"ресурс на база нерециклираните отпадъци от опаковки от пластмаса",null,0,null,null,0,0,0]
[90,null,null,null,null,null,null,null,3900,"Здравно-осигурителни плащания",null,null,0,null,null,null,null,{"$f":"(IF($E101<>0,$K$2,IF($F101<>0,$K$2,IF($G101<>0,$K$2,IF($H101<>0,$K$2,IF($I101<>0,$K$2,IF($J101<>0,$K$2,\"\")))))))","v":0}]
[91,null,null,null,null,null,null,null,4000,"Стипендии",null,null,0,null,null,null,null,0]
[92,null,null,null,null,null,null,null,4100,"Пенсии",null,null,0,null,null,null,null,0]
[93,null,null,null,null,null,null,null,4200,"Текущи трансфери, обезщетения и помощи за домакинствата",null,{"$f":"SUM(L105:L110)","v":0},0,0,0,0,0,0]
[94,null,null,null,null,null,null,null,null,4201,"обезщетения и помощи по социалното осигуряване",null,{"$f":"N105+O105+P105+Q105","v":0},null,null,null,null,0]
[95,null,null,null,null,null,null,null,null,4202,"обезщетения и помощи по социалното подпомагане",null,0,null,null,null,null,0]
[96,null,null,null,null,null,null,null,null,4214,"обезщетения и помощи по решение на общинския съвет",null,0,null,null,null,null,0]
[97,null,null,null,null,null,null,null,null,4217,"текущи трансфери за домакинства от средства на Европейския съюз",null,0,null,null,null,null,0]
[98,null,null,null,null,null,null,null,null,4218,"текущи трансфери за домакинства по други международни програми и споразумения",null,0,null,null,null,null,0]
[99,null,null,null,null,null,null,null,null,4219,"други текущи трансфери за домакинствата",null,0,null,null,null,null,0]
[100,null,null,null,null,null,null,null,4300,"Субсидии и други текущи трансфери за нефинансови предприятия ",null,{"$f":"SUM(L112:L114)","v":0},0,0,0,0,0,0]
[101,null,null,null,null,null,null,null,null,4301,"за текуща дейност",null,{"$f":"N112+O112+P112+Q112","v":0},null,null,null,null,0]
[102,null,null,null,null,null,null,null,null,4302,"за осъществяване на болнична помощ ",null,0,null,null,null,null,0]
[103,null,null,null,null,null,null,null,null,4309,"други субсидии и плащания",null,0,null,null,null,null,0]
[104,null,null,null,null,null,null,null,4400,"Субсидии и други текущи трансфери за финансови институции",null,null,0,null,null,null,null,0]
[105,null,null,null,null,null,null,null,4500,"Субсидии и други текущи трансфери за юридически лица с нестопанска цел",null,null,0,null,null,null,null,0]
[106,null,null,null,null,null,null,null,4600,"Разходи за членски внос и участие в нетърговски организации и дейности",null,null,0,null,null,null,null,0]
[107,null,null,null,null,null,null,null,4900,"Предоставени текущи и капиталови трансфери за чужбина",null,{"$f":"+L119+L120","v":0},0,0,0,0,0,0]
[108,null,null,null,null,null,null,null,null,4901,"текущи трансфери за чужбина",null,{"$f":"N119+O119+P119+Q119","v":0},null,null,null,null,0]
[109,null,null,null,null,null,null,null,null,4902,"капиталови трансфери за чужбина",null,{"$f":"N120+O120+P120+Q120","v":0},null,null,null,null,0]
[110,null,null,null,null,null,null,null,5100,"Основен ремонт на дълготрайни материални активи",null,null,{"$f":"N121+O121+P121+Q121","v":0},null,null,null,null,0]
[111,null,null,null,null,null,null,null,5200,"Придобиване на дълготрайни материални активи",null,{"$f":"SUM(L123:L129)","v":0},0,0,0,0,0,0]
[112,null,null,null,null,null,null,null,null,5201,"придобиване на компютри и хардуер",null,{"$f":"N123+O123+P123+Q123","v":0},null,null,null,null,0]
[113,null,null,null,null,null,null,null,null,5202,"придобиване на сгради",null,0,null,null,null,null,0]
[114,null,null,null,null,null,null,null,null,5203,"придобиване на друго оборудване, машини и съоръжения",null,0,null,null,null,null,0]
[115,null,null,null,null,null,null,null,null,5204,"придобиване на транспортни средства",null,0,null,null,null,null,0]
[116,null,null,null,null,null,null,null,null,5205,"придобиване на стопански инвентар",null,0,null,null,null,null,0]
[117,null,null,null,null,null,null,null,null,5206,"изграждане на инфраструктурни обекти",null,0,null,null,null,null,0]
[118,null,null,null,null,null,null,null,null,5219,"придобиване на други ДМА",null,0,null,null,null,null,0]
[119,null,null,null,null,null,null,null,5300,"Придобиване на нематериални дълготрайни активи",null,{"$f":"SUM(L131:L132)","v":0},0,0,0,0,0,0]
[120,null,null,null,null,null,null,null,null,5301,"придобиване на програмни продукти и лицензи за програмни продукти",null,{"$f":"N131+O131+P131+Q131","v":0},null,null,null,null,0]
[121,null,null,null,null,null,null,null,null,5309,"придобиване на други нематериални дълготрайни активи",null,{"$f":"N132+O132+P132+Q132","v":0},null,null,null,null,0]
[122,null,null,null,null,null,null,null,5400,"Придобиване на земя",null,null,{"$f":"N133+O133+P133+Q133","v":0},null,null,null,null,0]
[123,null,null,null,null,null,null,null,5500,"Капиталови трансфери",null,{"$f":"SUM(L135:L138)","v":0},0,0,0,0,0,0]
[124,null,null,null,null,null,null,null,null,5501,"капиталови трансфери за нефинансови предприятия",null,{"$f":"N135+O135+P135+Q135","v":0},null,null,null,null,0]
[125,null,null,null,null,null,null,null,null,5502,"капиталови трансфери за финансови институции",null,{"$f":"N136+O136+P136+Q136","v":0},null,null,null,null,0]
[126,null,null,null,null,null,null,null,null,5503,"капиталови трансфери за организации с нестопанска цел",null,{"$f":"N137+O137+P137+Q137","v":0},null,null,null,null,0]
[127,null,null,null,null,null,null,null,null,5504,"капиталови трансфери за домакинствата",null,{"$f":"N138+O138+P138+Q138","v":0},null,null,null,null,0]
[128,null,null,null,null,null,null,null,5700,"Прираст на държавния резерв и изкупуване на земеделска продукция (включва и § 40-71)",null,{"$f":"SUM(L140:L142)","v":0},0,0,0,0,0,0]
[129,null,null,null,null,null,null,null,null,5701,"плащания за попълване на държавния резерв",null,{"$f":"N140+O140+P140+Q140","v":0},null,null,null,null,0]
[130,null,null,null,null,null,null,null,null,5702,"плащания за изкупуване на земеделска продукция",null,{"$f":"N141+O141+P141+Q141","v":0},null,null,null,null,0]
[131,null,null,null,null,null,null,null,null,4071,"постъпления от продажба на държавния резерв (-)",null,{"$f":"N142+O142+P142+Q142","v":0},null,null,null,null,0]
[132,null,null,null,null,null,null,null,null,null,null,null,null,null,null,null,null,""]
[133,null,null,null,null,null,null,null,98,"Резерв за непредвидени и неотложни разходи",null,null,{"$f":"N144+O144+P144+Q144","v":0},0,0,0,0,0]
[134,null,null,null,null,null,null,null,null,null,null,null,null,null,null,null,null,""]
[135,null,null,null,null,null,null,null,null,null,null,null,null,null,null,null,null,""]
[136,null,null,null,null,null,null,null,null,null,null,null,null,null,null,null,null,""]
[137,null,null,null,null,null,null,null,null,"99-99",{"$f":"+I148","v":0},{"$f":"SUM(L30,L33,L39,L47,L48,L66,L70,L76,L79,L80,L81,L82,L86,L95,L101,L102,L103,L104,L111,L115,L116,L117,L118,L121,L122,L130,L133,L134,L139)+L144","v":0},0,0,0,0,0,0,{"$f":"LEFT(J27,1)","v":"0"}]
[138,null,null,null,null,null,null,null,null,null,null,null,null,null,null,null,null,{"$f":"R148","v":0}]
[139,null,null,null,null,null,null,null,null,null,null,null,null,null,null,null,null,{"$f":"R148","v":0}]
[140,null,null,null,null,null,null,null,null,null,null,null,null,null,null,null,null,{"$f":"(IF(SUM(R162:R183)<>0,$K$2,\"\"))","v":""}]
[141,null,null,null,null,null,null,null,{"$f":"$B$7","v":0},null,null,null,null,null,null,null,null,{"$f":"(IF(SUM(R162:R183)<>0,$K$2,\"\"))","v":""}]
[142,null,null,null,null,null,null,null,null,null,null,"за периода от ","до",null,null,null,null,{"$f":"(IF(SUM(R162:R183)<>0,$K$2,\"\"))","v":""}]
[143,null,null,null,null,null,null,null,{"$f":"$B$9","v":0},null,null,{"$f":"$E$9","v":"00:00:00"},{"$f":"$F$9","v":"00:00:00"},null,null,null,null,{"$f":"(IF(SUM(R162:R183)<>0,$K$2,\"\"))","v":""}]
[144,null,null,null,null,null,null,null,{"$f":"$B$10","v":0},null,null,null,null,null,null,null,null,{"$f":"(IF(SUM(R162:R183)<>0,$K$2,\"\"))","v":""}]
[145,null,null,null,null,null,null,null,null,null,null,null,null,null,null,null,null,{"$f":"(IF(SUM(R162:R183)<>0,$K$2,\"\"))","v":""}]
[146,null,null,null,null,null,null,null,{"$f":"$B$12","v":0},null,null,"       код по ЕБК:",{"$f":"$F$12","v":0},null,null,null,null,{"$f":"(IF(SUM(R162:R183)<>0,$K$2,\"\"))","v":""}]
[147,null,null,null,null,null,null,null,{"$f":"$B$13","v":0},null,null,null,null,null,null,null,null,{"$f":"(IF(SUM(R162:R183)<>0,$K$2,\"\"))","v":""}]
[148,null,null,null,null,null,null,null,null,null,"               ФИНАНСОВО-ПРАВНА ФОРМА",{"$f":"$E$15","v":0},{"$f":"$F$15","v":0},null,null,null,null,{"$f":"(IF(SUM(R162:R183)<>0,$K$2,\"\"))","v":""}]
[149,null,null,null,null,null,null,null,null,null,"Натурални и други показатели за дейността",null,"(в лева)",null,null,null,null,{"$f":"(IF(SUM(R162:R183)<>0,$K$2,\"\"))","v":""}]
[150,null,null,null,null,null,null,null,"МЯРКА","Код 9 8","  О б щ и   н а т у р а л н и   п о к а з а т е л и","    П л а н","    О т ч е т ",null,null,null,null,{"$f":"(IF(SUM(R162:R183)<>0,$K$2,\"\"))","v":""}]
[151,null,null,null,null,null,null,null,null," 9 8 0 1","Щ а т н и   б р о й к и",{"$f":"L163+L164","v":0},{"$f":"M163+M164","v":0},null,null,null,null,{"$f":"(IF($E162<>0,$K$2,IF($F162<>0,$K$2,\"\")))","v":""}]
[152,null,null,null,null,null,null,null,null," 9 8 1 1","в т.ч.: по трудови правоотношения",null,null,null,null,null,null,""]
[153,null,null,null,null,null,null,null,null," 9 8 1 2","           по служебни правоотношения",null,null,null,null,null,null,""]
[154,null,null,null,null,null,null,null,null," 9 8 0 2","Средногодишни щатни бройки",{"$f":"L166+L167","v":0},{"$f":"M166+M167","v":0},null,null,null,null,""]
[155,null,null,null,null,null,null,null,null," 9 8 2 1","в т.ч.: по трудови правоотношения",null,null,null,null,null,null,""]
[156,null,null,null,null,null,null,null,null," 9 8 2 2","         по служебни правоотношения",null,null,null,null,null,null,""]
[157,null,null,null,null,null,null,null,null," 9 8 0 3","Средна годишна брутна заплата",null,null,null,null,null,null,""]
[158,null,null,null,null,null,null,null,null," 9 8 3 1"," в т.ч.:   по трудови правоотношения",null,null,null,null,null,null,""]
[159,null,null,null,null,null,null,null,null," 9 8 3 2","            по служебни правоотношения",null,null,null,null,null,null,""]
[160,null,null,null,null,null,null,null,null," 9 8 0 4","Брой на моторни превозни средства",null,null,null,null,null,null,""]
[161,null,null,null,null,null,null,null,null,"9 8 0 5","- в т.ч. - леки автомобили",null,null,null,null,null,null,""]
[162,null,null,null,null,null,null,null,null,"9 8 0 6","             - санитарни линейки",null,null,null,null,null,null,""]
[163,null,null,null,null,null,null,null,null," 9 8 0 7","Брой ученици, финансирани по единни разходни стандарти",null,null,null,null,null,null,""]
[164,null,null,null,null,null,null,null,null," 9 8 0 8","Средна годишна брутна заплата на делегирани бюджети",null,null,null,null,null,null,""]
[165,null,null,null,null,null,null,null,null," 9 8 0 9","Щатни бройки на делегирани бюджети",null,null,null,null,null,null,""]
[166,null,null,null,null,null,null,null,null," 9 8 1 0","Средногодишни щатни бройки на делегирани бюджети",null,null,null,null,null,null,""]
[167,null,null,null,null,null,null,null,null,"9 8 1 3","Средногодишен приравнен брой учащи във ВУ, финансирани по норматив за издръжка на обучението",null,null,null,null,null,null,""]
[168,null,null,null,null,null,null,null,null,"9 8 1 4","Брой леглодни в студентски общежития",null,null,null,null,null,null,""]
[169,null,null,null,null,null,null,null,null,"9 8 1 5","Брой хранодни в студентски стол",null,null,null,null,null,null,""]
[170,null,null,null,null,null,null,null,null,"9 8 1 7","Болнични легла",null,null,null,null,null,null,""]
[171,null,null,null,null,null,null,null,null,"9 8 1 8","Обем радиопрограма /часове/",null,null,null,null,null,null,""]
[172,null,null,null,null,null,null,null,null,"9 8 1 9","Обем телевизионна програма /часове/",null,null,null,null,null,null,""]
[173,null,null,null,null,null,null,null,"МЯРКА","Код  ","Разходи в областта на електронното управление и за използваните информационни и комуникационни технологии","    П л а н","    О т ч е т ",null,null,null,null,{"$f":"(IF($E185<>0,$K$2,IF($F185<>0,$K$2,\"\")))","v":""}]
[174,null,null,null,null,null,null,null,null,"9 8 5 0","Общо разходи в областта на ЕУ и за използваните ИКТ",{"$f":"L186+L187","v":0},{"$f":"M186+M187","v":0},null,null,null,null,""]
[175,null,null,null,null,null,null,null,null,"9 8 5 1","Текущи разходи в областта на ЕУ и за използваните ИКТ",null,null,null,null,null,null,""]
[176,null,null,null,null,null,null,null,null,"9 8 5 2","Капиталови разходи в областта на ЕУ и за използваните ИКТ",null,null,null,null,null,null,""]
[177,null,null,null,null,null,null,null,"ЗАБЕЛЕЖКА:",null,null,null,null,null,null,null,null,{"$f":"R148","v":0}]
[178,null,null,null,null,null,null,null," За натурални показатели, не влючени в този отчет, специфични за конкретна дейност се представят отделни справки, допълнително определени от Министерство на финансите.",null,null,null,null,null,null,null,null,{"$f":"R148","v":0}]
[179,null,null,null,null,null,null,null,null,null,null,null,null,null,null,null,null,{"$f":"R148","v":0}]
[null,null,null,null,null,null,null,null,null,null,null,null,null,null,null,null,null,{"$f":"(IF(L148<>0,$G$2,IF(Q148<>0,$G$2,\"\")))","v":""}]
[null,null,null,null,null,null,null,null,null,null,null,null,null,null,null,null,null,{"$f":"(IF(L149<>0,$G$2,IF(Q149<>0,$G$2,\"\")))","v":""}]
[null,null,null,null,null,null,null,null,null,null,null,null,null,null,null,null,null,{"$f":"(IF(L148<>0,$G$2,IF(Q148<>0,$G$2,\"\")))","v":""}]
[null,null,null,null,null,null,null,null,null,null,null,null,null,null,null,null,null,{"$f":"(IF(L148<>0,$G$2,IF(Q148<>0,$G$2,\"\")))","v":""}]
[null,null,null,null,null,null,null,null,null,null,null,null,null,null,null,null,null,{"$f":"(IF(L148<>0,$G$2,IF(Q148<>0,$G$2,\"\")))","v":""}]
[null,null,null,null,null,null,null,null,null,null,null,null,null,null,null,null,null,{"$f":"(IF(L148<>0,$G$2,IF(Q148<>0,$G$2,\"\")))","v":""}]
[null,null,null,null,null,null,null,null,null,null,null,null,null,null,null,null,null,{"$f":"(IF(L148<>0,$G$2,IF(Q148<>0,$G$2,\"\")))","v":""}]

{"sheet":"list","index":5,"n_rows":736,"n_cols":3,"rows_kept":736,"cut":false,"hidden":true,"merged":[]}
["Name:","SMETKA"]
[0,"ОТЧЕТНИ ДАННИ ПО ЕБК ЗА ИЗПЪЛНЕНИЕТО НА БЮДЖЕТА","                                  ОТЧЕТ ЗА КАСОВОТО ИЗПЪЛНЕНИЕ НА БЮДЖЕТА"]
[33,"ОТЧЕТНИ ДАННИ ПО ЕБК ЗА СМЕТКИТЕ ЗА ЧУЖДИ СРЕДСТВА","                   ОТЧЕТ ЗА КАСОВОТО ИЗПЪЛНЕНИЕ НА СМЕТКИТЕ ЗА ЧУЖДИ СРЕДСТВА"]
[42,"ОТЧЕТНИ ДАННИ ПО ЕБК ЗА СМЕТКИТЕ ЗА СРЕДСТВАТА ОТ ЕВРОПЕЙСКИЯ СЪЮЗ - РА","ОТЧЕТ ЗА КАСОВОТО ИЗПЪЛНЕНИЕ НА СМЕТКИТЕ ЗА СРЕДСТВАТА ОТ ЕВРОПЕЙСКИЯ СЪЮЗ - РА"]
[96,"ОТЧЕТНИ ДАННИ ПО ЕБК ЗА СМЕТКИТЕ ЗА СРЕДСТВАТА ОТ ЕВРОПЕЙСКИЯ СЪЮЗ - ДЕС","ОТЧЕТ ЗА КАСОВОТО ИЗПЪЛНЕНИЕ НА СМЕТКИТЕ ЗА СРЕДСТВАТА ОТ ЕВРОПЕЙСКИЯ СЪЮЗ - ДЕС"]
[97,"ОТЧЕТНИ ДАННИ ПО ЕБК ЗА СМЕТКИТЕ ЗА СРЕДСТВАТА ОТ ЕВРОПЕЙСКИЯ СЪЮЗ - ДМП","ОТЧЕТ ЗА КАСОВОТО ИЗПЪЛНЕНИЕ НА СМЕТКИТЕ ЗА СРЕДСТВАТА ОТ ЕВРОПЕЙСКИЯ СЪЮЗ - ДМП"]
[98,"ОТЧЕТНИ ДАННИ ПО ЕБК ЗА СМЕТКИТЕ ЗА СРЕДСТВАТА ОТ ЕВРОПЕЙСКИЯ СЪЮЗ - КСФ","ОТЧЕТ ЗА КАСОВОТО ИЗПЪЛНЕНИЕ НА СМЕТКИТЕ ЗА СРЕДСТВАТА ОТ ЕВРОПЕЙСКИЯ СЪЮЗ - КСФ"]
[]
[]
["Name:","\"EBK_DEIN\" и \"EBK_DEIN2\""]
[null,"ИЗБЕРЕТЕ ДЕЙНОСТ"]
[1101,"101 Централни държавни органи",1101]
[1103,"103 Централни държавни органи по образованието",1103]
[1104,"104 Централни държавни органи по здравеопазването",1104]
[1105,"105 Централни държавни органи по социалното осигуряването",1105]
[1106,"106 Централни държавни органи по регионалното развитие и благоустройство",1106]
[1107,"107 Централни държавни органи по културата и спорта",1107]
[1108,"108 Централни държавни органи по икономическите дейности и услуги",1108]
[1111,"111 Контролни органи",1111]
[1115,"115 Управление, контрол и регулиране на външните работи",1115]
[1116,"116 Посолства, консулства, представителства и мисии в чужбина",1116]
[1117,"117 Държавни и общински служби и дейности по изборите",1117]
[1121,"121 Областни администрации",1121]
[1122,"122 Общинска администрация",1122]
[1123,"123 Общински съвети ",1123]
[1125,"125 Членове на Европейския парламент от Република България",1125]
[1128,"128 Международни програми и споразумения, дарения и помощи от чужбина",1128]
[1139,"139 Други изпълнителни и законодателни органи",1139]
[1141,"141 Статистически институт,служби и дейности,социологически проучвания и анкети",1141]
[1142,"142 Общоикономическо и социално програмиране и прогнозиране",1142]
[1143,"143 Регистрация и контрол на чуждестранните инвестиции",1143]
[1144,"144 Служби и дейности за връзки с българите в чужбина",1144]
[1145,"145 Служби и дейности за подпомагане на бежанците",1145]
[1146,"146 Управление и администриране на получена чуждестранна помощ",1146]
[1147,"147 Управление на държавния резерв и военновременните запаси",1147]
[1148,"148 Управление на гражд.администрация и административнообслужване на населението",1148]
[1149,"149 Други общи служби",1149]
[1151,"151 Ликвидационна комисия за закрити бюджетни организации",1151]
[1158,"158 Международни програми и споразумения, дарения и помощи от чужбина",1158]
[1161,"161 Организация и управление на научните изследвания и дейности",1161]
[1162,"162 Научноизследователско дело",1162]
[1163,"163 Научноизследователски институти и центрове",1163]
[1168,"168 Международни програми и споразумения, дарения и помощи от чужбина",1168]
[1179,"179 Други дейности на науката",1179]
[2201,"201 Дейности по отбраната",2201]
[2205,"205 Участие на Република България в НАТО",2205]
[2206,"206 Мироопазващи мисии в чужбина",2206]
[2215,"215 Приложни научни изследвания в областта на отбраната",2215]
[2218,"218 Международни програми и споразумения, дарения и помощи от чужбина",2218]
[2219,"219 Други дейности по отбраната",2219]
[2221,"221 Полиция и вътрешен ред",2221]
[2222,"222 Национална служба за охрана",2222]
[2223,"223 Държавна агенция \"Разузнаване\"",2223]
[2224,"224 Противопожарна охрана",2224]
[2225,"225 Приложни научни изследвания в областта на вътрешния ред и сигурност",2225]
[2228,"228 Международни програми и споразумения, дарения и помощи от чужбина",2228]
[2239,"239 Други дейности по вътрешната сигурност",2239]
[2241,"241 Висш съдебен съвет",2241]
[2242,"242 Върховен административен съд",2242]
[2243,"243 Върховен касационен съд",2243]
[2244,"244 Прокуратура",2244]
[2245,"245 Национална следствена служба",2245]
[2246,"246 Съдилища",2246]
[2247,"247 Окръжни следствени служби",2247]
[2248,"248 Инспекторат към Висшия съдебен съвет",2248]
[2249,"249 Национален институт на правосъдието",2249]
[2258,"258 Международни програми и споразумения, дарения и помощи от чужбина",2258]
[2259,"259 Други дейности на съдебната власт",2259]
[2261,"261 Места за лишаване от свобода",2261]
[2268,"268 Международни програми и споразумения, дарения и помощи от чужбина",2268]
[2279,"279 Други дейности на администрацията на затворите",2279]
[2281,"281 Неотложна дейност по защита на населението и националното стопанство",2281]
[2282,"282 Отбранително-мобилизационна подготовка, поддържане на запаси и мощности",2282]
[2283,"283 Превантивна дейност за намаляване на вредните последствия от бедствия и аварии",2283]
[2284,"284 Ликвидиране на последици от стихийни бедствия и производствени аварии",2284]
[2285,"285 Доброволни формирования за защита при бедствия",2285]
[2288,"288 Международни програми и споразумения, дарения и помощи от чужбина",2288]
[2289,"289 Други дейности за защита на населението при стихийни бедствия и аварии",2289]
[3301,"301 Управление, контрол, регулиране и лицензиране на дейности по образованието",3301]
[3311,"311 Детски градини",3311]
[3312,"312 Специални групи в детски градини за деца със СОП",3312]
[3318,"318 Подготвителна група в училище",3318]
[3321,"321 Специални училища и центрове за специална образователна подкрепа",3321]
[3322,"322 Неспециализирани училища, без професионални гимназии",3322]
[3323,"323 Училища по културата и училища по изкуствата",3323]
[3324,"324 Спортни училища",3324]
[3325,"325 Български училища в чужбина",3325]
[3326,"326 Професионални гимназии и паралелки за професионална подготовка",3326]
[3327,"327 Училища в места за лишаване от свобода",3327]
[3332,"332 Общежития",3332]
[3333,"333 Ученически почивни лагери",3333]
[3334,"334 Повишаване на квалификацията",3334]
[3336,"336 Столове",3336]
[3337,"337 Център за подкрепа за личностно развитие",3337]
[3338,"338 Ресурсно подпомагане",3338]
[3341,"341 Академии, университети и висши училища",3341]
[3349,"349 Приложни научни изследвания в областта на образованието",3349]
[3359,"359 Други дейности за децата",3359]
[3369,"369 Други дейности за младежта",3369]
[3388,"388 Международни програми и споразумения, дарения и помощи от чужбина",3388]
[3389,"389 Други дейности по образованието",3389]
[4401,"401 Управление, контрол и регулиране на дейности по здравеопазването",4401]
[4412,"412 Многопрофилни болници за активно лечение ",4412]
[4415,"415 Домове за медико-социални грижи ",4415]
[4418,"418 Психиатрични болници",4418]
[4429,"429 Центрове за спешна медицинска помощ",4429]
[4431,"431 Детски ясли, детски кухни и яслени групи в детска градина",4431]
[4433,"433 Рехабилитация",4433]
[4436,"436 Национални центрове",4436]
[4437,"437 Здравен кабинет в детски градини и училища",4437]
[4448,"448 Центрове за комплексно обслужване на деца с увреждания и хронични заболявания",4448]
[4450,"450 Преобразувани лечебни заведения",4450]
[4451,"451 Плащания за първична извънболнична медицинска помощ",4451]
[4452,"452 Плащания за специализирана извънболнична медицинска помощ",4452]
[4453,"453 Плащания за дентална помощ",4453]
[4454,"454 Плащания за медико-диагностична дейност",4454]
[4455,"455 Плащания за лекарствени продукти, медицински изделия и диетични храни за специални медицински цели за домашно лечение на територията на страната",4455]
[4456,"456 Плащания за болнична медицинска помощ",4456]
[4457,"457 Плащания за медицински изделия прилагани в болничната медицинска помощ",4457]
[4458,"458 Плащания за лекарствени продукти в условия на болнична медицинска помощ",4458]
[4459,"459 Други здравноосигурителни плащания",4459]
[4465,"465 Приложни научни изследвания в областта на здравеопазването",4465]
[4467,"467 Национални програми",4467]
[4468,"468 Международни програми и споразумения, дарения и помощи от чужбина",4468]
[4469,"469 Други дейности по здравеопазването",4469]
[5501,"501 Пенсии",5501]
[5511,"511 Помощи по Закона за семейните помощи за деца",5511]
[5512,"512 Помощи по Закона за социално подпомагане",5512]
[5513,"513 Помощи по Закона за хората с увреждания",5513]
[5514,"514 Помощи за диагностика и лечение на социално слаби лица",5514]
[5515,"515 Помощи по Закона за закрила на детето",5515]
[5516,"516 Помощи по Закона за ветераните от войните на Република България",5516]
[5517,"517 Помощи по Закона за военноинвалидите и военнопострадалите",5517]
[5518,"518 Социални помощи и обезщетения по международни програми, помощи и дарения",5518]
[5519,"519 Други помощи и обезщетения",5519]
[5521,"521 Служби по социалното осигуряване (ДОО и др.)",5521]
[5522,"522 Дирекции за социално подпомагане",5522]
[5524,"524 Домашен социален патронаж",5524]
[5525,"525 Клубове на пенсионера, инвалида и др.",5525]
[5526,"526 Центрове за обществена подкрепа",5526]
[5527,"527 Звена \"Майка и бебе\"",5527]
[5528,"528 Център за работа с деца на улицата",5528]
[5529,"529 Кризисен център",5529]
[5530,"530 Център за настаняване от семеен тип",5530]
[5531,"531 Дейности за предотвратяване на трудови злополуки и професионални болести",5531]
[5532,"532 Програми за временна заетост",5532]
[5533,"533 Други програми и дейности за осигуряване на заетост",5533]
[5534,"534 Наблюдавани жилища",5534]
[5535,"535 Преходни жилища",5535]
[5538,"538 Програми за закрила на детето",5538]
[5540,"540 Домове за стари хора",5540]
[5541,"541 Домове за пълнолетни лица с увреждания",5541]
[5545,"545 Социални услуги в домашна среда",5545]
[5546,"546 Домове за деца",5546]
[5547,"547 Център за временно настаняване",5547]
[5548,"548 Дневни центрове за стари хора",5548]
[5550,"550 Центрове за социална рехабилитация и интеграция",5550]
[5551,"551 Дневни центрове за лица с увреждания",5551]
[5553,"553 Приюти",5553]
[5554,"554 Защитени жилища",5554]
[5556,"556 Приложни научни изследвания в областта на социалното осигуряване и подпомагане",5556]
[5561,"561 Асистентска подкрепа",5561]
[5562,"562 Асистенти за лична помощ",5562]
[5588,"588 Международни програми и споразумения, дарения и помощи от чужбина",5588]
[5589,"589 Други служби и дейности по социалното осигуряване, подпомагане и заетостта",5589]
[6601,"601 Управление, контрол и регулиране на дейностите по жил. строителство и териториално развитие",6601]
[6602,"602 Служби по кадастър, геодезия и регистрация на недвижимата собственост",6602]
[6603,"603 Водоснабдяване и канализация",6603]
[6604,"604 Осветление на улици и площади",6604]
[6605,"605 Минерални води и бани",6605]
[6606,"606 Изграждане, ремонт и поддържане на уличната мрежа",6606]
[6618,"618 Международни програми и споразумения, дарения и помощи от чужбина",6618]
[6619,"619 Други дейности по жилищното строителство, благоустройството и регионалното развитие",6619]
[6621,"621 Управление, контрол и регулиране на дейностите по опазване на околната среда",6621]
[6622,"622 Озеленяване",6622]
[6623,"623 Чистота",6623]
[6624,"624 Геозащита",6624]
[6625,"625 Приложни и научни изследвания  в областта на опазване на околната среда",6625]
[6626,"626 Пречистване на отпадъчните води от населените места",6626]
[6627,"627 Управление на дейностите по отпадъците",6627]
[6628,"628 Международни програми и споразумения, дарения и помощи от чужбина",6628]
[6629,"629 Други дейности по опазване на околната среда",6629]
[7701,"701 Дейности по почивното дело и социалния отдих",7701]
[7708,"708 Международни програми и споразумения, дарения и помощи от чужбина",7708]
[7711,"711 Управление, контрол и регулиране на дейностите по спорта",7711]
[7712,"712 Детски и специализирани спортни школи",7712]
[7713,"713 Спорт за всички",7713]
[7714,"714 Спортни бази за спорт за всички",7714]
[7718,"718 Международни програми и споразумения, дарения и помощи от чужбина",7718]
[7719,"719 Други дейности по спорта и физическата култура",7719]
[7731,"731 Управление, контрол и регулиране на дейностите по културата",7731]
[7732,"732 Културни дейности",7732]
[7733,"733 Български културни институти в чужбина",7733]
[7735,"735 Театри",7735]
[7736,"736 Оперно - филхармонични дружества и опери",7736]
[7737,"737 Оркестри и ансамбли",7737]
[7738,"738 Читалища",7738]
[7739,"739 Музеи, худ. галерии, паметници на културата и етногр. комплекси с национален и регионален харакер",7739]
[7740,"740 Музеи, художествени галерии, паметници на културата и етнографски комплекси с местен харакер",7740]
[7741,"741 Радиотранслационни възли",7741]
[7742,"742 Радио",7742]
[7743,"743 Телевизия",7743]
[7744,"744 Филмотечно и фонотечно дело",7744]
[7745,"745 Обредни домове и зали",7745]
[7746,"746 Зоопаркове",7746]
[7747,"747 Държавен архив и териториални архиви",7747]
[7748,"748 Подпомагане развитието на културата",7748]
[7751,"751 Библиотеки с национален и регионален характер",7751]
[7752,"752 Градски библиотеки",7752]
[7755,"755 Приложни и научни изследвания  в областта на опазване на културата",7755]
[7758,"758 Международни програми и споразумения, дарения и помощи от чужбина",7758]
[7759,"759 Други дейности по културата",7759]
[7761,"761 Контрол и регулиране на дейностите по религиозно дело",7761]
[7762,"762 Субсидии и други разходи за дейности по религиозно дело",7762]
[7768,"768 Международни програми и споразумения, дарения и помощи от чужбина",7768]
[8801,"801 Управление, контрол и регулиране на минното дело и дейностите по енергетиката",8801]
[8802,"802 Изследвания, измервания и анализи на горивата и енергията",8802]
[8803,"803 Безопасност и съхраняване на радиоактивни отпадъци",8803]
[8804,"804 Извеждане на ядрени съоръжения от експлоатация",8804]
[8805,"805 Приложни и научни изследвания  в областта на минното дело, горивата и енергията",8805]
[8807,"807 Международни програми и споразумения, дарения и помощи от чужбина",8807]
[8808,"808 Други дейности по минното дело",8808]
[8809,"809 Други дейности по горивата и енергията",8809]
[8811,"811 Управление, контрол и регулиране на дейностите по растениевъдство",8811]
[8813,"813 Областни земеделски служби",8813]
[8814,"814 Управление, контрол и регулиране на дейностите по горското стопанство",8814]
[8815,"815 Управление, контрол и регулиране на дейностите по лова и риболова",8815]
[8816,"816 Машинно-изпитателни центрове и контролно технически инспекции",8816]
[8817,"817 Ветеринарно-медицински служби",8817]
[8821,"821 Други служби по поземлената реформа",8821]
[8824,"824 Национални доплащания и съфинансиране към директните плащания за земеделски производители",8824]
[8825,"825 Приложни и научни изследвания  в областта на земеделието и горите",8825]
[8826,"826 Рибарство",8826]
[8827,"827 Развитие на селските райони",8827]
[8828,"828 Международни програми и споразумения, дарения и помощи от чужбина",8828]
[8829,"829 Други дейности по селско и горско стопанство, лов и риболов",8829]
[8831,"831 Управление,контрол и регулиране на дейностите по транспорта и пътищата",8831]
[8832,"832 Служби и дейности по поддържане, ремонт и изграждане на пътищата",8832]
[8833,"833 Проучвания, измервания и анализи на пътната мрежа",8833]
[8834,"834 Дейности по автомобилния транспорт",8834]
[8835,"835 Дейности по железопътния транспорт",8835]
[8836,"836 Дейности по въздушния транспорт",8836]
[8837,"837 Дейности по водния транспорт",8837]
[8838,"838 Управление, контрол и регулиране на дейностите по комуникациите",8838]
[8839,"839 Пощи и далекосъобщения",8839]
[8845,"845 Приложни и научни изследвания  в областта на транспорта и съобщенията",8845]
[8848,"848 Международни програми и споразумения, дарения и помощи от чужбина",8848]
[8849,"849 Други дейности по транспорта,пътищата,пощите и далекосъобщенията",8849]
[8851,"851 Управление, контрол и регулиране на дейностите по промишлеността",8851]
[8852,"852 Управление, контрол и регулиране на дейностите по строителството",8852]
[8853,"853 Международни програми и споразумения, дарения и помощи от чужбина",8853]
[8855,"855 Приложни и научни изследвания  в областта на промишлеността и строителството",8855]
[8858,"858 Други дейности по промишлеността",8858]
[8859,"859 Други дейности по строителството",8859]
[8861,"861 Управление, контрол и регулиране на дейностите по туризма",8861]
[8862,"862 Туристически бази",8862]
[8863,"863 Специализирани спортно-туристически школи",8863]
[8864,"864 Международни програми и споразумения, дарения и помощи от чужбина",8864]
[8865,"865 Други дейности по туризма",8865]
[8866,"866 Общински пазари и тържища",8866]
[8867,"867 Реклама и маркетинг",8867]
[8868,"868 Информационно-изчислителни центрове",8868]
[8869,"869 Издателска дейност и печатни бази",8869]
[8871,"871 Помощни стопанства, столове и други спомагателни дейности",8871]
[8872,"872 Дворци, резиденции и стопанства",8872]
[8873,"873 Оздравителни програми за предприятия в изолация и ликвидация",8873]
[8875,"875 Органи и дейности по приватизация",8875]
[8876,"876 Органи по стандартизация и метрология",8876]
[8877,"877 Патентно дело",8877]
[8878,"878 Приюти за безстопанствени животни",8878]
[8885,"885 Приложни и научни изследвания  в други дейности по икономиката",8885]
[8888,"888 Структурни реформи",8888]
[8897,"897 Международни програми и споразумения, дарения и помощи от чужбина",8897]
[8898,"898 Други дейности по икономиката",8898]
[9910,"910 Разходи за лихви",9910]
[9997,"997 Други разходи некласифицирани по другите функции",9997]
[9998,"998 Резерв ",9998]
[]
[]
[]
[]
["Name:","\"OP_LIST\"  и \"OP_LIST2\""]
["ИЗБЕРЕТЕ ОПЕРАТИВНА ПРОГРАМА "]
["ПЕРИОД 2014-2020"]
["КФ - ОП \"Транспорт и транспортна инфраструктура\"","98111"]
["КФ - ОП \"Околна среда\"","98112"]
["ЕФРР - ОП \"Транспорт и транспортна инфраструктура\"","98211"]
["ЕФРР - ОП \"Региони в растеж\"","98212"]
["ЕФРР - ОП \"Наука и образование за интелигентен растеж\"","98213"]
["ЕФРР - ОП \"Иновации и конкурентоспособност \"","98214"]
["ЕФРР - ОП \"Околна среда\"","98215"]
["ЕФРР - ОП \"Инициатива за малки и средни предприятия\"","98224"]
["ЕСФ - ОП \"Развитие на човешките ресурси\"","98311"]
["ЕСФ - ОП \"Добро управление\"","98312"]
["ЕСФ - ОП \"Наука и образование за интелигентен растеж\"","98313"]
["ОП \"Фонд за европейско подпомагане на най-нуждаещите се лица\" ",98315]
["ПЕРИОД 2007-2013"]
["КФ - ОП \"ТРАНСПОРТ\"","98101"]
["КФ - ОП \"ОКОЛНА СРЕДА\" /2007-2013/","98102"]
["ЕФРР - ОП \"ТРАНСПОРТ\"","98201"]
["ЕФРР - ОП \"РЕГИОНАЛНО РАЗВИТИЕ\"","98202"]
["ЕФРР - ОП \"КОНКУРЕНТНОСПОСОБНОСТ\"","98204"]
["ЕФРР - ОП \"ОКОЛНА СРЕДА\" /2007-2013/","98205"]
["ЕФРР - ОП \"ТЕХНИЧЕСКА ПОМОЩ\"","98210"]
["ЕСФ - ОП \"ЧОВЕШКИ РЕСУРСИ\"","98301"]
["ЕСФ - ОП \"АДМИНИСТРАТИВЕН КАПАЦИТЕТ\"","98302"]
[]
[]
["Name:","\"PRBK\""]
[null,"А ) Кодове на бюджетни организации от подсектор \"централно управление\" (подсектор \"ЦУ\")"]
[null,"    А.1) Кодове на централния бюджет и разпоредителите с бюджет по държавния бюджет"]
["0100","Народно събрание"]
["0200","Администрация на президентството"]
["0300","Министерски съвет "]
["0400","Конституционен съд"]
["0500","Сметна палата"]
["0600","Висш съдебен съвет"]
["1000","Министерство на финансите"]
["1100","Министерство на външните работи"]
["1200","Министерство на отбраната"]
["1300","Министерство на вътрешните работи"]
["1400","Министерство на правосъдието"]
["1500","Министерство на труда и социалната политика"]
["1600","Министерство на здравеопазването"]
["1700","Министерство на образованието и науката "]
["1800","Министерство на културата"]
["1900","Министерство на околната среда и водите"]
["2000","Министерство на икономиката и индустрията"]
["2100","Министерство на регионалното развитие и благоустройство"]
["2200","Министерство на земеделието и храните"]
["2300","Министерство на транспорта и съобщенията"]
["2400","Министерство на енергетиката"]
["2500","Министерство на младежта и спорта"]
["3000","Държавна агенция  \"Национална сигурност\""]
["3200","Комисия за разкриване на документите и за обявяване на принадлежност на български граждани към Държавна сигурност и разузнавателните служби на Българската народна армия"]
["3300","Комисия за защита от дискриминация"]
["3400","Комисия за защита на личните данни"]
[]
["3700","Комисия за отнемане на незаконно придобитото имущество"]
["3800","Национална служба за охрана"]
["3900","Държавна агенция \"Разузнаване\""]
["4000","Омбудсман"]
["4100","Национален статистически институт"]
["4200","Комисия за защита на конкуренцията"]
["4300","Комисия за регулиране на съобщенията"]
["4400","Съвет за електронни медии"]
["4500","Комисия за енергийно и водно регулиране"]
["4600","Агенция за ядрено регулиране"]
["4700","Комисия за финансов надзор"]
["4800","Държавна комисия по сигурността на информацията"]
["5300","Държавна агенция \"Държавен резерв и военновременни запаси\""]
["6100","Българска национална телевизия"]
["6200","Българско национално радио"]
["6300","Българска телеграфна агенция"]
["7100","Министерство на туризма"]
["7400","Министерство на иновациите и растежа"]
["7500","Министерство на електронното управление"]
["8199","Комисия за противодействие на корупцията"]
["8200","Централна избирателна комисия"]
["8300","Комисия за публичен надзор над регистрираните одитори"]
["8400","Държавен фонд \"Земеделие\""]
["8500","Национално бюро за контрол на специалните разузнавателни средства"]
["8600","Държавна агенция „Технически операции”"]
["9900","Централен бюджет"]
[null,"     А.2) Кодове на други бюджетни организации от подсектор \"централно управление\""]
[null,"    А.2.1) кодове на държавните висши училища и Българската академия на науките"]
[null,"        А.2.1а) кодове на ДВУ и БАН, финансирани от Министерството на образованието и науката"]
["1701","Софийски университет \"Климент Охридски\" - София"]
["1702","Пловдивски университет \"Паисий Хилендарски\" - Пловдив"]
["1703","Университет \"Проф. д-р Асен Златаров\" - Бургас"]
["1704","Великотърновки университет \"Св. св . Кирил и Методий\" - В. Търново"]
["1705","Югозападен университет \"Неофит Рилски\" - Благоевград"]
["1706","Шуменски университет \"Епископ Константин Преславски\" - Шумен"]
["1711","Русенски университет \"Ангел Кънчев\" - Русе"]
["1712","Технически университет - София"]
["1714","Технически университет - Варна"]
["1715","Технически университет - Габрово"]
["1716","Университет по архитектура, строителство и геодезия - София"]
["1717","Минно-геоложки университет \"Св. Ив. Рилски\" - София"]
["1718","Лесотехнически университет - София"]
["1719","Химико-технологичен и металургичен университет - София"]
["1721","Университет по хранителни технологии - Пловдив",""]
["1722","Аграрен университет - Пловдив",""]
["1723","Тракийски университет - Стара Загора",""]
["1731","Медицински университет - София",""]
["1732","Медицински университет - Пловдив",""]
["1733","Медицински университет \"Проф. д-р Параскев Иванов Стоянов\" - Варна",""]
["1735","Медицински университет - Плевен",""]
["1741","Университет за национално и световно стопанство - София",""]
["1742","Икономически университет - Варна",""]
["1743","Стопанска академия \"Димитър Ценов\" - Свищов",""]
["1751","Държавна музикална академия \"Панчо Владигеров\" - София",""]
["1752","Национална академия за театрално и филмово изкуство \"Кр. Сарафов\" - София",""]
["1753","Национална художествена академия - София",""]
["1754","Академия за музикално, танцово и изобразително изкуство „Проф. Асен Диамандиев“ - Пловдив",""]
["1759","Национална спортна академия \"Васил Левски\" - София",""]
["1767","Висше строително училище \"Любен Каравелов\" - София",""]
["1768","Висше транспортно училище \"Тодор Каблешков\" - София",""]
["1771","Университет по библиотекознание и информационни технологии - София ",""]
["1772","Висше училище по телекомуникации и пощи - София",""]
["1790","Българска академия на науките - София",""]
["","        А.2.1.б) кодове на ДВУ и ВА \"Г. С. Раковски\", финансирани от Министерството на отбраната",""]
["1281","Военна академия \"Г. С. Раковски\" - София",""]
["1282","Национален военен университет \"Васил Левски\" - Велико Търново",""]
["1283","Висше военноморско училище \"Н. Й. Вапцаров\" - Варна",""]
["1284","Висше военновъздушно училище \"Георги Бенковски\" - Долна Митрополия",""]
["1280","ДЪРЖАВНИ ВИСШИ ВОЕННИ УЧИЛИЩА към МО"]
["2233","Селскостопанска академия"]
["","    А.2.2) кодове на други разпоредители с бюджет по чл. 13, ал. 3 от ЗПФ",""]
["6100","Българска национална телевизия",""]
["6200","Българско национално радио",""]
["6300","Българска телеграфна агенция",""]
[null,null,""]
["1950","Предприятие за управление на дейностите по опазване на околната среда (ПУДООС)  - чл. 60 от ЗООС"]
["2029","Държавно предприятие „Управление и стопанисване на язовири“ - чл. 139а, ал. 1 и чл. 139б, ал. 5 от Закона за водите",""]
["2234","Държавно предприятие „Научно-производствен център“",""]
["2480","Фонд \"Сигурност на електроенергийната система\"",""]
["3535","Държавно предприятие „Единен системен оператор“ ",""]
[null," А.3) Кодове на сметки за средствата от Европейския съюз на бюджетни организации от подсектор \"ЦУ\""]
["9817","Национален фонд към Министерството на финансите",""]
["2220","Държавен фонд \"Земеделие\" - Разплащателна агенция",""]
[null,"Други",""]
["1313","Държавно предприятие „Център за предоставяне на услуги”",""]
["2235","Държавно предприятие „Борба с градушките“"]
["2381","НК \"Железопътна инфраструктура\""]
["2382","БДЖ \"Пътнически превози\""]
["1780","Държавни висши училища"]
[null,"Б ) Кодове на социалноосигурителни фондове"]
["5500","Национален осигурителен институт - Държавно обществено осигуряване",""]
["5591","Национален осигурителен институт - Учителски пенсионен фонд",""]
["5592","Национален осигрителен инститт - фонд \"Гарантирани вземания на работници и служители\"",""]
["5600","Национална здравноосигурителна каса",""]
[null,"В ) Кодове на общини"]
["5101","Банско",""]
["5102","Белица",""]
["5103","Благоевград",""]
["5104","Гоце Делчев",""]
["5105","Гърмен",""]
["5106","Кресна",""]
["5107","Петрич",""]
["5108","Разлог",""]
["5109","Сандански",""]
["5110","Сатовча",""]
["5111","Симитли",""]
["5112","Струмяни",""]
["5113","Хаджидимово",""]
["5114","Якоруда",""]
["5201","Айтос",""]
["5202","Бургас ",""]
["5203","Камено",""]
["5204","Карнобат",""]
["5205","Малко Търново",""]
["5206","Несебър",""]
["5207","Поморие",""]
["5208","Приморско",""]
["5209","Руен",""]
["5210","Созопол",""]
["5211","Средец",""]
["5212","Сунгурларе",""]
["5213","Царево",""]
["5301","Аврен",""]
["5302","Аксаково",""]
["5303","Белослав",""]
["5304","Бяла",""]
["5305","Варна",""]
["5306","Ветрино",""]
["5307","Вълчидол",""]
["5308","Девня",""]
["5309","Долни Чифлик",""]
["5310","Дългопол",""]
["5311","Провадия",""]
["5312","Суворово",""]
["5401","Велико Търново",""]
["5402","Горна Оряховица",""]
["5403","Елена",""]
["5404","Златарица",""]
["5405","Лясковец",""]
["5406","Павликени",""]
["5407","Полски Тръмбеш",""]
["5408","Свищов",""]
["5409","Стражица",""]
["5410","Сухиндол",""]
["5501","Белоградчик",""]
["5502","Бойница",""]
["5503","Брегово",""]
["5504","Видин",""]
["5505","Грамада",""]
["5506","Димово",""]
["5507","Кула",""]
["5508","Макреш",""]
["5509","Ново село",""]
["5510","Ружинци",""]
["5511","Чупрене",""]
["5601","Борован",""]
["5602","Бяла Слатина",""]
["5603","Враца",""]
["5605","Козлодуй",""]
["5606","Криводол",""]
["5607","Мездра",""]
["5608","Мизия",""]
["5609","Оряхово",""]
["5610","Роман",""]
["5611","Хайредин",""]
["5701","Габрово",""]
["5702","Дряново",""]
["5703","Севлиево",""]
["5704","Трявна",""]
["5801","Балчик",""]
["5802","Генерал Тошево",""]
["5803","Добрич",""]
["5804","Добричка",""]
["5805","Каварна",""]
["5806","Крушари",""]
["5807","Тервел",""]
["5808","Шабла",""]
["5901","Ардино",""]
["5902","Джебел",""]
["5903","Кирково",""]
["5904","Крумовград",""]
["5905","Кърджали",""]
["5906","Момчилград",""]
["5907","Черноочене",""]
["6001","Бобовдол",""]
["6002","Бобошево",""]
["6003","Дупница",""]
["6004","Кочериново",""]
["6005","Кюстендил",""]
["6006","Невестино",""]
["6007","Рила",""]
["6008","Сапарева баня",""]
["6009","Трекляно",""]
["6101","Априлци",""]
["6102","Летница",""]
["6103","Ловеч",""]
["6104","Луковит",""]
["6105","Тетевен",""]
["6106","Троян",""]
["6107","Угърчин",""]
["6108","Ябланица",""]
["6201","Берковица",""]
["6202","Бойчиновци",""]
["6203","Брусарци",""]
["6204","Вълчедръм",""]
["6205","Вършец",""]
["6206","Георги Дамяново",""]
["6207","Лом",""]
["6208","Медковец",""]
["6209","Монтана",""]
["6210","Чипровци",""]
["6211","Якимово",""]
["6301","Батак",""]
["6302","Белово",""]
["6303","Брацигово",""]
["6304","Велинград",""]
["6305","Лесичово",""]
["6306","Пазарджик",""]
["6307","Панагюрище",""]
["6308","Пещера",""]
["6309","Ракитово",""]
["6310","Септември",""]
["6311","Стрелча",""]
["6312","Сърница",""]
["6401","Брезник",""]
["6402","Земен",""]
["6403","Ковачевци",""]
["6404","Перник",""]
["6405","Радомир",""]
["6406","Трън",""]
["6501","Белене",""]
["6502","Гулянци",""]
["6503","Долна Митрополия",""]
["6504","Долни Дъбник",""]
["6505","Искър",""]
["6506","Левски",""]
["6507","Никопол",""]
["6508","Плевен",""]
["6509","Пордим",""]
["6510","Червен бряг",""]
["6511","Кнежа",""]
["6601","Асеновград",""]
["6602","Брезово",""]
["6603","Калояново",""]
["6604","Карлово",""]
["6605","Кричим",""]
["6606","Лъки",""]
["6607","Марица",""]
["6608","Перущица",""]
["6609","Пловдив",""]
["6610","Първомай",""]
["6611","Раковски",""]
["6612","Родопи",""]
["6613","Садово",""]
["6614","Стамболийски",""]
["6615","Съединение",""]
["6616","Хисаря",""]
["6617","Куклен",""]
["6618","Сопот",""]
["6701","Завет",""]
["6702","Исперих",""]
["6703","Кубрат",""]
["6704","Лозница",""]
["6705","Разград",""]
["6706","Самуил",""]
["6707","Цар Калоян",""]
["6801","Борово",""]
["6802","Бяла",""]
["6803","Ветово",""]
["6804","Две могили",""]
["6805","Иваново",""]
["6806","Русе",""]
["6807","Сливо поле",""]
["6808","Ценово",""]
["6901","Алфатар",""]
["6902","Главиница",""]
["6903","Дулово",""]
["6904","Кайнарджа",""]
["6905","Силистра",""]
["6906","Ситово",""]
["6907","Тутракан",""]
["7001","Котел",""]
["7002","Нова Загора",""]
["7003","Сливен",""]
["7004","Твърдица",""]
["7101","Баните",""]
["7102","Борино",""]
["7103","Девин",""]
["7104","Доспат",""]
["7105","Златоград",""]
["7106","Мадан",""]
["7107","Неделино",""]
["7108","Рудозем",""]
["7109","Смолян",""]
["7110","Чепеларе",""]
["7201","Район Банкя",""]
["7202","Район Витоша",""]
["7203","Район Възраждане ",""]
["7204","Район Връбница",""]
["7205","Район Илинден",""]
["7206","Район Искър",""]
["7207","Район Изгрев",""]
["7208","Район Красна Поляна",""]
["7209","Район Красно село",""]
["7210","Район Кремиковци",""]
["7211","Район Лозенец",""]
["7212","Район Люлин",""]
["7213","Район Младост",""]
["7214","Район Надежда",""]
["7215","Район Нови Искър",""]
["7216","Район Оборище",""]
["7217","Район Овча Купел",""]
["7218","Район Панчарево",""]
["7219","Район Подуяне",""]
["7220","Район Сердика",""]
["7221","Район Слатина",""]
["7222","Район Средец",""]
["7223","Район Студентска",""]
["7224","Район Триадица",""]
["7225","Столична община",""]
["7301","Антон",""]
["7302","Божурище",""]
["7303","Ботевград",""]
["7304","Годеч",""]
["7305","Горна Малина",""]
["7306","Долна Баня",""]
["7307","Драгоман ",""]
["7308","Елин Пелин",""]
["7309","Етрополе",""]
["7310","Златица",""]
["7311","Ихтиман",""]
["7312","Копривщица",""]
["7313","Костенец",""]
["7314","Костинброд",""]
["7315","Мирково",""]
["7316","Пирдоп",""]
["7317","Правец",""]
["7318","Самоков",""]
["7319","Своге",""]
["7320","Сливница",""]
["7321","Чавдар",""]
["7322","Челопеч",""]
["7401","Братя Даскалови",""]
["7402","Гурково",""]
["7403","Гълъбово",""]
["7404","Казанлък",""]
["7405","Мъглиж",""]
["7406","Николаево",""]
["7407","Опан",""]
["7408","Павел баня",""]
["7409","Раднево",""]
["7410","Стара Загора",""]
["7411","Чирпан",""]
["7501","Антоново",""]
["7502","Омуртаг",""]
["7503","Опака",""]
["7504","Попово",""]
["7505","Търговище",""]
["7601","Димитровград",""]
["7602","Ивайловград",""]
["7603","Любимец",""]
["7604","Маджарово",""]
["7605","Минерални Бани",""]
["7606","Свиленград",""]
["7607","Симеоновград",""]
["7608","Стамболово",""]
["7609","Тополовград",""]
["7610","Харманли",""]
["7611","Хасково",""]
["7701","Велики Преслав",""]
["7702","Венец",""]
["7703","Върбица",""]
["7704","Каолиново",""]
["7705","Каспичан",""]
["7706","Никола Козлево",""]
["7707","Нови пазар",""]
["7708","Смядово",""]
["7709","Хитрино",""]
["7710","Шумен",""]
["7801","Болярово",""]
["7802","Елхово",""]
["7803","Стралджа",""]
["7804","Тунджа",""]
["7805","Ямбол",""]
[]
["Name:","Date","Name:"]
[null,"2025-01-31","януари"]
[null,"2025-02-28","февруари"]
[null,"2025-03-31","март"]
[null,"2025-04-30","април"]
[null,"2025-05-31","май"]
[null,"2025-06-30","юни"]
[null,"2025-07-31","юли"]
[null,"2025-08-31","август"]
[null,"2025-09-30","септември"]
[null,"2025-10-31","октомври"]
[null,"2025-11-30","ноември"]
[null,"2025-12-31","декември"]